Workbook

Sheet Hinweise
B1: Anmeldeformular für Investitionsmaßnahmen im Rahmen des Kommunalinvestitionsförderungsgesetz (KInvFG) des Bundes
D26: Hinweis: | E26: Bitte nur in den grau hinterlegten Feldern Eintragungen vornehmen.
E27: Keine Zeilenschaltung oder "unnötige" Leerzeichen verwenden, da sonst die Daten nicht in die Datenbank eingelesen werden können.
E28: Die anmeldende Kommune und den Förderbereich bitte im Dropdownmenü auswählen.
E29: Landkreise: Weiterhin ist die Belegenheitsgemeinde im Dropdownmenü auszuwählen. (Das Dropdownmenü erscheint nach Auswahl eines antragsberechtigten Landkreises)
E30: Die blau hinterlegten Felder beinhalten automatische Eintragungen. (Eigene Eintragungen sind nicht möglich.)
E31: Durch Klick auf den Button "Speichern, Drucken und Versenden" werden die Daten "automatisch" an das Postfach der WIBank versandt.
E32: Sollten Sie nach dem Versenden noch Änderungen vornehmen müssen, benutzen Sie bitte das automatisch erzeugte Formular und setzen einen Haken hinter dem Feld "Änderungsantrag".
E33: Sofern ein Laufzeitfehler angezeigt wird, klicken Sie bitte auf die Schaltfläche "Beenden" und nicht auf "Debuggen".
D35: zum Formular:
D38: Informationen zu den PC-Einstellungen:

Sheet Formular Bundesprogramm
B1: Änderungsantrag | D1: =IF($B$17="Bitte auswählen!","",CONCATENATE("IDENT ",$B$40,"B",$D$5)) ->  | I1: FALSE | J1: Kontrollkästchen Änderungsantrag
D2: =IF($I$2=1,D1,"") ->  | I2: =IF(I1=TRUE,1,0) -> 0 | J2: Kontrollkästchen Änderungsantrag
D3: =IF($B$17="Bitte auswählen!","",CONCATENATE($B$40,"B",$D$5)) -> 
D4: =NOW() -> 2022-01-21T12:31:36.800
D5: =IF($D$4="","----------",(ROUND((D4*100000),0))) -> 4458252195
B6: Anmeldung von Investitionsmaßnahmen i.R.d. Kommunalinvestitionsförderungsgesetzes des Bundes
A8: Ansprechpartner
A9: Name
A11: Vorname
A13: Telefon
A15: E-Mail
K16: Dropdown BelegenheitsGKZ
A17: Anmeldender/ GKZ (erscheint automatisch) | B17: =I18 -> Bitte auswählen! | D17: =IF(B17="Bitte auswählen!"," ",VLOOKUP($B$17,'antragsberechtigt B'!A1:C249,3,FALSE)) ->  | I17: 1 | J17: 1 | K17: =IF(OR(I17=178,I17=131,I17=132,I17=229,I17=130,I17=209,I17=133,I17=244),1,0) -> 0
I18: =VLOOKUP($I$17,'antragsberechtigt B'!$D$1:$E$249,2,FALSE) -> Bitte auswählen! | J18: =VLOOKUP($J$17,'Werteliste IDENT_LAND'!$N$1:$O$470,2,FALSE) -> 0
A20: Landkreis | B20: =IF(B17="Bitte auswählen!","",VLOOKUP(B17,'antragsberechtigt B'!A1:B250,2,FALSE)) ->  | I20: 1 | J20: =VLOOKUP($I$17,'antragsberechtigt B'!$D$1:$F$249,3,FALSE) -> 0 | K20: =EXACT(D17,J20) -> FALSE
A22: Träger der Maßnahme
A26: Maßnahmenbeschreibung
A27: Förderbereich | B27: =I28 -> Keine Auswahl getroffen! | I27: 1 | J27: Das Feld gehört zum Makro in Zelle B27 und gibt die Nummer der X-ten ausgewählten Zeile an.
I28: =VLOOKUP($I$27,'Werteliste ID_FOERDB'!$B$3:$C$13,2) -> Keine Auswahl getroffen!
B30: =IF(D31=0, "Bitte geben Sie eine aussagekräftige Kurzbeschreibung ein!", "") -> Bitte geben Sie eine aussagekräftige Kurzbeschreibung ein! | D30: Anzahl der Zeichen max: 255! | I30: =VLOOKUP($I$27,'Werteliste ID_FOERDB'!$B$3:$E$13,4,FALSE) -> 0 | J30: Verknüpfung in Tabellenblatt "EXCEL-Tabelle per Mail roh", Zelle BJ3
A31: Kurzbeschreibung der Maßnahme | D31: =LEN(B31) -> 0
A33: Belegenheitsadresse (Straße, Hausnummer)
A36: Belegenheitsadresse (PLZ, Ort)
A38: Nur für antragsberechtigte LK! | B38: Belegenheitsgemeinde sortiert nach LK
A39: Belegenheitsgemeinde (GKZ erscheint automatisch nach Auswahl der Belegenheitsgemeinde) | B39: =J40 -> 0 | C39: =K40 ->  | J39: 1 | K39: Diese drei Felder gehören zum Makro in Zelle B39.
B40: =IF($B$17="Bitte auswählen!"," ",VLOOKUP($B$17,'antragsberechtigt B'!$A$1:$C$250,3,FALSE)) ->  | J40: =VLOOKUP($J$39,'LK mit Kommunen'!C1:E168,3,FALSE) -> 0 | K40: =IF($K$17=1,VLOOKUP($J$39,'LK mit Kommunen'!C1:E168,2,FALSE),"") -> 
A41: Anzahl der Maßnahmen
A45: Finanzierungsplanung | C45: Vorabfinanzierung durch Öffentlich Private Partnerschaft (ÖPP) | I45: FALSE | J45: Kontrollkästchen ÖPP
A47: beantragte Fördermittel (100%) | B47: =B49+B51 -> 0 | I47: =IF($I$45=TRUE,1,0) -> 0 | J47: Kontrollkästchen ÖPP
A49: Bundeszuschuss (höchstens 90% der förderfähigen Kosten) in € | K49: =90%von b47 (beantragte Fördermittel)
A51: Ko-Finanzierung (mind. 10% der förderfähigen Kosten) in € | K51: =10% von b47
B52: 4 | D52: 1
A53: Eigenmittel in € | D53: förderfähige Kosten
B54: 1ß
A55: Drittmittel in € | D55: =$B$57-$B$55 -> 0 | I55: förderfähige Kosten nicht im Datensatz verknüpft
A57: Summe | B57: =B49+B51+B53+B55 -> 0
A61: Im Zeitpunkt der Anmeldung geplanter Abruf der Bundesmittel für die Jahre 2022 bis 2023
A62: 2019
A64: 2022
A66: 2023
A68: Summe: | B68: =B62+B64+B66 -> 0 | C68: =IF(B68=B49,"",IF(B68<B49,"Summe des geplanten Abrufs der Bundeszuschüsse ist kleiner als die beantragten Bundeszuschüsse.","Summe des geplanten Abrufs der Bundeszuschüsse ist größer als die beantragten Bundeszuschüsse.")) -> 
K70: Spende
D71: =IF($B$17="Bitte auswählen!","",CONCATENATE("IDENT ",$B$40,"B",$D$5)) ->  | K71: vertraglich vereinbart
A72: Erklärung | K72: Zuschüsse
A74: Der Maßnahmenträger bestätigt hiermit, dass, soweit ihm die Möglichkeit | D74: =I76 -> 0
A75: zum Vorsteuerabzug eröffnet ist, bei den Ausgaben nur die Entgelte | I75: FALSE | J75: Kontrollkästchen Vost
A76: (Preise ohne Umsatzsteuer) zum Ansatz gebracht werden. | I76: =IF(I75=TRUE,1,0) -> 0 | J76: Kontrollkästchen Vost
A81: Die Gesamtfinanzierung des Projektes ist sichergestellt. | B81: =I82 -> 0 | D81: Eingabe bitte wie folgt vornehmen: 'TT.MM.JJ | I81: FALSE | J81: Kontrollkästchen Gesamtfinanzierung
I82: =IF(I81=TRUE,1,0) -> 0 | J82: Kontrollkästchen Gesamtfinanzierung
A83: Längerfristige Nutzung nach § 4 Abs. 3 KInvFG ist gewährleistet. | B83: =I84 -> 0 | C83: Datum voraussichtlicher Maßnahmenbeginn lt. Zff. 3.3. FörderRL | I83: FALSE | J83: Kontrollkästchen längerfrist. Nutzung
I84: =IF(I83=TRUE,1,0) -> 0 | J84: Kontrollkästchen längerfrist. Nutzung
A85: Doppelförderungsverbot nach § 4 Abs. 1 KInvFG ist beachtet. | B85: =I87 -> FALSE | C85: Datum voraussichtliche Endabnahme | I85: FALSE | J85: Kontrollkästchen Doppelförderungsverbot
B86: #WENN(UND(D83<J83;D83<>"");"frühester Beginn der Maßnahme ist der 01.07.2015";"") | C86: #WENN(K85>J85;"letztmögliche Endabnahme der Maßnahme ist der 31.12.2018";"") | I86: =IF(I85=TRUE,1,0) -> 0 | J86: Kontrollkästchen Doppelförderungsverbot
A87: Die Grundsätze der Wirtschaft- lichkeit und Sparsamkeit werden eingehalten; erforderliche Wirtschaftlichkeitsuntersuchungen werden durchgeführt und dokumentiert. | B87: =I88 -> 0 | I87: FALSE | J87: nicht im Datensatz verknüpft
A89: Der Maßnahmenträger bestätigt bei Baumaßnahmen, dass er Eigentümer, Erbbauberechtigter des Grundstücks oder Inhaber eines dinglichen Nutzungsrechts im Sinne der Nr. 1.7 VV zu § 44 LHO ist. | J89: nicht im Datensatz verknüpft
I90: FALSE | J90: Kontrollkästchen Förderrichtlinie
A91: Der Maßnahmenträger bestätigt hiermit die Einhaltung der Förderrichtlinie und des KInvFG, insbesondere der Gewährleistung der Gesamtfinanzierung des Projektes, der längerfristigen Nutzung und der Beachtung des Doppelförderungsverbots. | D91: =I91 -> 0 | I91: =IF($I$90=TRUE,1,0) -> 0 | J91: Kontrollkästchen Förderrichtlinie
A95: Bemerkungen (fakultativ) | D95: Anzahl der Zeichen (max. 255)
D96: =LEN(B95) -> 0
K102: Spende
A107: Beantragung oder Bewilligung der Maßnahme in einem anderen Förderprogramm | C107: Name des Förderprogrammes
A109: Die mit diesem Formular angemeldete Maßnahme wurde bereits in einem anderen Förderprogramm angemeldet. | I109: FALSE | J109: Kontrollkästchen anderes Programm
I110: =IF($I$109=TRUE,1,0) -> 0 | J110: Kontrollkästchen anderes Programm
C112: Die Förderung wurde beantragt bei: (Bitte vollständige Adresse eintragen)
A116: Stand der Bewilligung/ Gründe für die Ablehnung | D116: Anzahl der Zeichen (max. 255)
D117: =LEN(B116) -> 0
A122: Darüber hinaus wird bestätigt, dass die oben gemachten Angaben mit den Inhalten der an die WIBank am
B123: erstellten und übersanden Excel-Datei übereinstimmen. | D123: =D4 -> 2022-01-21T12:31:36.800
D124: 00:00:00
A125: Ort / Datum
B127: 1)
B128: 2)
A129: Unterzeichner in Druckbuchstaben | B129: Rechtsverbindliche Unterschrift(en) des Anmeldenden
B131: Speichern und Drucken
E146: 5 | F146: 6 | G146: 7 | H146: 8 | I146: 9 | J146: 10 | K146: 11 | L146: 11 | M146: 12 | N146: 13 | O146: 14 | P146: 15 | Q146: 16 | R146: 17
A148: 1 | B148: 2 | C148: 3 | D148: 4

Sheet EXCEL-Tabelle per Mail roh (hidden)
A1: IDENT_LAND | B1: L_ANSPRECHPARTNER_NAME | C1: L_ANSPRECHPARTNER_VORNAME | D1: L_ANSPRECHPARTNER_TELEFON | E1: L_ANSPRECHPARTNER_E_MAIL | F1: ANMELDENDER | G1: GKZ | H1: LANDKREIS | I1: TRÄGER | J1: BESCHREIBUNG | K1: BEZ_MASSNAME | L1: BELEGENHEIT_STRASSE | M1: BELEGENHEIT_HAUSNR | N1: BELEGENHEIT_PLZ | O1: BELEGENHEIT_ORT | P1: BELEGENHEIT_GKZ | Q1: BELEGENHEIT_GEMEINDE | R1: ANZAHL | S1: FOERDMITTEL_BEANTR | T1: ANTEIL_90_80 | U1: ANTEIL_10_20 | V1: EIGENMITTEL | W1: DRITTMITTEL | X1: SUMME_INVEST_VOL | Y1: GESAMTKOSTEN | Z1: OEPP | AA1: FOERDMITTEL_ABRUF_2016 | AB1: FOERDMITTEL_ABRUF_2017 | AC1: FOERDMITTEL_ABRUF_2018 | AD1: FOERDMITTEL_ABRUF_2019 | AE1: FOERDMITTEL_ABRUF_2020 | AF1: FOERDMITTEL_ABRUF_2021 | AG1: FOERDMITTEL_ABRUF_2022 | AH1: FOERDMITTEL_ABRUF_2023 | AI1: FOERDMITTEL_ABRUF_SUM | AJ1: L_AUFTEILUNG_VOST | AK1: CHK_GESAMTFINANZIERUNG | AL1: CHK_NACHHALTIGKEIT | AM1: CHK_DOPPELFOERDERUNG | AN1: MASSNAHMENBEGINN | AO1: VORAUS_ENDABNAHME | AP1: L_EINHALTUNG_RL | AQ1: BEMERKUNG | AR1: DAT_ABGABE | AS1: BERUECK_AND_FOERPROG | AT1: NAME_AND_FOERPROG | AU1: BEANTR_AND_FOERDPROG | AV1: BEMERK_AND_FOERDPROG | AW1: WIBank_Zustimmung | AX1: WIBank_Prüfer | AY1: WIBank_Prüfer_Telefon | AZ1: WIBank_Datum_Zustimmung | BA1: WiBank_Prüfbemerkung | BB1: HMDF_SICHTVERMERK | BC1: HMDF_PRUEFER | BD1: HMDF_PRUEFER_TEL | BE1: HMDF_SICHTVERMERK_DAT | BF1: HMDF_SICHTVERMERK_BEM | BG1: KOMMUNALES_INVVOL | BH1: PRUEFVERMERK | BI1: FOERDMITTEL_BEANTRAGT | BJ1: FB | BK1: VH_VN
A2: =A3 ->  | B2: =IF(B3 <> "Eingabe", B3, "") -> 0 | C2: =IF(C3 <> "Eingabe", C3, "") -> 0 | D2: =IF(D3 <> "Eingabe", D3, "") -> 0 | E2: =IF(E3 <> "Eingabe", E3, "") -> 0 | F2: =IF(F3<>"bitte auswählen", F3, "") -> Bitte auswählen! | G2: =IF(G3<>"Gemeindeschlüssel", G3, "") ->  | H2: =IF(LEN(TRIM(H3))>0,H3,"") ->  | I2: =I3 -> 0 | J2: =J3 ->  | K2: =IF(ISBLANK(K3),"",K3) ->  | L2: =L3 -> 0 | M2: =M3 -> 0 | N2: =N3 -> 0 | O2: =O3 -> 0 | P2: =P3 ->  | Q2: =IF(Q3<>0, Q3, "") ->  | R2: =R3 -> 0 | S2: =INT(100*S3)/100 -> 0 | T2: =INT(100*T3)/100 -> 0 | U2: =INT(100*U3+0.5)/100 -> 0 | V2: 0 | W2: 0 | X2: 0 | Y2: 0 | Z2: 0 | AA2: =AA3 -> 0 | AB2: 0 | AC2: 0 | AD2: =AD3 -> 0 | AE2: =AE3 -> 0 | AF2: =AF3 -> 0 | AG2: =AG3 -> 0 | AH2: =AH3 -> 0 | AI2: 0 | AJ2: 0 | AK2: 0 | AL2: 0 | AM2: 0 | AN2: =IF(LEFT(AN3, 7)<>"Eingabe",AN3,"") -> 00:00:00 | AO2: =IF(LEFT(AO3, 7)<>"Eingabe",AO3,"") -> 00:00:00 | AP2: =AP3 -> 0 | AQ2: =IF(LEN(TRIM(AQ3))>0,AQ3,"") ->  | AR2: =IF(LEFT(AR3, 7)<>"Versand",AR3,"") -> 2022-01-21T12:31:36.800 | AS2: =AS3 -> 0 | AT2: =AT3 ->  | AU2: =AU3 ->  | AV2: =AV3 ->  | AW2: =IF(ISBLANK(AW3),"",AW3) ->  | AX2: =IF(ISBLANK(AX3),"",AX3) ->  | AY2: =IF(ISBLANK(AY3),"",AY3) ->  | AZ2: =IF(ISBLANK(AZ3),"",AZ3) ->  | BA2: =IF(ISBLANK(BA3),"",BA3) ->  | BG2: =BG3 -> 0 | BJ2: =BJ3 -> 0 | BK2: VH
A3: ='Formular Bundesprogramm'!D3 ->  | B3: ='Formular Bundesprogramm'!B9 -> 0 | C3: ='Formular Bundesprogramm'!B11 -> 0 | D3: ='Formular Bundesprogramm'!B13 -> 0 | E3: ='Formular Bundesprogramm'!B15 -> 0 | F3: ='Formular Bundesprogramm'!B17 -> Bitte auswählen! | G3: ='Formular Bundesprogramm'!D$17 ->  | H3: =IF(LEN(TRIM('Formular Bundesprogramm'!B20))>0,'Formular Bundesprogramm'!B20,"") ->  | I3: ='Formular Bundesprogramm'!B22 -> 0 | J3: =IF('Formular Bundesprogramm'!B27="Keine Auswahl getroffen!","",'Formular Bundesprogramm'!B27) ->  | K3: =IF(LEN(TRIM('Formular Bundesprogramm'!B31))>0,'Formular Bundesprogramm'!B31,"") ->  | L3: ='Formular Bundesprogramm'!B33 -> 0 | M3: ='Formular Bundesprogramm'!D33 -> 0 | N3: ='Formular Bundesprogramm'!B36 -> 0 | O3: ='Formular Bundesprogramm'!C36 -> 0 | P3: ='Formular Bundesprogramm'!C39 ->  | Q3: ='Formular Bundesprogramm'!B39 -> 0 | R3: ='Formular Bundesprogramm'!B41 -> 0 | S3: ='Formular Bundesprogramm'!B47 -> 0 | T3: ='Formular Bundesprogramm'!B49 -> 0 | U3: ='Formular Bundesprogramm'!B51 -> 0 | V3: ='Formular Bundesprogramm'!B53 -> 0 | W3: ='Formular Bundesprogramm'!B55 -> 0 | X3: ='Formular Bundesprogramm'!B57 -> 0 | Y3: ='Formular Bundesprogramm'!D55 -> 0 | Z3: ='Formular Bundesprogramm'!I47 -> 0 | AA3: 0 | AB3: 0 | AC3: 0 | AD3: 0 | AE3: 0 | AF3: 0 | AG3: ='Formular Bundesprogramm'!B64 -> 0 | AH3: ='Formular Bundesprogramm'!B66 -> 0 | AI3: ='Formular Bundesprogramm'!B68 -> 0 | AJ3: ='Formular Bundesprogramm'!I76 -> 0 | AK3: ='Formular Bundesprogramm'!I82 -> 0 | AL3: ='Formular Bundesprogramm'!I84 -> 0 | AM3: ='Formular Bundesprogramm'!I86 -> 0 | AN3: ='Formular Bundesprogramm'!D83 -> 00:00:00 | AO3: ='Formular Bundesprogramm'!D85 -> 00:00:00 | AP3: ='Formular Bundesprogramm'!I91 -> 0 | AQ3: =IF(LEN(TRIM('Formular Bundesprogramm'!B95))>0, 'Formular Bundesprogramm'!B95, "") ->  | AR3: ='Formular Bundesprogramm'!D4 -> 2022-01-21T12:31:36.800 | AS3: ='Formular Bundesprogramm'!I110 -> 0 | AT3: =IF(LEN(TRIM('Formular Bundesprogramm'!C109))>0,'Formular Bundesprogramm'!C109,"") ->  | AU3: =IF(LEN(TRIM('Formular Bundesprogramm'!C114))>0,'Formular Bundesprogramm'!C114,"") ->  | AV3: =IF(LEN(TRIM('Formular Bundesprogramm'!B116))>0,'Formular Bundesprogramm'!B116,"") ->  | BJ3: ='Formular Bundesprogramm'!I30 -> 0
AV5: umbenannt | AW5: umbenannt | AX5: In E2 und E3 fest "B" reinschreiben, da hier nur Bundesprogramm | AY5: In E2 und E3 fest "B" reinschreiben, da hier nur Bundesprogramm | AZ5: In E2 und E3 fest "B" reinschreiben, da hier nur Bundesprogramm | BA5: In E2 und E3 fest "B" reinschreiben, da hier nur Bundesprogramm | BB5: In E2 und E3 fest "B" reinschreiben, da hier nur Bundesprogramm
AX7: #WENN(LÄNGE(GLÄTTEN(E3))>0;E3;"") | AY7: #WENN(LÄNGE(GLÄTTEN(E3))>0;E3;"") | AZ7: #WENN(LÄNGE(GLÄTTEN(E3))>0;E3;"") | BA7: #WENN(LÄNGE(GLÄTTEN(E3))>0;E3;"") | BB7: #WENN(LÄNGE(GLÄTTEN(E3))>0;E3;"")
AX8: #WENN('Formular Bundesprogramm'!$B$17="Bitte auswählen!";" ";SVERWEIS('Formular Bundesprogramm'!$B$17;'Werteliste IDENT_LAND'!A1:F7980;4;FALSCH)) | AY8: #WENN('Formular Bundesprogramm'!$B$17="Bitte auswählen!";" ";SVERWEIS('Formular Bundesprogramm'!$B$17;'Werteliste IDENT_LAND'!A1:F7980;4;FALSCH)) | AZ8: #WENN('Formular Bundesprogramm'!$B$17="Bitte auswählen!";" ";SVERWEIS('Formular Bundesprogramm'!$B$17;'Werteliste IDENT_LAND'!A1:F7980;4;FALSCH)) | BA8: #WENN('Formular Bundesprogramm'!$B$17="Bitte auswählen!";" ";SVERWEIS('Formular Bundesprogramm'!$B$17;'Werteliste IDENT_LAND'!A1:F7980;4;FALSCH)) | BB8: #WENN('Formular Bundesprogramm'!$B$17="Bitte auswählen!";" ";SVERWEIS('Formular Bundesprogramm'!$B$17;'Werteliste IDENT_LAND'!A1:F7980;4;FALSCH))
K11: #WENN(LÄNGE(GLÄTTEN('Formular Bundesprogramm'!B29))>0;'Formular Bundesprogramm'!B31;"") | BF11: Förderbereich lt. Vorgabe Bund
BC12: Sollen wir hier schon Nummern festlegen? Ist eine ID für einen Förderbereich nötig?
A14: Feldreihenfolge KIP-Datenbank:
A15: IDENT_LAND | B15: L_ANSPRECHPARTNER_NAME | C15: L_ANSPRECHPARTNER_VORNAME | D15: L_ANSPRECHPARTNER_TELEFON | E15: L_ANSPRECHPARTNER_E_MAIL | F15: ANMELDENDER | G15: GKZ | H15: LANDKREIS | I15: TRÄGER | J15: BESCHREIBUNG | K15: BEZ_MASSNAME | L15: BELEGENHEIT_STRASSE | M15: BELEGENHEIT_HAUSNR | N15: BELEGENHEIT_PLZ | O15: BELEGENHEIT_ORT | P15: BELEGENHEIT_GKZ | Q15: BELEGENHEIT_GEMEINDE | R15: ANZAHL | S15: FOERDMITTEL_BEANTR | T15: ANTEIL_90_80 | U15: ANTEIL_10_20 | V15: EIGENMITTEL | W15: DRITTMITTEL | X15: SUMME_INVEST_VOL | Y15: GESAMTKOSTEN | Z15: OEPP | AA15: FOERDMITTEL_ABRUF_2016 | AB15: FOERDMITTEL_ABRUF_2017 | AC15: FOERDMITTEL_ABRUF_2018 | AD15: FOERDMITTEL_ABRUF_2019 | AE15: FOERDMITTEL_ABRUF_2020 | AF15: FOERDMITTEL_ABRUF_2021 | AG15: FOERDMITTEL_ABRUF_2022 | AH15: FOERDMITTEL_ABRUF_2023 | AI15: FOERDMITTEL_ABRUF_SUM | AJ15: L_AUFTEILUNG_VOST | AK15: CHK_GESAMTFINANZIERUNG | AL15: CHK_NACHHALTIGKEIT | AM15: CHK_DOPPELFOERDERUNG | AN15: MASSNAHMENBEGINN | AO15: VORAUS_ENDABNAHME | AP15: L_EINHALTUNG_RL | AQ15: BEMERKUNG | AR15: DAT_ABGABE | AS15: BERUECK_AND_FOERPROG | AT15: NAME_AND_FOERPROG | AU15: BEANTR_AND_FOERDPROG | AV15: BEMERK_AND_FOERDPROG | AW15: WIBank_Zustimmung | AX15: WIBank_Prüfer | AY15: WIBank_Prüfer_Telefon | AZ15: WIBank_Datum_Zustimmung | BA15: WiBank_Prüfbemerkung | BB15: HMDF_SICHTVERMERK | BC15: HMDF_PRUEFER | BD15: HMDF_PRUEFER_TEL | BE15: HMDF_SICHTVERMERK_DAT | BF15: HMDF_SICHTVERMERK_BEM | BG15: KOMMUNALES_INVVOL | BH15: PRUEFVERMERK | BI15: FOERDMITTEL_BEANTRAGT | BJ15: FB | BK15: VH_VN | BL15: CHK_KIP1 | BM15: CHK_KIP1_IDENT | BN15: CHK_SCHULENTWPL | BO15: KZ_SCHULTRAEGER | BP15: KZ_FOERDBER_KIP2 | BQ15: CHK_ENERG_ANF | BR15: FOERDFAEHIG_KOSTEN
A16: Feldreihenfolge Tabellenblat EXCEL-Tabelle per Mail:
A17: IDENT_LAND | B17: L_ANSPRECHPARTNER_NAME | C17: L_ANSPRECHPARTNER_VORNAME | D17: L_ANSPRECHPARTNER_TELEFON | E17: L_ANSPRECHPARTNER_E_MAIL | F17: ANMELDENDER | G17: GKZ | H17: LANDKREIS | I17: TRÄGER | J17: BESCHREIBUNG | K17: BEZ_MASSNAME | L17: BELEGENHEIT_STRASSE | M17: BELEGENHEIT_HAUSNR | N17: BELEGENHEIT_PLZ | O17: BELEGENHEIT_ORT | P17: BELEGENHEIT_GKZ | Q17: BELEGENHEIT_GEMEINDE | R17: ANZAHL | S17: FOERDMITTEL_BEANTR | T17: ANTEIL_90_80 | U17: ANTEIL_10_20 | V17: EIGENMITTEL | W17: DRITTMITTEL | X17: SUMME_INVEST_VOL | Y17: GESAMTKOSTEN | Z17: OEPP | AA17: FOERDMITTEL_ABRUF_2016 | AB17: FOERDMITTEL_ABRUF_2017 | AC17: FOERDMITTEL_ABRUF_2018 | AD17: FOERDMITTEL_ABRUF_2019 | AE17: FOERDMITTEL_ABRUF_2020 | AF17: FOERDMITTEL_ABRUF_2021 | AG17: FOERDMITTEL_ABRUF_2022 | AH17: FOERDMITTEL_ABRUF_2023 | AI17: FOERDMITTEL_ABRUF_SUM | AJ17: L_AUFTEILUNG_VOST | AK17: CHK_GESAMTFINANZIERUNG | AL17: CHK_NACHHALTIGKEIT | AM17: CHK_DOPPELFOERDERUNG | AN17: MASSNAHMENBEGINN | AO17: VORAUS_ENDABNAHME | AP17: L_EINHALTUNG_RL | AQ17: BEMERKUNG | AR17: DAT_ABGABE | AS17: BERUECK_AND_FOERPROG | AT17: NAME_AND_FOERPROG | AU17: BEANTR_AND_FOERDPROG | AV17: BEMERK_AND_FOERDPROG | AW17: WIBank_Zustimmung | AX17: WIBank_Prüfer | AY17: WIBank_Prüfer_Telefon | AZ17: WIBank_Datum_Zustimmung | BA17: WiBank_Prüfbemerkung | BB17: HMDF_SICHTVERMERK | BC17: HMDF_PRUEFER | BD17: HMDF_PRUEFER_TEL | BE17: HMDF_SICHTVERMERK_DAT | BF17: HMDF_SICHTVERMERK_BEM | BG17: KOMMUNALES_INVVOL | BH17: PRUEFVERMERK | BI17: FOERDMITTEL_BEANTRAGT | BJ17: FB | BK17: VH_VN
A20: Abgleich der Feldreihenfolge (WAHR = Übereinstimmung):
A21: =EXACT(A1,A15) -> TRUE | B21: =EXACT(B1,B15) -> TRUE | C21: TRUE | D21: TRUE | E21: TRUE | F21: TRUE | G21: TRUE | H21: TRUE | I21: TRUE | J21: TRUE | K21: TRUE | L21: =EXACT(L1,L15) -> TRUE | M21: TRUE | N21: TRUE | O21: =EXACT(O1,O15) -> TRUE | P21: =EXACT(P1,P15) -> TRUE | Q21: TRUE | R21: TRUE | S21: TRUE | T21: TRUE | U21: TRUE | V21: TRUE | W21: =EXACT(W1,W15) -> TRUE | X21: TRUE | Y21: TRUE | Z21: TRUE | AA21: TRUE | AB21: TRUE | AC21: TRUE | AD21: TRUE | AE21: TRUE | AF21: =EXACT(AF1,AF15) -> TRUE | AG21: =EXACT(AG1,AG15) -> TRUE | AH21: TRUE | AI21: TRUE | AJ21: TRUE | AK21: TRUE | AL21: TRUE | AM21: TRUE | AN21: TRUE | AO21: TRUE | AP21: TRUE | AQ21: TRUE | AR21: TRUE | AS21: TRUE | AT21: TRUE | AU21: TRUE | AV21: TRUE | AW21: TRUE | AX21: TRUE | AY21: TRUE | AZ21: TRUE | BA21: TRUE | BB21: TRUE | BC21: TRUE | BD21: TRUE | BE21: TRUE | BF21: TRUE | BG21: TRUE | BH21: TRUE | BI21: TRUE | BJ21: TRUE | BK21: TRUE
A22: =EXACT(A15,A17) -> TRUE | B22: =EXACT(B15,B17) -> TRUE | C22: TRUE | D22: TRUE | E22: TRUE | F22: TRUE | G22: TRUE | H22: TRUE | I22: TRUE | J22: TRUE | K22: TRUE | L22: TRUE | M22: TRUE | N22: =EXACT(N15,N17) -> TRUE | O22: =EXACT(O15,O17) -> TRUE | P22: TRUE | Q22: TRUE | R22: TRUE | S22: TRUE | T22: TRUE | U22: TRUE | V22: TRUE | W22: TRUE | X22: TRUE | Y22: TRUE | Z22: TRUE | AA22: TRUE | AB22: TRUE | AC22: TRUE | AD22: TRUE | AE22: TRUE | AF22: TRUE | AG22: TRUE | AH22: TRUE | AI22: TRUE | AJ22: TRUE | AK22: TRUE | AL22: TRUE | AM22: TRUE | AN22: TRUE | AO22: TRUE | AP22: TRUE | AQ22: TRUE | AR22: TRUE | AS22: TRUE | AT22: TRUE | AU22: TRUE | AV22: =EXACT(AV15,AV17) -> TRUE | AW22: TRUE | AX22: TRUE | AY22: TRUE | AZ22: TRUE | BA22: TRUE | BB22: TRUE | BC22: TRUE | BD22: TRUE | BE22: TRUE | BF22: TRUE | BG22: TRUE | BH22: TRUE | BI22: TRUE | BJ22: TRUE | BK22: TRUE
P28: zuviel

Sheet EXCEL-Tabelle per Mail (hidden)
A1: IDENT_LAND | B1: L_ANSPRECHPARTNER_NAME | C1: L_ANSPRECHPARTNER_VORNAME | D1: L_ANSPRECHPARTNER_TELEFON | E1: L_ANSPRECHPARTNER_E_MAIL | F1: ANMELDENDER | G1: GKZ | H1: LANDKREIS | I1: TRÄGER | J1: BESCHREIBUNG | K1: BEZ_MASSNAME | L1: BELEGENHEIT_STRASSE | M1: BELEGENHEIT_HAUSNR | N1: BELEGENHEIT_PLZ | O1: BELEGENHEIT_ORT | P1: BELEGENHEIT_GKZ | Q1: BELEGENHEIT_GEMEINDE | R1: ANZAHL | S1: FOERDMITTEL_BEANTR | T1: ANTEIL_90_80 | U1: ANTEIL_10_20 | V1: EIGENMITTEL | W1: DRITTMITTEL | X1: SUMME_INVEST_VOL | Y1: GESAMTKOSTEN | Z1: OEPP | AA1: FOERDMITTEL_ABRUF_2016 | AB1: FOERDMITTEL_ABRUF_2017 | AC1: FOERDMITTEL_ABRUF_2018 | AD1: FOERDMITTEL_ABRUF_2019 | AE1: FOERDMITTEL_ABRUF_2020 | AF1: FOERDMITTEL_ABRUF_2021 | AG1: FOERDMITTEL_ABRUF_2022 | AH1: FOERDMITTEL_ABRUF_2023 | AI1: FOERDMITTEL_ABRUF_SUM | AJ1: L_AUFTEILUNG_VOST | AK1: CHK_GESAMTFINANZIERUNG | AL1: CHK_NACHHALTIGKEIT | AM1: CHK_DOPPELFOERDERUNG | AN1: MASSNAHMENBEGINN | AO1: VORAUS_ENDABNAHME | AP1: L_EINHALTUNG_RL | AQ1: BEMERKUNG | AR1: DAT_ABGABE | AS1: BERUECK_AND_FOERPROG | AT1: NAME_AND_FOERPROG | AU1: BEANTR_AND_FOERDPROG | AV1: BEMERK_AND_FOERDPROG | AW1: WIBank_Zustimmung | AX1: WIBank_Prüfer | AY1: WIBank_Prüfer_Telefon | AZ1: WIBank_Datum_Zustimmung | BA1: WiBank_Prüfbemerkung | BB1: HMDF_SICHTVERMERK | BC1: HMDF_PRUEFER | BD1: HMDF_PRUEFER_TEL | BE1: HMDF_SICHTVERMERK_DAT | BF1: HMDF_SICHTVERMERK_BEM | BG1: KOMMUNALES_INVVOL | BH1: PRUEFVERMERK | BI1: FOERDMITTEL_BEANTRAGT | BJ1: FB | BK1: VH_VN

Sheet Werteliste IDENT_LAND (hidden)
A1: Bitte auswählen! | B1: Zuordnung zu Landkreis oder kreisfreie Stadt | C1: GEMEINDESCHLUESSEL | D1: PROGRAMM | E1: ID_FOERDB | F1: 1 | G1: Bitte auswählen! | H1: GEMEINDESCHLUESSEL FÜR IDENT | I1: Bitte auswählen! | J1: 1 | L1: 1 | M1: für GKZ Belegenheit | N1: 1 | P1: - | Q1: 1
F2: 2 | G2: Bitte auswählen! | I2: Bitte auswählen! | L2: 2 | N2: 2 | O2: 06411000 | P2: Darmstadt | Q2: 3
A3: Darmstadt | B3: Kreisfreie Stadt | C3: 06411 | D3: B | F3: 3 | G3: Darmstadt | H3: 06411000 | I3: Darmstadt | J3: 411000 | K3: =VLOOKUP(J3,Adressen!$F$1:$L$469,7,FALSE) -> 64283 | L3: 3 | N3: 3 | O3: 06412000 | P3: Frankfurt am Main | Q3: 4
A4: Frankfurt am Main | B4: Kreisfreie Stadt | C4: 06412 | D4: B | F4: 4 | G4: Frankfurt am Main | H4: 06412000 | I4: Frankfurt am Main | J4: 412000 | K4: =VLOOKUP(J4,Adressen!$F$1:$L$469,7,FALSE) -> 60311 | L4: 4 | N4: 4 | O4: 06413000 | P4: Offenbach am Main | Q4: 5
A5: Offenbach am Main | B5: Kreisfreie Stadt | C5: 06413 | D5: B | F5: 5 | G5: Offenbach am Main | H5: 06413000 | I5: Offenbach am Main | J5: 413000 | K5: =VLOOKUP(J5,Adressen!$F$1:$L$469,7,FALSE) -> 63065 | L5: 5 | N5: 5 | O5: 06414000 | P5: Wiesbaden | Q5: 6
A6: Wiesbaden | B6: Kreisfreie Stadt | C6: 06414 | D6: B | F6: 6 | G6: Wiesbaden | H6: 06414000 | I6: Wiesbaden | J6: 414000 | K6: =VLOOKUP(J6,Adressen!$F$1:$L$469,7,FALSE) -> 65183 | L6: 6 | N6: 6 | O6: 06431000 | P6: LK Bergstraße | Q6: 8
D7: B | F7: 7 | G7: Bitte auswählen! | I7: Bitte auswählen! | L7: 7 | N7: 7 | O7: 06431001 | P7: Abtsteinach | Q7: 9
A8: LK Bergstraße | B8: LK Bergstraße | C8: 06431 | D8: B | F8: 8 | G8: LK Bergstraße | H8: 06431000 | I8: LK Bergstraße | J8: 431000 | K8: =VLOOKUP(J8,Adressen!$F$1:$L$469,7,FALSE) -> 64646 | L8: 8 | N8: 8 | O8: 06431002 | P8: Bensheim | Q8: 10
A9: Abtsteinach | B9: LK Bergstraße | C9: 06431001 | D9: B | F9: 9 | G9: Abtsteinach | H9: 06431001 | I9: Abtsteinach | J9: 431001 | K9: =VLOOKUP(J9,Adressen!$F$1:$L$469,7,FALSE) -> 69518 | L9: 9 | N9: 9 | O9: 06431003 | P9: Biblis | Q9: 11
A10: Bensheim | B10: LK Bergstraße | C10: 06431002 | D10: B | F10: 10 | G10: Bensheim | H10: 06431002 | I10: Bensheim | J10: 431002 | K10: =VLOOKUP(J10,Adressen!$F$1:$L$469,7,FALSE) -> 64625 | L10: 10 | N10: 10 | O10: 06431004 | P10: Birkenau | Q10: 12
A11: Biblis | B11: LK Bergstraße | C11: 06431003 | D11: B | F11: 11 | G11: Biblis | H11: 06431003 | I11: Biblis | J11: 431003 | K11: =VLOOKUP(J11,Adressen!$F$1:$L$469,7,FALSE) -> 68647 | L11: 11 | N11: 11 | O11: 06431005 | P11: Bürstadt | Q11: 13
A12: Birkenau | B12: LK Bergstraße | C12: 06431004 | D12: B | F12: 12 | G12: Birkenau | H12: 06431004 | I12: Birkenau | J12: 431004 | K12: =VLOOKUP(J12,Adressen!$F$1:$L$469,7,FALSE) -> 69488 | L12: 12 | N12: 12 | O12: 06431006 | P12: Einhausen | Q12: 14
A13: Bürstadt | B13: LK Bergstraße | C13: 06431005 | D13: B | F13: 13 | G13: Bürstadt | H13: 06431005 | I13: Bürstadt | J13: 431005 | K13: =VLOOKUP(J13,Adressen!$F$1:$L$469,7,FALSE) -> 68642 | L13: 13 | N13: 13 | O13: 06431007 | P13: Fürth | Q13: 15
A14: Einhausen | B14: LK Bergstraße | C14: 06431006 | D14: B | F14: 14 | G14: Einhausen | H14: 06431006 | I14: Einhausen | J14: 431006 | K14: =VLOOKUP(J14,Adressen!$F$1:$L$469,7,FALSE) -> 64683 | L14: 14 | N14: 14 | O14: 06431008 | P14: Gorxheimertal | Q14: 16
A15: Fürth | B15: LK Bergstraße | C15: 06431007 | D15: B | F15: 15 | G15: Fürth | H15: 06431007 | I15: Fürth | J15: 431007 | K15: =VLOOKUP(J15,Adressen!$F$1:$L$469,7,FALSE) -> 64658 | L15: 15 | N15: 15 | O15: 06431009 | P15: Grasellenbach | Q15: 17
A16: Gorxheimertal | B16: LK Bergstraße | C16: 06431008 | D16: B | F16: 16 | G16: Gorxheimertal | H16: 06431008 | I16: Gorxheimertal | J16: 431008 | K16: =VLOOKUP(J16,Adressen!$F$1:$L$469,7,FALSE) -> 69517 | L16: 16 | N16: 16 | O16: 06431010 | P16: Groß-Rohrheim | Q16: 18
A17: Grasellenbach | B17: LK Bergstraße | C17: 06431009 | D17: B | F17: 17 | G17: Grasellenbach | H17: 06431009 | I17: Grasellenbach | J17: 431009 | K17: =VLOOKUP(J17,Adressen!$F$1:$L$469,7,FALSE) -> 64689 | L17: 17 | N17: 17 | O17: 06431011 | P17: Heppenheim (Bergstraße) | Q17: 19
A18: Groß-Rohrheim | B18: LK Bergstraße | C18: 06431010 | D18: B | F18: 18 | G18: Groß-Rohrheim | H18: 06431010 | I18: Groß-Rohrheim | J18: 431010 | K18: =VLOOKUP(J18,Adressen!$F$1:$L$469,7,FALSE) -> 68649 | L18: 18 | N18: 18 | O18: 06431012 | P18: Hirschhorn (Neckar) | Q18: 20
A19: Heppenheim (Bergstraße) | B19: LK Bergstraße | C19: 06431011 | D19: B | F19: 19 | G19: Heppenheim (Bergstraße) | H19: 06431011 | I19: Heppenheim (Bergstraße) | J19: 431011 | K19: =VLOOKUP(J19,Adressen!$F$1:$L$469,7,FALSE) -> 64646 | L19: 19 | N19: 19 | O19: 06431013 | P19: Lampertheim | Q19: 21
A20: Hirschhorn (Neckar) | B20: LK Bergstraße | C20: 06431012 | D20: B | F20: 20 | G20: Hirschhorn (Neckar) | H20: 06431012 | I20: Hirschhorn (Neckar) | J20: 431012 | K20: =VLOOKUP(J20,Adressen!$F$1:$L$469,7,FALSE) -> 69434 | L20: 20 | N20: 20 | O20: 06431014 | P20: Lautertal (Odenwald) | Q20: 22
A21: Lampertheim | B21: LK Bergstraße | C21: 06431013 | D21: B | F21: 21 | G21: Lampertheim | H21: 06431013 | I21: Lampertheim | J21: 431013 | K21: =VLOOKUP(J21,Adressen!$F$1:$L$469,7,FALSE) -> 68623 | L21: 21 | N21: 21 | O21: 06431015 | P21: Lindenfels | Q21: 23
A22: Lautertal (Odenwald) | B22: LK Bergstraße | C22: 06431014 | D22: B | F22: 22 | G22: Lautertal (Odenwald) | H22: 06431014 | I22: Lautertal (Odenwald) | J22: 431014 | K22: =VLOOKUP(J22,Adressen!$F$1:$L$469,7,FALSE) -> 64686 | L22: 22 | N22: 22 | O22: 06431016 | P22: Lorsch | Q22: 24
A23: Lindenfels | B23: LK Bergstraße | C23: 06431015 | D23: B | F23: 23 | G23: Lindenfels | H23: 06431015 | I23: Lindenfels | J23: 431015 | K23: =VLOOKUP(J23,Adressen!$F$1:$L$469,7,FALSE) -> 64678 | L23: 23 | N23: 23 | O23: 06431017 | P23: Mörlenbach | Q23: 25
A24: Lorsch | B24: LK Bergstraße | C24: 06431016 | D24: B | F24: 24 | G24: Lorsch | H24: 06431016 | I24: Lorsch | J24: 431016 | K24: =VLOOKUP(J24,Adressen!$F$1:$L$469,7,FALSE) -> 64653 | L24: 24 | N24: 24 | O24: 06431018 | P24: Neckarsteinach | Q24: 26
A25: Mörlenbach | B25: LK Bergstraße | C25: 06431017 | D25: B | F25: 25 | G25: Mörlenbach | H25: 06431017 | I25: Mörlenbach | J25: 431017 | K25: =VLOOKUP(J25,Adressen!$F$1:$L$469,7,FALSE) -> 69509 | L25: 25 | N25: 25 | O25: 06431019 | P25: Rimbach | Q25: 27
A26: Neckarsteinach | B26: LK Bergstraße | C26: 06431018 | D26: B | F26: 26 | G26: Neckarsteinach | H26: 06431018 | I26: Neckarsteinach | J26: 431018 | K26: =VLOOKUP(J26,Adressen!$F$1:$L$469,7,FALSE) -> 69239 | L26: 26 | N26: 26 | O26: 06431020 | P26: Viernheim | Q26: 28
A27: Rimbach | B27: LK Bergstraße | C27: 06431019 | D27: B | F27: 27 | G27: Rimbach | H27: 06431019 | I27: Rimbach | J27: 431019 | K27: =VLOOKUP(J27,Adressen!$F$1:$L$469,7,FALSE) -> 64668 | L27: 27 | N27: 27 | O27: 06431021 | P27: Wald-Michelbach | Q27: 29
A28: Viernheim | B28: LK Bergstraße | C28: 06431020 | D28: B | F28: 28 | G28: Viernheim | H28: 06431020 | I28: Viernheim | J28: 431020 | K28: =VLOOKUP(J28,Adressen!$F$1:$L$469,7,FALSE) -> 68519 | L28: 28 | N28: 28 | O28: 06431022 | P28: Zwingenberg | Q28: 30
A29: Wald-Michelbach | B29: LK Bergstraße | C29: 06431021 | D29: B | F29: 29 | G29: Wald-Michelbach | H29: 06431021 | I29: Wald-Michelbach | J29: 431021 | K29: =VLOOKUP(J29,Adressen!$F$1:$L$469,7,FALSE) -> 69483 | L29: 29 | N29: 29 | O29: 06432000 | P29: LK Darmstadt-Dieburg | Q29: 32
A30: Zwingenberg | B30: LK Bergstraße | C30: 06431022 | D30: B | F30: 30 | G30: Zwingenberg | H30: 06431022 | I30: Zwingenberg | J30: 431022 | K30: =VLOOKUP(J30,Adressen!$F$1:$L$469,7,FALSE) -> 64673 | L30: 30 | N30: 30 | O30: 06432001 | P30: Alsbach-Hähnlein | Q30: 33
D31: B | F31: 31 | G31: Bitte auswählen! | I31: Bitte auswählen! | L31: 31 | N31: 31 | O31: 06432002 | P31: Babenhausen | Q31: 34
A32: LK Darmstadt-Dieburg | B32: LK Darmstadt-Dieburg | C32: 06432 | D32: B | F32: 32 | G32: LK Darmstadt-Dieburg | H32: 06432000 | I32: LK Darmstadt-Dieburg | J32: 432000 | K32: =VLOOKUP(J32,Adressen!$F$1:$L$469,7,FALSE) -> 64289 | L32: 32 | N32: 32 | O32: 06432003 | P32: Bickenbach | Q32: 35
A33: Alsbach-Hähnlein | B33: LK Darmstadt-Dieburg | C33: 06432001 | D33: B | F33: 33 | G33: Alsbach-Hähnlein | H33: 06432001 | I33: Alsbach-Hähnlein | J33: 432001 | K33: =VLOOKUP(J33,Adressen!$F$1:$L$469,7,FALSE) -> 64665 | L33: 33 | N33: 33 | O33: 06432004 | P33: Dieburg | Q33: 36
A34: Babenhausen | B34: LK Darmstadt-Dieburg | C34: 06432002 | D34: B | F34: 34 | G34: Babenhausen | H34: 06432002 | I34: Babenhausen | J34: 432002 | K34: =VLOOKUP(J34,Adressen!$F$1:$L$469,7,FALSE) -> 64832 | L34: 34 | N34: 34 | O34: 06432005 | P34: Eppertshausen | Q34: 37
A35: Bickenbach | B35: LK Darmstadt-Dieburg | C35: 06432003 | D35: B | F35: 35 | G35: Bickenbach | H35: 06432003 | I35: Bickenbach | J35: 432003 | K35: =VLOOKUP(J35,Adressen!$F$1:$L$469,7,FALSE) -> 64404 | L35: 35 | N35: 35 | O35: 06432006 | P35: Erzhausen | Q35: 38
A36: Dieburg | B36: LK Darmstadt-Dieburg | C36: 06432004 | D36: B | F36: 36 | G36: Dieburg | H36: 06432004 | I36: Dieburg | J36: 432004 | K36: =VLOOKUP(J36,Adressen!$F$1:$L$469,7,FALSE) -> 64807 | L36: 36 | N36: 36 | O36: 06432007 | P36: Fischbachtal | Q36: 39
A37: Eppertshausen | B37: LK Darmstadt-Dieburg | C37: 06432005 | D37: B | F37: 37 | G37: Eppertshausen | H37: 06432005 | I37: Eppertshausen | J37: 432005 | K37: =VLOOKUP(J37,Adressen!$F$1:$L$469,7,FALSE) -> 64859 | L37: 37 | N37: 37 | O37: 06432008 | P37: Griesheim | Q37: 40
A38: Erzhausen | B38: LK Darmstadt-Dieburg | C38: 06432006 | D38: B | F38: 38 | G38: Erzhausen | H38: 06432006 | I38: Erzhausen | J38: 432006 | K38: =VLOOKUP(J38,Adressen!$F$1:$L$469,7,FALSE) -> 64390 | L38: 38 | N38: 38 | O38: 06432009 | P38: Groß-Bieberau | Q38: 41
A39: Fischbachtal | B39: LK Darmstadt-Dieburg | C39: 06432007 | D39: B | F39: 39 | G39: Fischbachtal | H39: 06432007 | I39: Fischbachtal | J39: 432007 | K39: =VLOOKUP(J39,Adressen!$F$1:$L$469,7,FALSE) -> 64405 | L39: 39 | N39: 39 | O39: 06432010 | P39: Groß-Umstadt | Q39: 42
A40: Griesheim | B40: LK Darmstadt-Dieburg | C40: 06432008 | D40: B | F40: 40 | G40: Griesheim | H40: 06432008 | I40: Griesheim | J40: 432008 | K40: =VLOOKUP(J40,Adressen!$F$1:$L$469,7,FALSE) -> 64347 | L40: 40 | N40: 40 | O40: 06432011 | P40: Groß-Zimmern | Q40: 43
A41: Groß-Bieberau | B41: LK Darmstadt-Dieburg | C41: 06432009 | D41: B | F41: 41 | G41: Groß-Bieberau | H41: 06432009 | I41: Groß-Bieberau | J41: 432009 | K41: =VLOOKUP(J41,Adressen!$F$1:$L$469,7,FALSE) -> 64401 | L41: 41 | N41: 41 | O41: 06432012 | P41: Messel | Q41: 44
A42: Groß-Umstadt | B42: LK Darmstadt-Dieburg | C42: 06432010 | D42: B | F42: 42 | G42: Groß-Umstadt | H42: 06432010 | I42: Groß-Umstadt | J42: 432010 | K42: =VLOOKUP(J42,Adressen!$F$1:$L$469,7,FALSE) -> 64823 | L42: 42 | N42: 42 | O42: 06432013 | P42: Modautal | Q42: 45
A43: Groß-Zimmern | B43: LK Darmstadt-Dieburg | C43: 06432011 | D43: B | F43: 43 | G43: Groß-Zimmern | H43: 06432011 | I43: Groß-Zimmern | J43: 432011 | K43: =VLOOKUP(J43,Adressen!$F$1:$L$469,7,FALSE) -> 64846 | L43: 43 | N43: 43 | O43: 06432014 | P43: Mühltal | Q43: 46
A44: Messel | B44: LK Darmstadt-Dieburg | C44: 06432012 | D44: B | F44: 44 | G44: Messel | H44: 06432012 | I44: Messel | J44: 432012 | K44: =VLOOKUP(J44,Adressen!$F$1:$L$469,7,FALSE) -> 64409 | L44: 44 | N44: 44 | O44: 06432015 | P44: Münster | Q44: 47
A45: Modautal | B45: LK Darmstadt-Dieburg | C45: 06432013 | D45: B | F45: 45 | G45: Modautal | H45: 06432013 | I45: Modautal | J45: 432013 | K45: =VLOOKUP(J45,Adressen!$F$1:$L$469,7,FALSE) -> 64397 | L45: 45 | N45: 45 | O45: 06432016 | P45: Ober-Ramstadt | Q45: 48
A46: Mühltal | B46: LK Darmstadt-Dieburg | C46: 06432014 | D46: B | F46: 46 | G46: Mühltal | H46: 06432014 | I46: Mühltal | J46: 432014 | K46: =VLOOKUP(J46,Adressen!$F$1:$L$469,7,FALSE) -> 64367 | L46: 46 | N46: 46 | O46: 06432017 | P46: Otzberg | Q46: 49
A47: Münster | B47: LK Darmstadt-Dieburg | C47: 06432015 | D47: B | F47: 47 | G47: Münster | H47: 06432015 | I47: Münster | J47: 432015 | K47: =VLOOKUP(J47,Adressen!$F$1:$L$469,7,FALSE) -> 64839 | L47: 47 | N47: 47 | O47: 06432018 | P47: Pfungstadt | Q47: 50
A48: Ober-Ramstadt | B48: LK Darmstadt-Dieburg | C48: 06432016 | D48: B | F48: 48 | G48: Ober-Ramstadt | H48: 06432016 | I48: Ober-Ramstadt | J48: 432016 | K48: =VLOOKUP(J48,Adressen!$F$1:$L$469,7,FALSE) -> 64372 | L48: 48 | N48: 48 | O48: 06432019 | P48: Reinheim | Q48: 51
A49: Otzberg | B49: LK Darmstadt-Dieburg | C49: 06432017 | D49: B | F49: 49 | G49: Otzberg | H49: 06432017 | I49: Otzberg | J49: 432017 | K49: =VLOOKUP(J49,Adressen!$F$1:$L$469,7,FALSE) -> 64853 | L49: 49 | N49: 49 | O49: 06432020 | P49: Roßdorf | Q49: 52
A50: Pfungstadt | B50: LK Darmstadt-Dieburg | C50: 06432018 | D50: B | F50: 50 | G50: Pfungstadt | H50: 06432018 | I50: Pfungstadt | J50: 432018 | K50: =VLOOKUP(J50,Adressen!$F$1:$L$469,7,FALSE) -> 64319 | L50: 50 | N50: 50 | O50: 06432021 | P50: Schaafheim | Q50: 53
A51: Reinheim | B51: LK Darmstadt-Dieburg | C51: 06432019 | D51: B | F51: 51 | G51: Reinheim | H51: 06432019 | I51: Reinheim | J51: 432019 | K51: =VLOOKUP(J51,Adressen!$F$1:$L$469,7,FALSE) -> 64354 | L51: 51 | N51: 51 | O51: 06432022 | P51: Seeheim-Jugenheim | Q51: 54
A52: Roßdorf | B52: LK Darmstadt-Dieburg | C52: 06432020 | D52: B | F52: 52 | G52: Roßdorf | H52: 06432020 | I52: Roßdorf | J52: 432020 | K52: =VLOOKUP(J52,Adressen!$F$1:$L$469,7,FALSE) -> 64380 | L52: 52 | N52: 52 | O52: 06432023 | P52: Weiterstadt | Q52: 55
A53: Schaafheim | B53: LK Darmstadt-Dieburg | C53: 06432021 | D53: B | F53: 53 | G53: Schaafheim | H53: 06432021 | I53: Schaafheim | J53: 432021 | K53: =VLOOKUP(J53,Adressen!$F$1:$L$469,7,FALSE) -> 64850 | L53: 53 | N53: 53 | O53: 06433000 | P53: LK Groß-Gerau | Q53: 57
A54: Seeheim-Jugenheim | B54: LK Darmstadt-Dieburg | C54: 06432022 | D54: B | F54: 54 | G54: Seeheim-Jugenheim | H54: 06432022 | I54: Seeheim-Jugenheim | J54: 432022 | K54: =VLOOKUP(J54,Adressen!$F$1:$L$469,7,FALSE) -> 64342 | L54: 54 | N54: 54 | O54: 06433001 | P54: Biebesheim am Rhein | Q54: 58
A55: Weiterstadt | B55: LK Darmstadt-Dieburg | C55: 06432023 | D55: B | F55: 55 | G55: Weiterstadt | H55: 06432023 | I55: Weiterstadt | J55: 432023 | K55: =VLOOKUP(J55,Adressen!$F$1:$L$469,7,FALSE) -> 64331 | L55: 55 | N55: 55 | O55: 06433002 | P55: Bischofsheim | Q55: 59
D56: B | F56: 56 | G56: Bitte auswählen! | I56: Bitte auswählen! | L56: 56 | N56: 56 | O56: 06433003 | P56: Büttelborn | Q56: 60
A57: LK Groß-Gerau | B57: LK Groß-Gerau | C57: 06433 | D57: B | F57: 57 | G57: LK Groß-Gerau | H57: 06433000 | I57: LK Groß-Gerau | J57: 433000 | K57: =VLOOKUP(J57,Adressen!$F$1:$L$469,7,FALSE) -> 64521 | L57: 57 | N57: 57 | O57: 06433004 | P57: Gernsheim | Q57: 61
A58: Biebesheim am Rhein | B58: LK Groß-Gerau | C58: 06433001 | D58: B | F58: 58 | G58: Biebesheim am Rhein | H58: 06433001 | I58: Biebesheim am Rhein | J58: 433001 | K58: =VLOOKUP(J58,Adressen!$F$1:$L$469,7,FALSE) -> 64584 | L58: 58 | N58: 58 | O58: 06433005 | P58: Ginsheim-Gustavsburg | Q58: 62
A59: Bischofsheim | B59: LK Groß-Gerau | C59: 06433002 | D59: B | F59: 59 | G59: Bischofsheim | H59: 06433002 | I59: Bischofsheim | J59: 433002 | K59: =VLOOKUP(J59,Adressen!$F$1:$L$469,7,FALSE) -> 65474 | L59: 59 | N59: 59 | O59: 06433006 | P59: Groß-Gerau | Q59: 63
A60: Büttelborn | B60: LK Groß-Gerau | C60: 06433003 | D60: B | F60: 60 | G60: Büttelborn | H60: 06433003 | I60: Büttelborn | J60: 433003 | K60: =VLOOKUP(J60,Adressen!$F$1:$L$469,7,FALSE) -> 64572 | L60: 60 | N60: 60 | O60: 06433007 | P60: Kelsterbach | Q60: 64
A61: Gernsheim | B61: LK Groß-Gerau | C61: 06433004 | D61: B | F61: 61 | G61: Gernsheim | H61: 06433004 | I61: Gernsheim | J61: 433004 | K61: =VLOOKUP(J61,Adressen!$F$1:$L$469,7,FALSE) -> 64579 | L61: 61 | N61: 61 | O61: 06433008 | P61: Mörfelden-Walldorf | Q61: 65
A62: Ginsheim-Gustavsburg | B62: LK Groß-Gerau | C62: 06433005 | D62: B | F62: 62 | G62: Ginsheim-Gustavsburg | H62: 06433005 | I62: Ginsheim-Gustavsburg | J62: 433005 | K62: =VLOOKUP(J62,Adressen!$F$1:$L$469,7,FALSE) -> 65462 | L62: 62 | N62: 62 | O62: 06433009 | P62: Nauheim | Q62: 66
A63: Groß-Gerau | B63: LK Groß-Gerau | C63: 06433006 | D63: B | F63: 63 | G63: Groß-Gerau | H63: 06433006 | I63: Groß-Gerau | J63: 433006 | K63: =VLOOKUP(J63,Adressen!$F$1:$L$469,7,FALSE) -> 64521 | L63: 63 | N63: 63 | O63: 06433010 | P63: Raunheim | Q63: 67
A64: Kelsterbach | B64: LK Groß-Gerau | C64: 06433007 | D64: B | F64: 64 | G64: Kelsterbach | H64: 06433007 | I64: Kelsterbach | J64: 433007 | K64: =VLOOKUP(J64,Adressen!$F$1:$L$469,7,FALSE) -> 65451 | L64: 64 | N64: 64 | O64: 06433011 | P64: Riedstadt | Q64: 68
A65: Mörfelden-Walldorf | B65: LK Groß-Gerau | C65: 06433008 | D65: B | F65: 65 | G65: Mörfelden-Walldorf | H65: 06433008 | I65: Mörfelden-Walldorf | J65: 433008 | K65: =VLOOKUP(J65,Adressen!$F$1:$L$469,7,FALSE) -> 64546 | L65: 65 | N65: 65 | O65: 06433012 | P65: Rüsselsheim | Q65: 69
A66: Nauheim | B66: LK Groß-Gerau | C66: 06433009 | D66: B | F66: 66 | G66: Nauheim | H66: 06433009 | I66: Nauheim | J66: 433009 | K66: =VLOOKUP(J66,Adressen!$F$1:$L$469,7,FALSE) -> 64569 | L66: 66 | N66: 66 | O66: 06433013 | P66: Stockstadt | Q66: 70
A67: Raunheim | B67: LK Groß-Gerau | C67: 06433010 | D67: B | F67: 67 | G67: Raunheim | H67: 06433010 | I67: Raunheim | J67: 433010 | K67: =VLOOKUP(J67,Adressen!$F$1:$L$469,7,FALSE) -> 65479 | L67: 67 | N67: 67 | O67: 06433014 | P67: Trebur | Q67: 71
A68: Riedstadt | B68: LK Groß-Gerau | C68: 06433011 | D68: B | F68: 68 | G68: Riedstadt | H68: 06433011 | I68: Riedstadt | J68: 433011 | K68: =VLOOKUP(J68,Adressen!$F$1:$L$469,7,FALSE) -> 64560 | L68: 68 | N68: 68 | O68: 06434000 | P68: LK Hochtaunus | Q68: 73
A69: Rüsselsheim | B69: LK Groß-Gerau | C69: 06433012 | D69: B | F69: 69 | G69: Rüsselsheim | H69: 06433012 | I69: Rüsselsheim | J69: 433012 | K69: =VLOOKUP(J69,Adressen!$F$1:$L$469,7,FALSE) -> 65428 | L69: 69 | N69: 69 | O69: 06434001 | P69: Bad Homburg v.d.H. | Q69: 74
A70: Stockstadt | B70: LK Groß-Gerau | C70: 06433013 | D70: B | F70: 70 | G70: Stockstadt | H70: 06433013 | I70: Stockstadt | J70: 433013 | K70: =VLOOKUP(J70,Adressen!$F$1:$L$469,7,FALSE) -> 64589 | L70: 70 | N70: 70 | O70: 06434002 | P70: Friedrichsdorf | Q70: 75
A71: Trebur | B71: LK Groß-Gerau | C71: 06433014 | D71: B | F71: 71 | G71: Trebur | H71: 06433014 | I71: Trebur | J71: 433014 | K71: =VLOOKUP(J71,Adressen!$F$1:$L$469,7,FALSE) -> 65468 | L71: 71 | N71: 71 | O71: 06434003 | P71: Glashütten | Q71: 76
D72: B | F72: 72 | G72: Bitte auswählen! | I72: Bitte auswählen! | L72: 72 | N72: 72 | O72: 06434004 | P72: Grävenwiesbach | Q72: 77
A73: LK Hochtaunus | B73: LK Hochtaunus | C73: 06434 | D73: B | F73: 73 | G73: LK Hochtaunus | H73: 06434000 | I73: LK Hochtaunus | J73: 434000 | K73: =VLOOKUP(J73,Adressen!$F$1:$L$469,7,FALSE) -> 61348 | L73: 73 | N73: 73 | O73: 06434005 | P73: Königstein im Taunus | Q73: 78
A74: Bad Homburg v.d.H. | B74: LK Hochtaunus | C74: 06434001 | D74: B | F74: 74 | G74: Bad Homburg v.d.H. | H74: 06434001 | I74: Bad Homburg v.d.H. | J74: 434001 | K74: =VLOOKUP(J74,Adressen!$F$1:$L$469,7,FALSE) -> 61348 | L74: 74 | N74: 74 | O74: 06434006 | P74: Kronberg | Q74: 79
A75: Friedrichsdorf | B75: LK Hochtaunus | C75: 06434002 | D75: B | F75: 75 | G75: Friedrichsdorf | H75: 06434002 | I75: Friedrichsdorf | J75: 434002 | K75: =VLOOKUP(J75,Adressen!$F$1:$L$469,7,FALSE) -> 61381 | L75: 75 | N75: 75 | O75: 06434007 | P75: Neu-Anspach | Q75: 80
A76: Glashütten | B76: LK Hochtaunus | C76: 06434003 | D76: B | F76: 76 | G76: Glashütten | H76: 06434003 | I76: Glashütten | J76: 434003 | K76: =VLOOKUP(J76,Adressen!$F$1:$L$469,7,FALSE) -> 61479 | L76: 76 | N76: 76 | O76: 06434008 | P76: Oberursel (Taunus) | Q76: 81
A77: Grävenwiesbach | B77: LK Hochtaunus | C77: 06434004 | D77: B | F77: 77 | G77: Grävenwiesbach | H77: 06434004 | I77: Grävenwiesbach | J77: 434004 | K77: =VLOOKUP(J77,Adressen!$F$1:$L$469,7,FALSE) -> 61279 | L77: 77 | N77: 77 | O77: 06434009 | P77: Schmitten | Q77: 82
A78: Königstein im Taunus | B78: LK Hochtaunus | C78: 06434005 | D78: B | F78: 78 | G78: Königstein im Taunus | H78: 06434005 | I78: Königstein im Taunus | J78: 434005 | K78: =VLOOKUP(J78,Adressen!$F$1:$L$469,7,FALSE) -> 61462 | L78: 78 | N78: 78 | O78: 06434010 | P78: Steinbach (Taunus) | Q78: 83
A79: Kronberg | B79: LK Hochtaunus | C79: 06434006 | D79: B | F79: 79 | G79: Kronberg | H79: 06434006 | I79: Kronberg | J79: 434006 | K79: =VLOOKUP(J79,Adressen!$F$1:$L$469,7,FALSE) -> 61476 | L79: 79 | N79: 79 | O79: 06434011 | P79: Usingen | Q79: 84
A80: Neu-Anspach | B80: LK Hochtaunus | C80: 06434007 | D80: B | F80: 80 | G80: Neu-Anspach | H80: 06434007 | I80: Neu-Anspach | J80: 434007 | K80: =VLOOKUP(J80,Adressen!$F$1:$L$469,7,FALSE) -> 61267 | L80: 80 | N80: 80 | O80: 06434012 | P80: Wehrheim | Q80: 85
A81: Oberursel (Taunus) | B81: LK Hochtaunus | C81: 06434008 | D81: B | F81: 81 | G81: Oberursel (Taunus) | H81: 06434008 | I81: Oberursel (Taunus) | J81: 434008 | K81: =VLOOKUP(J81,Adressen!$F$1:$L$469,7,FALSE) -> 61440 | L81: 81 | N81: 81 | O81: 06434013 | P81: Weilrod | Q81: 86
A82: Schmitten | B82: LK Hochtaunus | C82: 06434009 | D82: B | F82: 82 | G82: Schmitten | H82: 06434009 | I82: Schmitten | J82: 434009 | K82: =VLOOKUP(J82,Adressen!$F$1:$L$469,7,FALSE) -> 61389 | L82: 82 | N82: 82 | O82: 06435000 | P82: LK Main-Kinzig | Q82: 88
A83: Steinbach (Taunus) | B83: LK Hochtaunus | C83: 06434010 | D83: B | F83: 83 | G83: Steinbach (Taunus) | H83: 06434010 | I83: Steinbach (Taunus) | J83: 434010 | K83: =VLOOKUP(J83,Adressen!$F$1:$L$469,7,FALSE) -> 61449 | L83: 83 | N83: 83 | O83: 06435001 | P83: Bad Orb | Q83: 89
A84: Usingen | B84: LK Hochtaunus | C84: 06434011 | D84: B | F84: 84 | G84: Usingen | H84: 06434011 | I84: Usingen | J84: 434011 | K84: =VLOOKUP(J84,Adressen!$F$1:$L$469,7,FALSE) -> 61250 | L84: 84 | N84: 84 | O84: 06435002 | P84: Bad Soden-Salmünster | Q84: 90
A85: Wehrheim | B85: LK Hochtaunus | C85: 06434012 | D85: B | F85: 85 | G85: Wehrheim | H85: 06434012 | I85: Wehrheim | J85: 434012 | K85: =VLOOKUP(J85,Adressen!$F$1:$L$469,7,FALSE) -> 61273 | L85: 85 | N85: 85 | O85: 06435003 | P85: Biebergemünd | Q85: 91
A86: Weilrod | B86: LK Hochtaunus | C86: 06434013 | D86: B | F86: 86 | G86: Weilrod | H86: 06434013 | I86: Weilrod | J86: 434013 | K86: =VLOOKUP(J86,Adressen!$F$1:$L$469,7,FALSE) -> 61276 | L86: 86 | N86: 86 | O86: 06435004 | P86: Birstein | Q86: 92
D87: B | F87: 87 | G87: Bitte auswählen! | I87: Bitte auswählen! | L87: 87 | N87: 87 | O87: 06435005 | P87: Brachttal | Q87: 93
A88: LK Main-Kinzig | B88: LK Main-Kinzig | C88: 06435 | D88: B | F88: 88 | G88: LK Main-Kinzig | H88: 06435000 | I88: LK Main-Kinzig | J88: 435000 | K88: =VLOOKUP(J88,Adressen!$F$1:$L$469,7,FALSE) -> 63569 | L88: 88 | N88: 88 | O88: 06435006 | P88: Bruchköbel | Q88: 94
A89: Bad Orb | B89: LK Main-Kinzig | C89: 06435001 | D89: B | F89: 89 | G89: Bad Orb | H89: 06435001 | I89: Bad Orb | J89: 435001 | K89: =VLOOKUP(J89,Adressen!$F$1:$L$469,7,FALSE) -> 63619 | L89: 89 | N89: 89 | O89: 06435007 | P89: Erlensee | Q89: 95
A90: Bad Soden-Salmünster | B90: LK Main-Kinzig | C90: 06435002 | D90: B | F90: 90 | G90: Bad Soden-Salmünster | H90: 06435002 | I90: Bad Soden-Salmünster | J90: 435002 | K90: =VLOOKUP(J90,Adressen!$F$1:$L$469,7,FALSE) -> 63628 | L90: 90 | N90: 90 | O90: 06435008 | P90: Flörsbachtal | Q90: 96
A91: Biebergemünd | B91: LK Main-Kinzig | C91: 06435003 | D91: B | F91: 91 | G91: Biebergemünd | H91: 06435003 | I91: Biebergemünd | J91: 435003 | K91: =VLOOKUP(J91,Adressen!$F$1:$L$469,7,FALSE) -> 63599 | L91: 91 | N91: 91 | O91: 06435009 | P91: Freigericht | Q91: 97
A92: Birstein | B92: LK Main-Kinzig | C92: 06435004 | D92: B | F92: 92 | G92: Birstein | H92: 06435004 | I92: Birstein | J92: 435004 | K92: =VLOOKUP(J92,Adressen!$F$1:$L$469,7,FALSE) -> 63633 | L92: 92 | N92: 92 | O92: 06435010 | P92: Gelnhausen | Q92: 98
A93: Brachttal | B93: LK Main-Kinzig | C93: 06435005 | D93: B | F93: 93 | G93: Brachttal | H93: 06435005 | I93: Brachttal | J93: 435005 | K93: =VLOOKUP(J93,Adressen!$F$1:$L$469,7,FALSE) -> 63636 | L93: 93 | N93: 93 | O93: 06435011 | P93: Großkrotzenburg | Q93: 99
A94: Bruchköbel | B94: LK Main-Kinzig | C94: 06435006 | D94: B | F94: 94 | G94: Bruchköbel | H94: 06435006 | I94: Bruchköbel | J94: 435006 | K94: =VLOOKUP(J94,Adressen!$F$1:$L$469,7,FALSE) -> 63486 | L94: 94 | N94: 94 | O94: 06435012 | P94: Gründau | Q94: 100
A95: Erlensee | B95: LK Main-Kinzig | C95: 06435007 | D95: B | F95: 95 | G95: Erlensee | H95: 06435007 | I95: Erlensee | J95: 435007 | K95: =VLOOKUP(J95,Adressen!$F$1:$L$469,7,FALSE) -> 63526 | L95: 95 | N95: 95 | O95: 06435013 | P95: Hammersbach | Q95: 101
A96: Flörsbachtal | B96: LK Main-Kinzig | C96: 06435008 | D96: B | F96: 96 | G96: Flörsbachtal | H96: 06435008 | I96: Flörsbachtal | J96: 435008 | K96: =VLOOKUP(J96,Adressen!$F$1:$L$469,7,FALSE) -> 63639 | L96: 96 | N96: 96 | O96: 06435014 | P96: Hanau | Q96: 102
A97: Freigericht | B97: LK Main-Kinzig | C97: 06435009 | D97: B | F97: 97 | G97: Freigericht | H97: 06435009 | I97: Freigericht | J97: 435009 | K97: =VLOOKUP(J97,Adressen!$F$1:$L$469,7,FALSE) -> 63579 | L97: 97 | N97: 97 | O97: 06435015 | P97: Hasselroth | Q97: 103
A98: Gelnhausen | B98: LK Main-Kinzig | C98: 06435010 | D98: B | F98: 98 | G98: Gelnhausen | H98: 06435010 | I98: Gelnhausen | J98: 435010 | K98: =VLOOKUP(J98,Adressen!$F$1:$L$469,7,FALSE) -> 63571 | L98: 98 | N98: 98 | O98: 06435016 | P98: Jossgrund | Q98: 104
A99: Großkrotzenburg | B99: LK Main-Kinzig | C99: 06435011 | D99: B | F99: 99 | G99: Großkrotzenburg | H99: 06435011 | I99: Großkrotzenburg | J99: 435011 | K99: =VLOOKUP(J99,Adressen!$F$1:$L$469,7,FALSE) -> 63538 | L99: 99 | N99: 99 | O99: 06435017 | P99: Langenselbold | Q99: 105
A100: Gründau | B100: LK Main-Kinzig | C100: 06435012 | D100: B | F100: 100 | G100: Gründau | H100: 06435012 | I100: Gründau | J100: 435012 | K100: =VLOOKUP(J100,Adressen!$F$1:$L$469,7,FALSE) -> 63584 | L100: 100 | N100: 100 | O100: 06435018 | P100: Linsengericht | Q100: 106
A101: Hammersbach | B101: LK Main-Kinzig | C101: 06435013 | D101: B | F101: 101 | G101: Hammersbach | H101: 06435013 | I101: Hammersbach | J101: 435013 | K101: =VLOOKUP(J101,Adressen!$F$1:$L$469,7,FALSE) -> 63546 | L101: 101 | N101: 101 | O101: 06435019 | P101: Maintal | Q101: 107
A102: Hanau | B102: LK Main-Kinzig | C102: 06435014 | D102: B | F102: 102 | G102: Hanau | H102: 06435014 | I102: Hanau | J102: 435014 | K102: =VLOOKUP(J102,Adressen!$F$1:$L$469,7,FALSE) -> 63450 | L102: 102 | N102: 102 | O102: 06435020 | P102: Neuberg | Q102: 108
A103: Hasselroth | B103: LK Main-Kinzig | C103: 06435015 | D103: B | F103: 103 | G103: Hasselroth | H103: 06435015 | I103: Hasselroth | J103: 435015 | K103: =VLOOKUP(J103,Adressen!$F$1:$L$469,7,FALSE) -> 63594 | L103: 103 | N103: 103 | O103: 06435021 | P103: Nidderau | Q103: 109
A104: Jossgrund | B104: LK Main-Kinzig | C104: 06435016 | D104: B | F104: 104 | G104: Jossgrund | H104: 06435016 | I104: Jossgrund | J104: 435016 | K104: =VLOOKUP(J104,Adressen!$F$1:$L$469,7,FALSE) -> 63637 | L104: 104 | N104: 104 | O104: 06435022 | P104: Niederdorfelden | Q104: 110
A105: Langenselbold | B105: LK Main-Kinzig | C105: 06435017 | D105: B | F105: 105 | G105: Langenselbold | H105: 06435017 | I105: Langenselbold | J105: 435017 | K105: =VLOOKUP(J105,Adressen!$F$1:$L$469,7,FALSE) -> 63505 | L105: 105 | N105: 105 | O105: 06435023 | P105: Rodenbach | Q105: 111
A106: Linsengericht | B106: LK Main-Kinzig | C106: 06435018 | D106: B | F106: 106 | G106: Linsengericht | H106: 06435018 | I106: Linsengericht | J106: 435018 | K106: =VLOOKUP(J106,Adressen!$F$1:$L$469,7,FALSE) -> 63589 | L106: 106 | N106: 106 | O106: 06435024 | P106: Ronneburg | Q106: 112
A107: Maintal | B107: LK Main-Kinzig | C107: 06435019 | D107: B | F107: 107 | G107: Maintal | H107: 06435019 | I107: Maintal | J107: 435019 | K107: =VLOOKUP(J107,Adressen!$F$1:$L$469,7,FALSE) -> 63477 | L107: 107 | N107: 107 | O107: 06435025 | P107: Schlüchtern | Q107: 113
A108: Neuberg | B108: LK Main-Kinzig | C108: 06435020 | D108: B | F108: 108 | G108: Neuberg | H108: 06435020 | I108: Neuberg | J108: 435020 | K108: =VLOOKUP(J108,Adressen!$F$1:$L$469,7,FALSE) -> 63543 | L108: 108 | N108: 108 | O108: 06435026 | P108: Schöneck | Q108: 114
A109: Nidderau | B109: LK Main-Kinzig | C109: 06435021 | D109: B | F109: 109 | G109: Nidderau | H109: 06435021 | I109: Nidderau | J109: 435021 | K109: =VLOOKUP(J109,Adressen!$F$1:$L$469,7,FALSE) -> 61130 | L109: 109 | N109: 109 | O109: 06435027 | P109: Sinntal | Q109: 115
A110: Niederdorfelden | B110: LK Main-Kinzig | C110: 06435022 | D110: B | F110: 110 | G110: Niederdorfelden | H110: 06435022 | I110: Niederdorfelden | J110: 435022 | K110: =VLOOKUP(J110,Adressen!$F$1:$L$469,7,FALSE) -> 61138 | L110: 110 | N110: 110 | O110: 06435028 | P110: Steinau an der Straße | Q110: 116
A111: Rodenbach | B111: LK Main-Kinzig | C111: 06435023 | D111: B | F111: 111 | G111: Rodenbach | H111: 06435023 | I111: Rodenbach | J111: 435023 | K111: =VLOOKUP(J111,Adressen!$F$1:$L$469,7,FALSE) -> 63517 | L111: 111 | N111: 111 | O111: 06435029 | P111: Wächtersbach | Q111: 117
A112: Ronneburg | B112: LK Main-Kinzig | C112: 06435024 | D112: B | F112: 112 | G112: Ronneburg | H112: 06435024 | I112: Ronneburg | J112: 435024 | K112: =VLOOKUP(J112,Adressen!$F$1:$L$469,7,FALSE) -> 63549 | L112: 112 | N112: 112 | O112: 06436000 | P112: LK Main-Taunus | Q112: 119
A113: Schlüchtern | B113: LK Main-Kinzig | C113: 06435025 | D113: B | F113: 113 | G113: Schlüchtern | H113: 06435025 | I113: Schlüchtern | J113: 435025 | K113: =VLOOKUP(J113,Adressen!$F$1:$L$469,7,FALSE) -> 36381 | L113: 113 | N113: 113 | O113: 06436001 | P113: Bad Soden am Taunus | Q113: 120
A114: Schöneck | B114: LK Main-Kinzig | C114: 06435026 | D114: B | F114: 114 | G114: Schöneck | H114: 06435026 | I114: Schöneck | J114: 435026 | K114: =VLOOKUP(J114,Adressen!$F$1:$L$469,7,FALSE) -> 61137 | L114: 114 | N114: 114 | O114: 06436002 | P114: Eppstein | Q114: 121
A115: Sinntal | B115: LK Main-Kinzig | C115: 06435027 | D115: B | F115: 115 | G115: Sinntal | H115: 06435027 | I115: Sinntal | J115: 435027 | K115: =VLOOKUP(J115,Adressen!$F$1:$L$469,7,FALSE) -> 36391 | L115: 115 | N115: 115 | O115: 06436003 | P115: Eschborn | Q115: 122
A116: Steinau an der Straße | B116: LK Main-Kinzig | C116: 06435028 | D116: B | F116: 116 | G116: Steinau an der Straße | H116: 06435028 | I116: Steinau an der Straße | J116: 435028 | K116: =VLOOKUP(J116,Adressen!$F$1:$L$469,7,FALSE) -> 36396 | L116: 116 | N116: 116 | O116: 06436004 | P116: Flörsheim am Main | Q116: 123
A117: Wächtersbach | B117: LK Main-Kinzig | C117: 06435029 | D117: B | F117: 117 | G117: Wächtersbach | H117: 06435029 | I117: Wächtersbach | J117: 435029 | K117: =VLOOKUP(J117,Adressen!$F$1:$L$469,7,FALSE) -> 63607 | L117: 117 | N117: 117 | O117: 06436005 | P117: Hattersheim am Main | Q117: 124
D118: B | F118: 118 | G118: Bitte auswählen! | I118: Bitte auswählen! | L118: 118 | N118: 118 | O118: 06436006 | P118: Hochheim am Main | Q118: 125
A119: LK Main-Taunus | B119: LK Main-Taunus | C119: 06436 | D119: B | F119: 119 | G119: LK Main-Taunus | H119: 06436000 | I119: LK Main-Taunus | J119: 436000 | K119: =VLOOKUP(J119,Adressen!$F$1:$L$469,7,FALSE) -> 65719 | L119: 119 | N119: 119 | O119: 06436007 | P119: Hofheim am Taunus | Q119: 126
A120: Bad Soden am Taunus | B120: LK Main-Taunus | C120: 06436001 | D120: B | F120: 120 | G120: Bad Soden am Taunus | H120: 06436001 | I120: Bad Soden am Taunus | J120: 436001 | K120: =VLOOKUP(J120,Adressen!$F$1:$L$469,7,FALSE) -> 65812 | L120: 120 | N120: 120 | O120: 06436008 | P120: Kelkheim (Taunus) | Q120: 127
A121: Eppstein | B121: LK Main-Taunus | C121: 06436002 | D121: B | F121: 121 | G121: Eppstein | H121: 06436002 | I121: Eppstein | J121: 436002 | K121: =VLOOKUP(J121,Adressen!$F$1:$L$469,7,FALSE) -> 65817 | L121: 121 | N121: 121 | O121: 06436009 | P121: Kriftel | Q121: 128
A122: Eschborn | B122: LK Main-Taunus | C122: 06436003 | D122: B | F122: 122 | G122: Eschborn | H122: 06436003 | I122: Eschborn | J122: 436003 | K122: =VLOOKUP(J122,Adressen!$F$1:$L$469,7,FALSE) -> 65760 | L122: 122 | N122: 122 | O122: 06436010 | P122: Liederbach am Taunus | Q122: 129
A123: Flörsheim am Main | B123: LK Main-Taunus | C123: 06436004 | D123: B | F123: 123 | G123: Flörsheim am Main | H123: 06436004 | I123: Flörsheim am Main | J123: 436004 | K123: =VLOOKUP(J123,Adressen!$F$1:$L$469,7,FALSE) -> 65439 | L123: 123 | N123: 123 | O123: 06436011 | P123: Schwalbach | Q123: 130
A124: Hattersheim am Main | B124: LK Main-Taunus | C124: 06436005 | D124: B | F124: 124 | G124: Hattersheim am Main | H124: 06436005 | I124: Hattersheim am Main | J124: 436005 | K124: =VLOOKUP(J124,Adressen!$F$1:$L$469,7,FALSE) -> 65795 | L124: 124 | N124: 124 | O124: 06436012 | P124: Sulzbach | Q124: 131
A125: Hochheim am Main | B125: LK Main-Taunus | C125: 06436006 | D125: B | F125: 125 | G125: Hochheim am Main | H125: 06436006 | I125: Hochheim am Main | J125: 436006 | K125: =VLOOKUP(J125,Adressen!$F$1:$L$469,7,FALSE) -> 65239 | L125: 125 | N125: 125 | O125: 06437000 | P125: LK Odenwald | Q125: 133
A126: Hofheim am Taunus | B126: LK Main-Taunus | C126: 06436007 | D126: B | F126: 126 | G126: Hofheim am Taunus | H126: 06436007 | I126: Hofheim am Taunus | J126: 436007 | K126: =VLOOKUP(J126,Adressen!$F$1:$L$469,7,FALSE) -> 65719 | L126: 126 | N126: 126 | O126: 06437001 | P126: Bad König | Q126: 134
A127: Kelkheim (Taunus) | B127: LK Main-Taunus | C127: 06436008 | D127: B | F127: 127 | G127: Kelkheim (Taunus) | H127: 06436008 | I127: Kelkheim (Taunus) | J127: 436008 | K127: =VLOOKUP(J127,Adressen!$F$1:$L$469,7,FALSE) -> 65779 | L127: 127 | N127: 127 | O127: 06437002 | P127: Beerfelden | Q127: 135
A128: Kriftel | B128: LK Main-Taunus | C128: 06436009 | D128: B | F128: 128 | G128: Kriftel | H128: 06436009 | I128: Kriftel | J128: 436009 | K128: =VLOOKUP(J128,Adressen!$F$1:$L$469,7,FALSE) -> 65830 | L128: 128 | N128: 128 | O128: 06437003 | P128: Brensbach | Q128: 136
A129: Liederbach am Taunus | B129: LK Main-Taunus | C129: 06436010 | D129: B | F129: 129 | G129: Liederbach am Taunus | H129: 06436010 | I129: Liederbach am Taunus | J129: 436010 | K129: =VLOOKUP(J129,Adressen!$F$1:$L$469,7,FALSE) -> 65835 | L129: 129 | N129: 129 | O129: 06437004 | P129: Breuberg | Q129: 137
A130: Schwalbach | B130: LK Main-Taunus | C130: 06436011 | D130: B | F130: 130 | G130: Schwalbach | H130: 06436011 | I130: Schwalbach | J130: 436011 | K130: =VLOOKUP(J130,Adressen!$F$1:$L$469,7,FALSE) -> 65824 | L130: 130 | N130: 130 | O130: 06437005 | P130: Brombachtal | Q130: 138
A131: Sulzbach | B131: LK Main-Taunus | C131: 06436012 | D131: B | F131: 131 | G131: Sulzbach | H131: 06436012 | I131: Sulzbach | J131: 436012 | K131: =VLOOKUP(J131,Adressen!$F$1:$L$469,7,FALSE) -> 65843 | L131: 131 | N131: 131 | O131: 06437006 | P131: Erbach | Q131: 139
D132: B | F132: 132 | G132: Bitte auswählen! | I132: Bitte auswählen! | L132: 132 | N132: 132 | O132: 06437007 | P132: Fränkisch-Crumbach | Q132: 140
A133: LK Odenwald | B133: LK Odenwald | C133: 06437 | D133: B | F133: 133 | G133: LK Odenwald | H133: 06437000 | I133: LK Odenwald | J133: 437000 | K133: =VLOOKUP(J133,Adressen!$F$1:$L$469,7,FALSE) -> 64711 | L133: 133 | N133: 133 | O133: 06437008 | P133: Hesseneck | Q133: 141
A134: Bad König | B134: LK Odenwald | C134: 06437001 | D134: B | F134: 134 | G134: Bad König | H134: 06437001 | I134: Bad König | J134: 437001 | K134: =VLOOKUP(J134,Adressen!$F$1:$L$469,7,FALSE) -> 64732 | L134: 134 | N134: 134 | O134: 06437009 | P134: Höchst i.Odw. | Q134: 142
A135: Beerfelden | B135: LK Odenwald | C135: 06437002 | D135: B | F135: 135 | G135: Beerfelden | H135: 06437002 | I135: Beerfelden | J135: 437002 | K135: =VLOOKUP(J135,Adressen!$F$1:$L$469,7,FALSE) -> 64743 | L135: 135 | N135: 135 | O135: 06437010 | P135: Lützelbach | Q135: 143
A136: Brensbach | B136: LK Odenwald | C136: 06437003 | D136: B | F136: 136 | G136: Brensbach | H136: 06437003 | I136: Brensbach | J136: 437003 | K136: =VLOOKUP(J136,Adressen!$F$1:$L$469,7,FALSE) -> 64395 | L136: 136 | N136: 136 | O136: 06437011 | P136: Michelstadt | Q136: 144
A137: Breuberg | B137: LK Odenwald | C137: 06437004 | D137: B | F137: 137 | G137: Breuberg | H137: 06437004 | I137: Breuberg | J137: 437004 | K137: =VLOOKUP(J137,Adressen!$F$1:$L$469,7,FALSE) -> 64747 | L137: 137 | N137: 137 | O137: 06437012 | P137: Mossautal | Q137: 145
A138: Brombachtal | B138: LK Odenwald | C138: 06437005 | D138: B | F138: 138 | G138: Brombachtal | H138: 06437005 | I138: Brombachtal | J138: 437005 | K138: =VLOOKUP(J138,Adressen!$F$1:$L$469,7,FALSE) -> 64753 | L138: 138 | N138: 138 | O138: 06437013 | P138: Reichelsheim (Odenwald) | Q138: 146
A139: Erbach | B139: LK Odenwald | C139: 06437006 | D139: B | F139: 139 | G139: Erbach | H139: 06437006 | I139: Erbach | J139: 437006 | K139: =VLOOKUP(J139,Adressen!$F$1:$L$469,7,FALSE) -> 64711 | L139: 139 | N139: 139 | O139: 06437014 | P139: Rothenberg | Q139: 147
A140: Fränkisch-Crumbach | B140: LK Odenwald | C140: 06437007 | D140: B | F140: 140 | G140: Fränkisch-Crumbach | H140: 06437007 | I140: Fränkisch-Crumbach | J140: 437007 | K140: =VLOOKUP(J140,Adressen!$F$1:$L$469,7,FALSE) -> 64407 | L140: 140 | N140: 140 | O140: 06437015 | P140: Sensbachtal | Q140: 148
A141: Hesseneck | B141: LK Odenwald | C141: 06437008 | D141: B | F141: 141 | G141: Hesseneck | H141: 06437008 | I141: Hesseneck | J141: 437008 | K141: =VLOOKUP(J141,Adressen!$F$1:$L$469,7,FALSE) -> 64754 | L141: 141 | N141: 141 | O141: 06438000 | P141: LK Offenbach | Q141: 150
A142: Höchst i.Odw. | B142: LK Odenwald | C142: 06437009 | D142: B | F142: 142 | G142: Höchst i.Odw. | H142: 06437009 | I142: Höchst i.Odw. | J142: 437009 | K142: =VLOOKUP(J142,Adressen!$F$1:$L$469,7,FALSE) -> 64739 | L142: 142 | N142: 142 | O142: 06438001 | P142: Dietzenbach | Q142: 151
A143: Lützelbach | B143: LK Odenwald | C143: 06437010 | D143: B | F143: 143 | G143: Lützelbach | H143: 06437010 | I143: Lützelbach | J143: 437010 | K143: =VLOOKUP(J143,Adressen!$F$1:$L$469,7,FALSE) -> 64750 | L143: 143 | N143: 143 | O143: 06438002 | P143: Dreieich | Q143: 152
A144: Michelstadt | B144: LK Odenwald | C144: 06437011 | D144: B | F144: 144 | G144: Michelstadt | H144: 06437011 | I144: Michelstadt | J144: 437011 | K144: =VLOOKUP(J144,Adressen!$F$1:$L$469,7,FALSE) -> 64720 | L144: 144 | N144: 144 | O144: 06438003 | P144: Egelsbach | Q144: 153
A145: Mossautal | B145: LK Odenwald | C145: 06437012 | D145: B | F145: 145 | G145: Mossautal | H145: 06437012 | I145: Mossautal | J145: 437012 | K145: =VLOOKUP(J145,Adressen!$F$1:$L$469,7,FALSE) -> 64756 | L145: 145 | N145: 145 | O145: 06438004 | P145: Hainburg | Q145: 154
A146: Reichelsheim (Odenwald) | B146: LK Odenwald | C146: 06437013 | D146: B | F146: 146 | G146: Reichelsheim (Odenwald) | H146: 06437013 | I146: Reichelsheim (Odenwald) | J146: 437013 | K146: =VLOOKUP(J146,Adressen!$F$1:$L$469,7,FALSE) -> 64385 | L146: 146 | N146: 146 | O146: 06438005 | P146: Heusenstamm | Q146: 155
A147: Rothenberg | B147: LK Odenwald | C147: 06437014 | D147: B | F147: 147 | G147: Rothenberg | H147: 06437014 | I147: Rothenberg | J147: 437014 | K147: =VLOOKUP(J147,Adressen!$F$1:$L$469,7,FALSE) -> 64757 | L147: 147 | N147: 147 | O147: 06438006 | P147: Langen | Q147: 156
A148: Sensbachtal | B148: LK Odenwald | C148: 06437015 | D148: B | F148: 148 | G148: Sensbachtal | H148: 06437015 | I148: Sensbachtal | J148: 437015 | K148: =VLOOKUP(J148,Adressen!$F$1:$L$469,7,FALSE) -> 64759 | L148: 148 | N148: 148 | O148: 06438007 | P148: Mainhausen | Q148: 157
D149: B | F149: 149 | G149: Bitte auswählen! | I149: Bitte auswählen! | L149: 149 | N149: 149 | O149: 06438008 | P149: Mühlheim am Main | Q149: 158
A150: LK Offenbach | B150: LK Offenbach | C150: 06438 | D150: B | F150: 150 | G150: LK Offenbach | H150: 06438000 | I150: LK Offenbach | J150: 438000 | K150: =VLOOKUP(J150,Adressen!$F$1:$L$469,7,FALSE) -> 63128 | L150: 150 | N150: 150 | O150: 06438009 | P150: Neu-Isenburg | Q150: 159
A151: Dietzenbach | B151: LK Offenbach | C151: 06438001 | D151: B | F151: 151 | G151: Dietzenbach | H151: 06438001 | I151: Dietzenbach | J151: 438001 | K151: =VLOOKUP(J151,Adressen!$F$1:$L$469,7,FALSE) -> 63128 | L151: 151 | N151: 151 | O151: 06438010 | P151: Obertshausen | Q151: 160
A152: Dreieich | B152: LK Offenbach | C152: 06438002 | D152: B | F152: 152 | G152: Dreieich | H152: 06438002 | I152: Dreieich | J152: 438002 | K152: =VLOOKUP(J152,Adressen!$F$1:$L$469,7,FALSE) -> 63303 | L152: 152 | N152: 152 | O152: 06438011 | P152: Rodgau | Q152: 161
A153: Egelsbach | B153: LK Offenbach | C153: 06438003 | D153: B | F153: 153 | G153: Egelsbach | H153: 06438003 | I153: Egelsbach | J153: 438003 | K153: =VLOOKUP(J153,Adressen!$F$1:$L$469,7,FALSE) -> 63329 | L153: 153 | N153: 153 | O153: 06438012 | P153: Rödermark | Q153: 162
A154: Hainburg | B154: LK Offenbach | C154: 06438004 | D154: B | F154: 154 | G154: Hainburg | H154: 06438004 | I154: Hainburg | J154: 438004 | K154: =VLOOKUP(J154,Adressen!$F$1:$L$469,7,FALSE) -> 63512 | L154: 154 | N154: 154 | O154: 06438013 | P154: Seligenstadt | Q154: 163
A155: Heusenstamm | B155: LK Offenbach | C155: 06438005 | D155: B | F155: 155 | G155: Heusenstamm | H155: 06438005 | I155: Heusenstamm | J155: 438005 | K155: =VLOOKUP(J155,Adressen!$F$1:$L$469,7,FALSE) -> 63150 | L155: 155 | N155: 155 | O155: 06439000 | P155: LK Rheingau-Taunus | Q155: 165
A156: Langen | B156: LK Offenbach | C156: 06438006 | D156: B | F156: 156 | G156: Langen | H156: 06438006 | I156: Langen | J156: 438006 | K156: =VLOOKUP(J156,Adressen!$F$1:$L$469,7,FALSE) -> 63225 | L156: 156 | N156: 156 | O156: 06439001 | P156: Aarbergen | Q156: 166
A157: Mainhausen | B157: LK Offenbach | C157: 06438007 | D157: B | F157: 157 | G157: Mainhausen | H157: 06438007 | I157: Mainhausen | J157: 438007 | K157: =VLOOKUP(J157,Adressen!$F$1:$L$469,7,FALSE) -> 63533 | L157: 157 | N157: 157 | O157: 06439002 | P157: Bad Schwalbach | Q157: 167
A158: Mühlheim am Main | B158: LK Offenbach | C158: 06438008 | D158: B | F158: 158 | G158: Mühlheim am Main | H158: 06438008 | I158: Mühlheim am Main | J158: 438008 | K158: =VLOOKUP(J158,Adressen!$F$1:$L$469,7,FALSE) -> 63165 | L158: 158 | N158: 158 | O158: 06439003 | P158: Eltville am Rhein | Q158: 168
A159: Neu-Isenburg | B159: LK Offenbach | C159: 06438009 | D159: B | F159: 159 | G159: Neu-Isenburg | H159: 06438009 | I159: Neu-Isenburg | J159: 438009 | K159: =VLOOKUP(J159,Adressen!$F$1:$L$469,7,FALSE) -> 63263 | L159: 159 | N159: 159 | O159: 06439004 | P159: Geisenheim | Q159: 169
A160: Obertshausen | B160: LK Offenbach | C160: 06438010 | D160: B | F160: 160 | G160: Obertshausen | H160: 06438010 | I160: Obertshausen | J160: 438010 | K160: =VLOOKUP(J160,Adressen!$F$1:$L$469,7,FALSE) -> 63179 | L160: 160 | N160: 160 | O160: 06439005 | P160: Heidenrod | Q160: 170
A161: Rodgau | B161: LK Offenbach | C161: 06438011 | D161: B | F161: 161 | G161: Rodgau | H161: 06438011 | I161: Rodgau | J161: 438011 | K161: =VLOOKUP(J161,Adressen!$F$1:$L$469,7,FALSE) -> 63110 | L161: 161 | N161: 161 | O161: 06439006 | P161: Hohenstein | Q161: 171
A162: Rödermark | B162: LK Offenbach | C162: 06438012 | D162: B | F162: 162 | G162: Rödermark | H162: 06438012 | I162: Rödermark | J162: 438012 | K162: =VLOOKUP(J162,Adressen!$F$1:$L$469,7,FALSE) -> 63322 | L162: 162 | N162: 162 | O162: 06439007 | P162: Hünstetten | Q162: 172
A163: Seligenstadt | B163: LK Offenbach | C163: 06438013 | D163: B | F163: 163 | G163: Seligenstadt | H163: 06438013 | I163: Seligenstadt | J163: 438013 | K163: =VLOOKUP(J163,Adressen!$F$1:$L$469,7,FALSE) -> 63500 | L163: 163 | N163: 163 | O163: 06439008 | P163: Idstein | Q163: 173
D164: B | F164: 164 | G164: Bitte auswählen! | I164: Bitte auswählen! | L164: 164 | N164: 164 | O164: 06439009 | P164: Kiedrich | Q164: 174
A165: LK Rheingau-Taunus | B165: LK Rheingau-Taunus | C165: 06439 | D165: B | F165: 165 | G165: LK Rheingau-Taunus | H165: 06439000 | I165: LK Rheingau-Taunus | J165: 439000 | K165: =VLOOKUP(J165,Adressen!$F$1:$L$469,7,FALSE) -> 65307 | L165: 165 | N165: 165 | O165: 06439010 | P165: Lorch | Q165: 175
A166: Aarbergen | B166: LK Rheingau-Taunus | C166: 06439001 | D166: B | F166: 166 | G166: Aarbergen | H166: 06439001 | I166: Aarbergen | J166: 439001 | K166: =VLOOKUP(J166,Adressen!$F$1:$L$469,7,FALSE) -> 65326 | L166: 166 | N166: 166 | O166: 06439011 | P166: Niedernhausen | Q166: 176
A167: Bad Schwalbach | B167: LK Rheingau-Taunus | C167: 06439002 | D167: B | F167: 167 | G167: Bad Schwalbach | H167: 06439002 | I167: Bad Schwalbach | J167: 439002 | K167: =VLOOKUP(J167,Adressen!$F$1:$L$469,7,FALSE) -> 65307 | L167: 167 | N167: 167 | O167: 06439012 | P167: Oestrich-Winkel | Q167: 177
A168: Eltville am Rhein | B168: LK Rheingau-Taunus | C168: 06439003 | D168: B | F168: 168 | G168: Eltville am Rhein | H168: 06439003 | I168: Eltville am Rhein | J168: 439003 | K168: =VLOOKUP(J168,Adressen!$F$1:$L$469,7,FALSE) -> 65343 | L168: 168 | N168: 168 | O168: 06439013 | P168: Rüdesheim am Rhein | Q168: 178
A169: Geisenheim | B169: LK Rheingau-Taunus | C169: 06439004 | D169: B | F169: 169 | G169: Geisenheim | H169: 06439004 | I169: Geisenheim | J169: 439004 | K169: =VLOOKUP(J169,Adressen!$F$1:$L$469,7,FALSE) -> 65366 | L169: 169 | N169: 169 | O169: 06439014 | P169: Schlangenbad | Q169: 179
A170: Heidenrod | B170: LK Rheingau-Taunus | C170: 06439005 | D170: B | F170: 170 | G170: Heidenrod | H170: 06439005 | I170: Heidenrod | J170: 439005 | K170: =VLOOKUP(J170,Adressen!$F$1:$L$469,7,FALSE) -> 65321 | L170: 170 | N170: 170 | O170: 06439015 | P170: Taunusstein | Q170: 180
A171: Hohenstein | B171: LK Rheingau-Taunus | C171: 06439006 | D171: B | F171: 171 | G171: Hohenstein | H171: 06439006 | I171: Hohenstein | J171: 439006 | K171: =VLOOKUP(J171,Adressen!$F$1:$L$469,7,FALSE) -> 65329 | L171: 171 | N171: 171 | O171: 06439016 | P171: Waldems | Q171: 181
A172: Hünstetten | B172: LK Rheingau-Taunus | C172: 06439007 | D172: B | F172: 172 | G172: Hünstetten | H172: 06439007 | I172: Hünstetten | J172: 439007 | K172: =VLOOKUP(J172,Adressen!$F$1:$L$469,7,FALSE) -> 65510 | L172: 172 | N172: 172 | O172: 06439017 | P172: Walluf | Q172: 182
A173: Idstein | B173: LK Rheingau-Taunus | C173: 06439008 | D173: B | F173: 173 | G173: Idstein | H173: 06439008 | I173: Idstein | J173: 439008 | K173: =VLOOKUP(J173,Adressen!$F$1:$L$469,7,FALSE) -> 65510 | L173: 173 | N173: 173 | O173: 06440000 | P173: LK Wetterau | Q173: 184
A174: Kiedrich | B174: LK Rheingau-Taunus | C174: 06439009 | D174: B | F174: 174 | G174: Kiedrich | H174: 06439009 | I174: Kiedrich | J174: 439009 | K174: =VLOOKUP(J174,Adressen!$F$1:$L$469,7,FALSE) -> 65399 | L174: 174 | N174: 174 | O174: 06440001 | P174: Altenstadt | Q174: 185
A175: Lorch | B175: LK Rheingau-Taunus | C175: 06439010 | D175: B | F175: 175 | G175: Lorch | H175: 06439010 | I175: Lorch | J175: 439010 | K175: =VLOOKUP(J175,Adressen!$F$1:$L$469,7,FALSE) -> 65391 | L175: 175 | N175: 175 | O175: 06440002 | P175: Bad Nauheim | Q175: 186
A176: Niedernhausen | B176: LK Rheingau-Taunus | C176: 06439011 | D176: B | F176: 176 | G176: Niedernhausen | H176: 06439011 | I176: Niedernhausen | J176: 439011 | K176: =VLOOKUP(J176,Adressen!$F$1:$L$469,7,FALSE) -> 65527 | L176: 176 | N176: 176 | O176: 06440003 | P176: Bad Vilbel | Q176: 187
A177: Oestrich-Winkel | B177: LK Rheingau-Taunus | C177: 06439012 | D177: B | F177: 177 | G177: Oestrich-Winkel | H177: 06439012 | I177: Oestrich-Winkel | J177: 439012 | K177: =VLOOKUP(J177,Adressen!$F$1:$L$469,7,FALSE) -> 65375 | L177: 177 | N177: 177 | O177: 06440004 | P177: Büdingen | Q177: 188
A178: Rüdesheim am Rhein | B178: LK Rheingau-Taunus | C178: 06439013 | D178: B | F178: 178 | G178: Rüdesheim am Rhein | H178: 06439013 | I178: Rüdesheim am Rhein | J178: 439013 | K178: =VLOOKUP(J178,Adressen!$F$1:$L$469,7,FALSE) -> 65385 | L178: 178 | N178: 178 | O178: 06440005 | P178: Butzbach | Q178: 189
A179: Schlangenbad | B179: LK Rheingau-Taunus | C179: 06439014 | D179: B | F179: 179 | G179: Schlangenbad | H179: 06439014 | I179: Schlangenbad | J179: 439014 | K179: =VLOOKUP(J179,Adressen!$F$1:$L$469,7,FALSE) -> 65388 | L179: 179 | N179: 179 | O179: 06440006 | P179: Echzell | Q179: 190
A180: Taunusstein | B180: LK Rheingau-Taunus | C180: 06439015 | D180: B | F180: 180 | G180: Taunusstein | H180: 06439015 | I180: Taunusstein | J180: 439015 | K180: =VLOOKUP(J180,Adressen!$F$1:$L$469,7,FALSE) -> 65232 | L180: 180 | N180: 180 | O180: 06440007 | P180: Florstadt | Q180: 191
A181: Waldems | B181: LK Rheingau-Taunus | C181: 06439016 | D181: B | F181: 181 | G181: Waldems | H181: 06439016 | I181: Waldems | J181: 439016 | K181: =VLOOKUP(J181,Adressen!$F$1:$L$469,7,FALSE) -> 65529 | L181: 181 | N181: 181 | O181: 06440008 | P181: Friedberg | Q181: 192
A182: Walluf | B182: LK Rheingau-Taunus | C182: 06439017 | D182: B | F182: 182 | G182: Walluf | H182: 06439017 | I182: Walluf | J182: 439017 | K182: =VLOOKUP(J182,Adressen!$F$1:$L$469,7,FALSE) -> 65396 | L182: 182 | N182: 182 | O182: 06440009 | P182: Gedern | Q182: 193
D183: B | F183: 183 | G183: Bitte auswählen! | I183: Bitte auswählen! | L183: 183 | N183: 183 | O183: 06440010 | P183: Glauburg | Q183: 194
A184: LK Wetterau | B184: LK Wetterau | C184: 06440 | D184: B | F184: 184 | G184: LK Wetterau | H184: 06440000 | I184: LK Wetterau | J184: 440000 | K184: =VLOOKUP(J184,Adressen!$F$1:$L$469,7,FALSE) -> 61169 | L184: 184 | N184: 184 | O184: 06440011 | P184: Hirzenhain | Q184: 195
A185: Altenstadt | B185: LK Wetterau | C185: 06440001 | D185: B | F185: 185 | G185: Altenstadt | H185: 06440001 | I185: Altenstadt | J185: 440001 | K185: =VLOOKUP(J185,Adressen!$F$1:$L$469,7,FALSE) -> 63674 | L185: 185 | N185: 185 | O185: 06440012 | P185: Karben | Q185: 196
A186: Bad Nauheim | B186: LK Wetterau | C186: 06440002 | D186: B | F186: 186 | G186: Bad Nauheim | H186: 06440002 | I186: Bad Nauheim | J186: 440002 | K186: =VLOOKUP(J186,Adressen!$F$1:$L$469,7,FALSE) -> 61231 | L186: 186 | N186: 186 | O186: 06440013 | P186: Kefenrod | Q186: 197
A187: Bad Vilbel | B187: LK Wetterau | C187: 06440003 | D187: B | F187: 187 | G187: Bad Vilbel | H187: 06440003 | I187: Bad Vilbel | J187: 440003 | K187: =VLOOKUP(J187,Adressen!$F$1:$L$469,7,FALSE) -> 61118 | L187: 187 | N187: 187 | O187: 06440014 | P187: Limeshain | Q187: 198
A188: Büdingen | B188: LK Wetterau | C188: 06440004 | D188: B | F188: 188 | G188: Büdingen | H188: 06440004 | I188: Büdingen | J188: 440004 | K188: =VLOOKUP(J188,Adressen!$F$1:$L$469,7,FALSE) -> 63654 | L188: 188 | N188: 188 | O188: 06440015 | P188: Münzenberg | Q188: 199
A189: Butzbach | B189: LK Wetterau | C189: 06440005 | D189: B | F189: 189 | G189: Butzbach | H189: 06440005 | I189: Butzbach | J189: 440005 | K189: =VLOOKUP(J189,Adressen!$F$1:$L$469,7,FALSE) -> 35510 | L189: 189 | N189: 189 | O189: 06440016 | P189: Nidda | Q189: 200
A190: Echzell | B190: LK Wetterau | C190: 06440006 | D190: B | F190: 190 | G190: Echzell | H190: 06440006 | I190: Echzell | J190: 440006 | K190: =VLOOKUP(J190,Adressen!$F$1:$L$469,7,FALSE) -> 61209 | L190: 190 | N190: 190 | O190: 06440017 | P190: Niddatal | Q190: 201
A191: Florstadt | B191: LK Wetterau | C191: 06440007 | D191: B | F191: 191 | G191: Florstadt | H191: 06440007 | I191: Florstadt | J191: 440007 | K191: =VLOOKUP(J191,Adressen!$F$1:$L$469,7,FALSE) -> 61197 | L191: 191 | N191: 191 | O191: 06440018 | P191: Ober-Mörlen | Q191: 202
A192: Friedberg | B192: LK Wetterau | C192: 06440008 | D192: B | F192: 192 | G192: Friedberg | H192: 06440008 | I192: Friedberg | J192: 440008 | K192: =VLOOKUP(J192,Adressen!$F$1:$L$469,7,FALSE) -> 61169 | L192: 192 | N192: 192 | O192: 06440019 | P192: Ortenberg | Q192: 203
A193: Gedern | B193: LK Wetterau | C193: 06440009 | D193: B | F193: 193 | G193: Gedern | H193: 06440009 | I193: Gedern | J193: 440009 | K193: =VLOOKUP(J193,Adressen!$F$1:$L$469,7,FALSE) -> 63688 | L193: 193 | N193: 193 | O193: 06440020 | P193: Ranstadt | Q193: 204
A194: Glauburg | B194: LK Wetterau | C194: 06440010 | D194: B | F194: 194 | G194: Glauburg | H194: 06440010 | I194: Glauburg | J194: 440010 | K194: =VLOOKUP(J194,Adressen!$F$1:$L$469,7,FALSE) -> 63695 | L194: 194 | N194: 194 | O194: 06440021 | P194: Reichelsheim (Wetterau) | Q194: 205
A195: Hirzenhain | B195: LK Wetterau | C195: 06440011 | D195: B | F195: 195 | G195: Hirzenhain | H195: 06440011 | I195: Hirzenhain | J195: 440011 | K195: =VLOOKUP(J195,Adressen!$F$1:$L$469,7,FALSE) -> 63697 | L195: 195 | N195: 195 | O195: 06440022 | P195: Rockenberg | Q195: 206
A196: Karben | B196: LK Wetterau | C196: 06440012 | D196: B | F196: 196 | G196: Karben | H196: 06440012 | I196: Karben | J196: 440012 | K196: =VLOOKUP(J196,Adressen!$F$1:$L$469,7,FALSE) -> 61184 | L196: 196 | N196: 196 | O196: 06440023 | P196: Rosbach v. d. Höhe | Q196: 207
A197: Kefenrod | B197: LK Wetterau | C197: 06440013 | D197: B | F197: 197 | G197: Kefenrod | H197: 06440013 | I197: Kefenrod | J197: 440013 | K197: =VLOOKUP(J197,Adressen!$F$1:$L$469,7,FALSE) -> 63699 | L197: 197 | N197: 197 | O197: 06440024 | P197: Wölfersheim | Q197: 208
A198: Limeshain | B198: LK Wetterau | C198: 06440014 | D198: B | F198: 198 | G198: Limeshain | H198: 06440014 | I198: Limeshain | J198: 440014 | K198: =VLOOKUP(J198,Adressen!$F$1:$L$469,7,FALSE) -> 63694 | L198: 198 | N198: 198 | O198: 06440025 | P198: Wöllstadt | Q198: 209
A199: Münzenberg | B199: LK Wetterau | C199: 06440015 | D199: B | F199: 199 | G199: Münzenberg | H199: 06440015 | I199: Münzenberg | J199: 440015 | K199: =VLOOKUP(J199,Adressen!$F$1:$L$469,7,FALSE) -> 35516 | L199: 199 | N199: 199 | O199: 06531000 | P199: LK Gießen | Q199: 211
A200: Nidda | B200: LK Wetterau | C200: 06440016 | D200: B | F200: 200 | G200: Nidda | H200: 06440016 | I200: Nidda | J200: 440016 | K200: =VLOOKUP(J200,Adressen!$F$1:$L$469,7,FALSE) -> 63667 | L200: 200 | N200: 200 | O200: 06531001 | P200: Allendorf (Lumda) | Q200: 212
... 271 more rows

Sheet Werteliste ID_FOERDB (hidden)
A1: Werteliste Art der Maßnahme
A3: Bitte auswählen! | B3: 1 | C3: Keine Auswahl getroffen! | D3: -
A4: 1. a) Krankenhäuser (Förderung in Hessen grds. über das Landesprogramm) | B4: 2 | C4: 1. a) Krankenhäuser | D4: - | E4: 1a
A5: 1. b) Lärmbekämpfung, insbesondere bei Straßen, ohne Schutz vor verhaltensbezogenem Lärm | B5: 3 | C5: 1. b) Lärmbekämpfung, insbesondere bei Straßen, ohne Schutz vor verhaltensbezogenem Lärm | D5: Die Umsetzung einer "normalen Straßensanierung" (ohne eine nachweisbare Lärmreduzierung über den Förderbereich nach § 3 S.1 Nr.1b KInvFG) ist nicht möglich. | E5: 1b
A6: 1. c) Städtebau (ohne Abwasser) einschließlich altersgerechter Umbau, Barriereabbau (auch im öffentlichen Personennahverkehr), Brachflächenrevitalisierung | B6: 4 | C6: 1. c) Städtebau (ohne Abwasser) einschließlich altersgerechter Umbau, Barriereabbau , Brachflächenrevitalisierung | D6: Der Barriereabbau wird auch im öffentlichen Personennahverkehr gefördert. Rechtsgrundlage für die Förderung des Bundes ist das BauGB. | E6: 1c
A7: 1. d) Informationstechnologie, beschränkt auf finanzschwache Kommunen in ländlichen Gebieten, zur Erreichung des 50 Mbit-Ausbauziels | B7: 5 | C7: 1. d) Informationstechnologie, beschränkt auf finanzschwache Kommunen in ländlichen Gebieten, zur Erreichung des 50 Mbit-Ausbauziels | D7: Die "ländlichen Gebiete" bestimmen sich nach den Zuordnungen des Landesentwicklungsplans. | E7: 1d
A8: 1. e) Energetische Sanierung sonstiger Infrastrukturinvestitionen | B8: 6 | C8: 1. e) Energetische Sanierung sonstiger Infrastrukturinvestitionen | D8: - | E8: 1e
A9: 1. f) Luftreinhaltung | B9: 7 | C9: 1. f) Luftreinhaltung | D9: - | E9: 1f
A10: 2. a) Einrichtungen der frühkindlichen Infrastruktur, einschließlich des Anschlusses dieser Infrastruktur an ein vorhandenes Netz, aus dem Wärme aus erneuerbaren Energieträgern bezogen wird | B10: 8 | C10: 2. a) Einrichtungen der frühkindlichen Infrastruktur | D10: Einschließlich des Anschlusses dieser Infrastruktur an ein vorhandenes Netz, aus dem Wärme aus erneuerbaren Energieträgern bezogen wird. "frühkindlich": betrifft Kinder bis zur Einschulung | E10: 2a
A11: 2. b) Energetische Sanierung von Einrichtungen der Schulinfrastruktur | B11: 9 | C11: 2. b) Energetische Sanierung von Einrichtungen der Schulinfrastruktur | D11: Es können ausschließlich Maßnahmen zur energetischen Sanierung gefördert werden. Eine Generalsanierung eines Schulgebäudes ist nicht möglich. | E11: 2b
A12: 2. c) Energetische Sanierung kommunaler oder gemeinnütziger Einrichtungen der Weiterbildung | B12: 10 | C12: 2. c) Energetische Sanierung kommunaler oder gemeinnütziger Einrichtungen der Weiterbildung | D12: - | E12: 2c
A13: 2. d) Modernisierung von überbetrieblichen Berufsbildungsstätten | B13: 11 | C13: 2. d) Modernisierung von überbetrieblichen Berufsbildungsstätten | D13: Die Modernisierung umfasst eine Erhöhung des Standards der Berufsbildungsstätte, genauer: des Gebäudes. | E13: 2d
A20: 1 | B20: 2 | C20: 3 | D20: 4 | E20: 5 | F20: 6 | G20: 7 | H20: 8 | I20: 9 | J20: 10 | K20: 11 | L20: 12 | M20: 13 | N20: 14 | O20: 15

Sheet Werteliste Gemeindeschlüssel (hidden)
A1: Werteliste Gemeindeschlüssel
A3: bitte auswählen | B3: 1 | C3: Gemeindeschlüssel | D3: Kommune | E3: Landkreis
A4: =CONCATENATE(C4," ",D4) -> 06411 Darmstadt | B4: 2 | C4: 06411 | D4: Darmstadt
A5: =CONCATENATE(C5," ",D5) -> 06412 Frankfurt am Main | B5: 3 | C5: 06412 | D5: Frankfurt am Main
A6: =CONCATENATE(C6," ",D6) -> 06413 Offenbach am Main | B6: 4 | C6: 06413 | D6: Offenbach am Main
A7: =CONCATENATE(C7," ",D7) -> 06414 Wiesbaden | B7: 5 | C7: 06414 | D7: Wiesbaden
A9: =CONCATENATE(C9," ",D9) -> 06431 LK Bergstraße | B9: 6 | C9: 06431 | D9: LK Bergstraße | E9: LK Bergstraße
A10: =CONCATENATE(C10," ",D10) -> 06431001 Abtsteinach | B10: 7 | C10: 06431001 | D10: Abtsteinach | E10: LK Bergstraße
A11: 06431002 Bensheim | B11: 8 | C11: 06431002 | D11: Bensheim | E11: LK Bergstraße
A12: 06431003 Biblis | B12: 9 | C12: 06431003 | D12: Biblis | E12: LK Bergstraße
A13: 06431004 Birkenau | B13: 10 | C13: 06431004 | D13: Birkenau | E13: LK Bergstraße
A14: 06431005 Bürstadt | B14: 11 | C14: 06431005 | D14: Bürstadt | E14: LK Bergstraße
A15: 06431006 Einhausen | B15: 12 | C15: 06431006 | D15: Einhausen | E15: LK Bergstraße
A16: 06431007 Fürth | B16: 13 | C16: 06431007 | D16: Fürth | E16: LK Bergstraße
A17: 06431008 Gorxheimertal | B17: 14 | C17: 06431008 | D17: Gorxheimertal | E17: LK Bergstraße
A18: 06431009 Grasellenbach | B18: 15 | C18: 06431009 | D18: Grasellenbach | E18: LK Bergstraße
A19: 06431010 Groß-Rohrheim | B19: 16 | C19: 06431010 | D19: Groß-Rohrheim | E19: LK Bergstraße
A20: 06431011 Heppenheim (Bergstraße) | B20: 17 | C20: 06431011 | D20: Heppenheim (Bergstraße) | E20: LK Bergstraße
A21: 06431012 Hirschhorn (Neckar) | B21: 18 | C21: 06431012 | D21: Hirschhorn (Neckar) | E21: LK Bergstraße
A22: 06431013 Lampertheim | B22: 19 | C22: 06431013 | D22: Lampertheim | E22: LK Bergstraße
A23: 06431014 Lautertal (Odenwald) | B23: 20 | C23: 06431014 | D23: Lautertal (Odenwald) | E23: LK Bergstraße
A24: 06431015 Lindenfels | B24: 21 | C24: 06431015 | D24: Lindenfels | E24: LK Bergstraße
A25: 06431016 Lorsch | B25: 22 | C25: 06431016 | D25: Lorsch | E25: LK Bergstraße
A26: 06431017 Mörlenbach | B26: 23 | C26: 06431017 | D26: Mörlenbach | E26: LK Bergstraße
A27: 06431018 Neckarsteinach | B27: 24 | C27: 06431018 | D27: Neckarsteinach | E27: LK Bergstraße
A28: 06431019 Rimbach | B28: 25 | C28: 06431019 | D28: Rimbach | E28: LK Bergstraße
A29: 06431020 Viernheim | B29: 26 | C29: 06431020 | D29: Viernheim | E29: LK Bergstraße
A30: 06431021 Wald-Michelbach | B30: 27 | C30: 06431021 | D30: Wald-Michelbach | E30: LK Bergstraße
A31: 06431022 Zwingenberg | B31: 28 | C31: 06431022 | D31: Zwingenberg | E31: LK Bergstraße
A33: =CONCATENATE(C33," ",D33) -> 06432 LK Darmstadt-Dieburg | B33: 29 | C33: 06432 | D33: LK Darmstadt-Dieburg | E33: LK Darmstadt-Dieburg
A34: =CONCATENATE(C34," ",D34) -> 06432001 Alsbach-Hähnlein | B34: 30 | C34: 06432001 | D34: Alsbach-Hähnlein | E34: LK Darmstadt-Dieburg
A35: 06432002 Babenhausen | B35: 31 | C35: 06432002 | D35: Babenhausen | E35: LK Darmstadt-Dieburg
A36: 06432003 Bickenbach | B36: 32 | C36: 06432003 | D36: Bickenbach | E36: LK Darmstadt-Dieburg
A37: 06432004 Dieburg | B37: 33 | C37: 06432004 | D37: Dieburg | E37: LK Darmstadt-Dieburg
A38: 06432005 Eppertshausen | B38: 34 | C38: 06432005 | D38: Eppertshausen | E38: LK Darmstadt-Dieburg
A39: 06432006 Erzhausen | B39: 35 | C39: 06432006 | D39: Erzhausen | E39: LK Darmstadt-Dieburg
A40: 06432007 Fischbachtal | B40: 36 | C40: 06432007 | D40: Fischbachtal | E40: LK Darmstadt-Dieburg
A41: 06432008 Griesheim | B41: 37 | C41: 06432008 | D41: Griesheim | E41: LK Darmstadt-Dieburg
A42: 06432009 Groß-Bieberau | B42: 38 | C42: 06432009 | D42: Groß-Bieberau | E42: LK Darmstadt-Dieburg
A43: 06432010 Groß-Umstadt | B43: 39 | C43: 06432010 | D43: Groß-Umstadt | E43: LK Darmstadt-Dieburg
A44: 06432011 Groß-Zimmern | B44: 40 | C44: 06432011 | D44: Groß-Zimmern | E44: LK Darmstadt-Dieburg
A45: 06432012 Messel | B45: 41 | C45: 06432012 | D45: Messel | E45: LK Darmstadt-Dieburg
A46: 06432013 Modautal | B46: 42 | C46: 06432013 | D46: Modautal | E46: LK Darmstadt-Dieburg
A47: 06432014 Mühltal | B47: 43 | C47: 06432014 | D47: Mühltal | E47: LK Darmstadt-Dieburg
A48: 06432015 Münster | B48: 44 | C48: 06432015 | D48: Münster | E48: LK Darmstadt-Dieburg
A49: 06432016 Ober-Ramstadt | B49: 45 | C49: 06432016 | D49: Ober-Ramstadt | E49: LK Darmstadt-Dieburg
A50: 06432017 Otzberg | B50: 46 | C50: 06432017 | D50: Otzberg | E50: LK Darmstadt-Dieburg
A51: 06432018 Pfungstadt | B51: 47 | C51: 06432018 | D51: Pfungstadt | E51: LK Darmstadt-Dieburg
A52: 06432019 Reinheim | B52: 48 | C52: 06432019 | D52: Reinheim | E52: LK Darmstadt-Dieburg
A53: 06432020 Roßdorf | B53: 49 | C53: 06432020 | D53: Roßdorf | E53: LK Darmstadt-Dieburg
A54: 06432021 Schaafheim | B54: 50 | C54: 06432021 | D54: Schaafheim | E54: LK Darmstadt-Dieburg
A55: 06432022 Seeheim-Jugenheim | B55: 51 | C55: 06432022 | D55: Seeheim-Jugenheim | E55: LK Darmstadt-Dieburg
A56: 06432023 Weiterstadt | B56: 52 | C56: 06432023 | D56: Weiterstadt | E56: LK Darmstadt-Dieburg
A58: =CONCATENATE(C58," ",D58) -> 06433 LK Groß-Gerau | B58: 53 | C58: 06433 | D58: LK Groß-Gerau | E58: LK Groß-Gerau
A59: =CONCATENATE(C59," ",D59) -> 06433001 Biebesheim am Rhein | B59: 54 | C59: 06433001 | D59: Biebesheim am Rhein | E59: LK Groß-Gerau
A60: 06433002 Bischofsheim | B60: 55 | C60: 06433002 | D60: Bischofsheim | E60: LK Groß-Gerau
A61: 06433003 Büttelborn | B61: 56 | C61: 06433003 | D61: Büttelborn | E61: LK Groß-Gerau
A62: 06433004 Gernsheim | B62: 57 | C62: 06433004 | D62: Gernsheim | E62: LK Groß-Gerau
A63: 06433005 Ginsheim-Gustavsburg | B63: 58 | C63: 06433005 | D63: Ginsheim-Gustavsburg | E63: LK Groß-Gerau
A64: 06433006 Groß-Gerau | B64: 59 | C64: 06433006 | D64: Groß-Gerau | E64: LK Groß-Gerau
A65: 06433007 Kelsterbach | B65: 60 | C65: 06433007 | D65: Kelsterbach | E65: LK Groß-Gerau
A66: 06433008 Mörfelden-Walldorf | B66: 61 | C66: 06433008 | D66: Mörfelden-Walldorf | E66: LK Groß-Gerau
A67: 06433009 Nauheim | B67: 62 | C67: 06433009 | D67: Nauheim | E67: LK Groß-Gerau
A68: 06433010 Raunheim | B68: 63 | C68: 06433010 | D68: Raunheim | E68: LK Groß-Gerau
A69: 06433011 Riedstadt | B69: 64 | C69: 06433011 | D69: Riedstadt | E69: LK Groß-Gerau
A70: 06433012 Rüsselsheim | B70: 65 | C70: 06433012 | D70: Rüsselsheim | E70: LK Groß-Gerau
A71: 06433013 Stockstadt | B71: 66 | C71: 06433013 | D71: Stockstadt | E71: LK Groß-Gerau
A72: 06433014 Trebur | B72: 67 | C72: 06433014 | D72: Trebur | E72: LK Groß-Gerau
A74: =CONCATENATE(C74," ",D74) -> 06434 LK Hochtaunus | B74: 68 | C74: 06434 | D74: LK Hochtaunus | E74: LK Hochtaunus
A75: =CONCATENATE(C75," ",D75) -> 06434001 Bad Homburg v.d.H. | B75: 69 | C75: 06434001 | D75: Bad Homburg v.d.H. | E75: LK Hochtaunus
A76: 06434002 Friedrichsdorf | B76: 70 | C76: 06434002 | D76: Friedrichsdorf | E76: LK Hochtaunus
A77: 06434003 Glashütten | B77: 71 | C77: 06434003 | D77: Glashütten | E77: LK Hochtaunus
A78: 06434004 Grävenwiesbach | B78: 72 | C78: 06434004 | D78: Grävenwiesbach | E78: LK Hochtaunus
A79: 06434005 Königstein im Taunus | B79: 73 | C79: 06434005 | D79: Königstein im Taunus | E79: LK Hochtaunus
A80: 06434006 Kronberg | B80: 74 | C80: 06434006 | D80: Kronberg | E80: LK Hochtaunus
A81: 06434007 Neu-Anspach | B81: 75 | C81: 06434007 | D81: Neu-Anspach | E81: LK Hochtaunus
A82: 06434008 Oberursel (Taunus) | B82: 76 | C82: 06434008 | D82: Oberursel (Taunus) | E82: LK Hochtaunus
A83: 06434009 Schmitten | B83: 77 | C83: 06434009 | D83: Schmitten | E83: LK Hochtaunus
A84: 06434010 Steinbach (Taunus) | B84: 78 | C84: 06434010 | D84: Steinbach (Taunus) | E84: LK Hochtaunus
A85: 06434011 Usingen | B85: 79 | C85: 06434011 | D85: Usingen | E85: LK Hochtaunus
A86: 06434012 Wehrheim | B86: 80 | C86: 06434012 | D86: Wehrheim | E86: LK Hochtaunus
A87: 06434013 Weilrod | B87: 81 | C87: 06434013 | D87: Weilrod | E87: LK Hochtaunus
A89: =CONCATENATE(C89," ",D89) -> 06435 LK Main-Kinzig | B89: 82 | C89: 06435 | D89: LK Main-Kinzig | E89: LK Main-Kinzig
A90: =CONCATENATE(C90," ",D90) -> 06435001 Bad Orb | B90: 83 | C90: 06435001 | D90: Bad Orb | E90: LK Main-Kinzig
A91: 06435002 Bad Soden-Salmünster | B91: 84 | C91: 06435002 | D91: Bad Soden-Salmünster | E91: LK Main-Kinzig
A92: 06435003 Biebergemünd | B92: 85 | C92: 06435003 | D92: Biebergemünd | E92: LK Main-Kinzig
A93: 06435004 Birstein | B93: 86 | C93: 06435004 | D93: Birstein | E93: LK Main-Kinzig
A94: 06435005 Brachttal | B94: 87 | C94: 06435005 | D94: Brachttal | E94: LK Main-Kinzig
A95: 06435006 Bruchköbel | B95: 88 | C95: 06435006 | D95: Bruchköbel | E95: LK Main-Kinzig
A96: 06435007 Erlensee | B96: 89 | C96: 06435007 | D96: Erlensee | E96: LK Main-Kinzig
A97: 06435008 Flörsbachtal | B97: 90 | C97: 06435008 | D97: Flörsbachtal | E97: LK Main-Kinzig
A98: 06435009 Freigericht | B98: 91 | C98: 06435009 | D98: Freigericht | E98: LK Main-Kinzig
A99: 06435010 Gelnhausen | B99: 92 | C99: 06435010 | D99: Gelnhausen | E99: LK Main-Kinzig
A100: 06435011 Großkrotzenburg | B100: 93 | C100: 06435011 | D100: Großkrotzenburg | E100: LK Main-Kinzig
A101: 06435012 Gründau | B101: 94 | C101: 06435012 | D101: Gründau | E101: LK Main-Kinzig
A102: 06435013 Hammersbach | B102: 95 | C102: 06435013 | D102: Hammersbach | E102: LK Main-Kinzig
A103: 06435014 Hanau | B103: 96 | C103: 06435014 | D103: Hanau | E103: LK Main-Kinzig
A104: 06435015 Hasselroth | B104: 97 | C104: 06435015 | D104: Hasselroth | E104: LK Main-Kinzig
A105: 06435016 Jossgrund | B105: 98 | C105: 06435016 | D105: Jossgrund | E105: LK Main-Kinzig
A106: 06435017 Langenselbold | B106: 99 | C106: 06435017 | D106: Langenselbold | E106: LK Main-Kinzig
A107: 06435018 Linsengericht | B107: 100 | C107: 06435018 | D107: Linsengericht | E107: LK Main-Kinzig
A108: 06435019 Maintal | B108: 101 | C108: 06435019 | D108: Maintal | E108: LK Main-Kinzig
A109: 06435020 Neuberg | B109: 102 | C109: 06435020 | D109: Neuberg | E109: LK Main-Kinzig
A110: 06435021 Nidderau | B110: 103 | C110: 06435021 | D110: Nidderau | E110: LK Main-Kinzig
A111: 06435022 Niederdorfelden | B111: 104 | C111: 06435022 | D111: Niederdorfelden | E111: LK Main-Kinzig
A112: 06435023 Rodenbach | B112: 105 | C112: 06435023 | D112: Rodenbach | E112: LK Main-Kinzig
A113: 06435024 Ronneburg | B113: 106 | C113: 06435024 | D113: Ronneburg | E113: LK Main-Kinzig
A114: 06435025 Schlüchtern | B114: 107 | C114: 06435025 | D114: Schlüchtern | E114: LK Main-Kinzig
A115: 06435026 Schöneck | B115: 108 | C115: 06435026 | D115: Schöneck | E115: LK Main-Kinzig
A116: 06435027 Sinntal | B116: 109 | C116: 06435027 | D116: Sinntal | E116: LK Main-Kinzig
A117: 06435028 Steinau an der Straße | B117: 110 | C117: 06435028 | D117: Steinau an der Straße | E117: LK Main-Kinzig
A118: 06435029 Wächtersbach | B118: 111 | C118: 06435029 | D118: Wächtersbach | E118: LK Main-Kinzig
A120: =CONCATENATE(C120," ",D120) -> 06436 LK Main-Taunus | B120: 112 | C120: 06436 | D120: LK Main-Taunus | E120: LK Main-Taunus
A121: =CONCATENATE(C121," ",D121) -> 06436001 Bad Soden am Taunus | B121: 113 | C121: 06436001 | D121: Bad Soden am Taunus | E121: LK Main-Taunus
A122: 06436002 Eppstein | B122: 114 | C122: 06436002 | D122: Eppstein | E122: LK Main-Taunus
A123: 06436003 Eschborn | B123: 115 | C123: 06436003 | D123: Eschborn | E123: LK Main-Taunus
A124: 06436004 Flörsheim am Main | B124: 116 | C124: 06436004 | D124: Flörsheim am Main | E124: LK Main-Taunus
A125: 06436005 Hattersheim am Main | B125: 117 | C125: 06436005 | D125: Hattersheim am Main | E125: LK Main-Taunus
A126: 06436006 Hochheim am Main | B126: 118 | C126: 06436006 | D126: Hochheim am Main | E126: LK Main-Taunus
A127: 06436007 Hofheim am Taunus | B127: 119 | C127: 06436007 | D127: Hofheim am Taunus | E127: LK Main-Taunus
A128: 06436008 Kelkheim (Taunus) | B128: 120 | C128: 06436008 | D128: Kelkheim (Taunus) | E128: LK Main-Taunus
A129: 06436009 Kriftel | B129: 121 | C129: 06436009 | D129: Kriftel | E129: LK Main-Taunus
A130: 06436010 Liederbach am Taunus | B130: 122 | C130: 06436010 | D130: Liederbach am Taunus | E130: LK Main-Taunus
A131: 06436011 Schwalbach | B131: 123 | C131: 06436011 | D131: Schwalbach | E131: LK Main-Taunus
A132: 06436012 Sulzbach | B132: 124 | C132: 06436012 | D132: Sulzbach | E132: LK Main-Taunus
A134: =CONCATENATE(C134," ",D134) -> 06437 LK Odenwald | B134: 125 | C134: 06437 | D134: LK Odenwald | E134: LK Odenwald
A135: =CONCATENATE(C135," ",D135) -> 06437001 Bad König | B135: 126 | C135: 06437001 | D135: Bad König | E135: LK Odenwald
A136: 06437002 Beerfelden | B136: 127 | C136: 06437002 | D136: Beerfelden | E136: LK Odenwald
A137: 06437003 Brensbach | B137: 128 | C137: 06437003 | D137: Brensbach | E137: LK Odenwald
A138: 06437004 Breuberg | B138: 129 | C138: 06437004 | D138: Breuberg | E138: LK Odenwald
A139: 06437005 Brombachtal | B139: 130 | C139: 06437005 | D139: Brombachtal | E139: LK Odenwald
A140: 06437006 Erbach | B140: 131 | C140: 06437006 | D140: Erbach | E140: LK Odenwald
A141: 06437007 Fränkisch-Crumbach | B141: 132 | C141: 06437007 | D141: Fränkisch-Crumbach | E141: LK Odenwald
A142: 06437008 Hesseneck | B142: 133 | C142: 06437008 | D142: Hesseneck | E142: LK Odenwald
A143: 06437009 Höchst i.Odw. | B143: 134 | C143: 06437009 | D143: Höchst i.Odw. | E143: LK Odenwald
A144: 06437010 Lützelbach | B144: 135 | C144: 06437010 | D144: Lützelbach | E144: LK Odenwald
A145: 06437011 Michelstadt | B145: 136 | C145: 06437011 | D145: Michelstadt | E145: LK Odenwald
A146: 06437012 Mossautal | B146: 137 | C146: 06437012 | D146: Mossautal | E146: LK Odenwald
A147: 06437013 Reichelsheim (Odenwald) | B147: 138 | C147: 06437013 | D147: Reichelsheim (Odenwald) | E147: LK Odenwald
A148: 06437014 Rothenberg | B148: 139 | C148: 06437014 | D148: Rothenberg | E148: LK Odenwald
A149: 06437015 Sensbachtal | B149: 140 | C149: 06437015 | D149: Sensbachtal | E149: LK Odenwald
A151: =CONCATENATE(C151," ",D151) -> 06438 LK Offenbach | B151: 141 | C151: 06438 | D151: LK Offenbach | E151: LK Offenbach
A152: =CONCATENATE(C152," ",D152) -> 06438001 Dietzenbach | B152: 142 | C152: 06438001 | D152: Dietzenbach | E152: LK Offenbach
A153: 06438002 Dreieich | B153: 143 | C153: 06438002 | D153: Dreieich | E153: LK Offenbach
A154: 06438003 Egelsbach | B154: 144 | C154: 06438003 | D154: Egelsbach | E154: LK Offenbach
A155: 06438004 Hainburg | B155: 145 | C155: 06438004 | D155: Hainburg | E155: LK Offenbach
A156: 06438005 Heusenstamm | B156: 146 | C156: 06438005 | D156: Heusenstamm | E156: LK Offenbach
A157: 06438006 Langen | B157: 147 | C157: 06438006 | D157: Langen | E157: LK Offenbach
A158: 06438007 Mainhausen | B158: 148 | C158: 06438007 | D158: Mainhausen | E158: LK Offenbach
A159: 06438008 Mühlheim am Main | B159: 149 | C159: 06438008 | D159: Mühlheim am Main | E159: LK Offenbach
A160: 06438009 Neu-Isenburg | B160: 150 | C160: 06438009 | D160: Neu-Isenburg | E160: LK Offenbach
A161: 06438010 Obertshausen | B161: 151 | C161: 06438010 | D161: Obertshausen | E161: LK Offenbach
A162: 06438011 Rodgau | B162: 152 | C162: 06438011 | D162: Rodgau | E162: LK Offenbach
A163: 06438012 Rödermark | B163: 153 | C163: 06438012 | D163: Rödermark | E163: LK Offenbach
A164: 06438013 Seligenstadt | B164: 154 | C164: 06438013 | D164: Seligenstadt | E164: LK Offenbach
A166: =CONCATENATE(C166," ",D166) -> 06439 LK Rheingau-Taunus | B166: 155 | C166: 06439 | D166: LK Rheingau-Taunus | E166: LK Rheingau-Taunus
A167: =CONCATENATE(C167," ",D167) -> 06439001 Aarbergen | B167: 156 | C167: 06439001 | D167: Aarbergen | E167: LK Rheingau-Taunus
A168: 06439002 Bad Schwalbach | B168: 157 | C168: 06439002 | D168: Bad Schwalbach | E168: LK Rheingau-Taunus
A169: 06439003 Eltville am Rhein | B169: 158 | C169: 06439003 | D169: Eltville am Rhein | E169: LK Rheingau-Taunus
A170: 06439004 Geisenheim | B170: 159 | C170: 06439004 | D170: Geisenheim | E170: LK Rheingau-Taunus
A171: 06439005 Heidenrod | B171: 160 | C171: 06439005 | D171: Heidenrod | E171: LK Rheingau-Taunus
A172: 06439006 Hohenstein | B172: 161 | C172: 06439006 | D172: Hohenstein | E172: LK Rheingau-Taunus
A173: 06439007 Hünstetten | B173: 162 | C173: 06439007 | D173: Hünstetten | E173: LK Rheingau-Taunus
A174: 06439008 Idstein | B174: 163 | C174: 06439008 | D174: Idstein | E174: LK Rheingau-Taunus
A175: 06439009 Kiedrich | B175: 164 | C175: 06439009 | D175: Kiedrich | E175: LK Rheingau-Taunus
A176: 06439010 Lorch | B176: 165 | C176: 06439010 | D176: Lorch | E176: LK Rheingau-Taunus
A177: 06439011 Niedernhausen | B177: 166 | C177: 06439011 | D177: Niedernhausen | E177: LK Rheingau-Taunus
A178: 06439012 Oestrich-Winkel | B178: 167 | C178: 06439012 | D178: Oestrich-Winkel | E178: LK Rheingau-Taunus
A179: 06439013 Rüdesheim am Rhein | B179: 168 | C179: 06439013 | D179: Rüdesheim am Rhein | E179: LK Rheingau-Taunus
A180: 06439014 Schlangenbad | B180: 169 | C180: 06439014 | D180: Schlangenbad | E180: LK Rheingau-Taunus
A181: 06439015 Taunusstein | B181: 170 | C181: 06439015 | D181: Taunusstein | E181: LK Rheingau-Taunus
A182: 06439016 Waldems | B182: 171 | C182: 06439016 | D182: Waldems | E182: LK Rheingau-Taunus
A183: 06439017 Walluf | B183: 172 | C183: 06439017 | D183: Walluf | E183: LK Rheingau-Taunus
A185: =CONCATENATE(C185," ",D185) -> 06440 LK Wetterau | B185: 173 | C185: 06440 | D185: LK Wetterau | E185: LK Wetterau
A186: =CONCATENATE(C186," ",D186) -> 06440001 Altenstadt | B186: 174 | C186: 06440001 | D186: Altenstadt | E186: LK Wetterau
A187: 06440002 Bad Nauheim | B187: 175 | C187: 06440002 | D187: Bad Nauheim | E187: LK Wetterau
A188: 06440003 Bad Vilbel | B188: 176 | C188: 06440003 | D188: Bad Vilbel | E188: LK Wetterau
A189: 06440004 Büdingen | B189: 177 | C189: 06440004 | D189: Büdingen | E189: LK Wetterau
A190: 06440005 Butzbach | B190: 178 | C190: 06440005 | D190: Butzbach | E190: LK Wetterau
A191: 06440006 Echzell | B191: 179 | C191: 06440006 | D191: Echzell | E191: LK Wetterau
A192: 06440007 Florstadt | B192: 180 | C192: 06440007 | D192: Florstadt | E192: LK Wetterau
A193: 06440008 Friedberg | B193: 181 | C193: 06440008 | D193: Friedberg | E193: LK Wetterau
A194: 06440009 Gedern | B194: 182 | C194: 06440009 | D194: Gedern | E194: LK Wetterau
A195: 06440010 Glauburg | B195: 183 | C195: 06440010 | D195: Glauburg | E195: LK Wetterau
A196: 06440011 Hirzenhain | B196: 184 | C196: 06440011 | D196: Hirzenhain | E196: LK Wetterau
A197: 06440012 Karben | B197: 185 | C197: 06440012 | D197: Karben | E197: LK Wetterau
A198: 06440013 Kefenrod | B198: 186 | C198: 06440013 | D198: Kefenrod | E198: LK Wetterau
A199: 06440014 Limeshain | B199: 187 | C199: 06440014 | D199: Limeshain | E199: LK Wetterau
A200: 06440015 Münzenberg | B200: 188 | C200: 06440015 | D200: Münzenberg | E200: LK Wetterau
A201: 06440016 Nidda | B201: 189 | C201: 06440016 | D201: Nidda | E201: LK Wetterau
A202: 06440017 Niddatal | B202: 190 | C202: 06440017 | D202: Niddatal | E202: LK Wetterau
A203: 06440018 Ober-Mörlen | B203: 191 | C203: 06440018 | D203: Ober-Mörlen | E203: LK Wetterau
A204: 06440019 Ortenberg | B204: 192 | C204: 06440019 | D204: Ortenberg | E204: LK Wetterau
A205: 06440020 Ranstadt | B205: 193 | C205: 06440020 | D205: Ranstadt | E205: LK Wetterau
A206: 06440021 Reichelsheim (Wetterau) | B206: 194 | C206: 06440021 | D206: Reichelsheim (Wetterau) | E206: LK Wetterau
A207: 06440022 Rockenberg | B207: 195 | C207: 06440022 | D207: Rockenberg | E207: LK Wetterau
A208: 06440023 Rosbach v. d. Höhe | B208: 196 | C208: 06440023 | D208: Rosbach v. d. Höhe | E208: LK Wetterau
A209: 06440024 Wölfersheim | B209: 197 | C209: 06440024 | D209: Wölfersheim | E209: LK Wetterau
A210: 06440025 Wöllstadt | B210: 198 | C210: 06440025 | D210: Wöllstadt | E210: LK Wetterau
A212: =CONCATENATE(C212," ",D212) -> 06531 LK Gießen | B212: 199 | C212: 06531 | D212: LK Gießen | E212: LK Gießen
... 249 more rows

Sheet Werteliste Schulform (hidden)
A1: Werteliste Schulform
A3: bitte auswählen | B3: 1 | C3: Keine Auswahl getroffen
A4: Grundschule | B4: 2 | C4: Grundschule
A5: Haupt- oder Realschule | B5: 3 | C5: Haupt- oder Realschule
A6: Gymnasium | B6: 4 | C6: Gymnasium
A7: Gesamtschule | B7: 5 | C7: Gesamtschule
A8: Berufsschule | B8: 6 | C8: Berufsschule
A9: Förderschule | B9: 7 | C9: Förderschule
A10: verschiedene Schulen | B10: 8 | C10: verschiedene Schulen

Sheet antragsberechtigt B (hidden)
A1: Bitte auswählen! | D1: 1 | E1: Bitte auswählen!
A2: Ahnatal | B2: LK Kassel | C2: 06633001 | D2: 2 | E2: AHNATAL | F2: 6633001 | G2: ov | H2: 633 | J2: 431000 | K2: =(LEFT(J2,3))*1 -> 431 | M2: LK Bergstraße | O2: 1 | P2: 633001 | Q2: ov | R2: 633 | S2: AHNATAL | T2: =EXACT(A2,S2) -> FALSE | V2: 6633001 | W2: =VLOOKUP(C2,'Werteliste IDENT_LAND'!$C$1:$G$505,5,FALSE) -> Ahnatal | X2: AHNATAL | Y2: =PROPER(X2) -> Ahnatal | Z2: Ahnatal
A3: Alheim | B3: LK Hersfeld-Rotenburg | C3: 06632001 | D3: 3 | E3: ALHEIM | F3: 6632001 | G3: l | H3: 632 | J3: 432000 | K3: 432 | M3: LK Darmstadt-Dieburg | P3: 632001 | Q3: l | R3: 632 | S3: ALHEIM | T3: =EXACT(A3,S3) -> FALSE | V3: 6632001 | X3: ALHEIM | Y3: =PROPER(X3) -> Alheim | Z3: Alheim
A4: Allendorf (Lumda) | B4: LK Gießen | C4: 06531001 | D4: 4 | E4: ALLENDORF (LUMDA) | F4: 6531001 | G4: l | H4: 531 | J4: 436000 | K4: 436 | M4: LK Main-Taunus | P4: 531001 | Q4: l | R4: 531 | S4: ALLENDORF (LUMDA) | T4: FALSE | V4: 6531001 | X4: ALLENDORF (LUMDA) | Y4: Allendorf (Lumda) | Z4: Allendorf (Lumda)
A5: Alsfeld | B5: LK Vogelsberg | C5: 06535001 | D5: 5 | E5: ALSFELD | F5: 6535001 | G5: l | H5: 535 | J5: 437000 | K5: 437 | M5: LK Odenwaldkreis | P5: 535001 | Q5: l | R5: 535 | S5: ALSFELD | T5: FALSE | V5: 6535001 | X5: ALSFELD | Y5: Alsfeld | Z5: Alsfeld
A6: Amoeneburg | B6: LK Marburg-Biedenkopf | C6: 06534001 | D6: 6 | E6: AMOENEBURG | F6: 6534001 | G6: l | H6: 534 | J6: 438000 | K6: 438 | M6: LK Offenbach | P6: 534001 | Q6: l | R6: 534 | S6: AMOENEBURG | T6: FALSE | V6: 6534001 | X6: AMOENEBURG | Y6: Amoeneburg | Z6: Amoeneburg
A7: Angelburg | B7: LK Marburg-Biedenkopf | C7: 06534002 | D7: 7 | E7: ANGELBURG | F7: 6534002 | G7: l | H7: 534 | J7: 439000 | K7: 439 | M7: LK Rheingau-Taunus | P7: 534002 | Q7: l | R7: 534 | S7: ANGELBURG | T7: FALSE | V7: 6534002 | X7: ANGELBURG | Y7: Angelburg | Z7: Angelburg
A8: Antrifttal | B8: LK Vogelsberg | C8: 06535002 | D8: 8 | E8: ANTRIFTTAL | F8: 6535002 | G8: l | H8: 535 | J8: 440000 | K8: 440 | M8: LK Wetterau | P8: 535002 | Q8: l | R8: 535 | S8: ANTRIFTTAL | T8: FALSE | V8: 6535002 | X8: ANTRIFTTAL | Y8: Antrifttal | Z8: Antrifttal
A9: Bad Arolsen | B9: LK Waldeck-Frankenberg | C9: 06635002 | D9: 9 | E9: BAD AROLSEN | F9: 6635002 | G9: l | H9: 635 | J9: 533000 | K9: 533 | M9: LK Limburg-Weilburg | P9: 635002 | Q9: l | R9: 635 | S9: BAD AROLSEN | T9: FALSE | V9: 6635002 | X9: BAD AROLSEN | Y9: Bad Arolsen | Z9: Bad Arolsen
A10: Bad Emstal | B10: LK Kassel | C10: 06633006 | D10: 10 | E10: BAD EMSTAL | F10: 6633006 | G10: o | H10: 633 | J10: 535000 | K10: 535 | M10: LK Vogelsberg | P10: 633006 | Q10: o | R10: 633 | S10: BAD EMSTAL | T10: FALSE | V10: 6633006 | X10: BAD EMSTAL | Y10: Bad Emstal | Z10: Bad Emstal
A11: Bad Endbach | B11: LK Marburg-Biedenkopf | C11: 06534003 | D11: 11 | E11: BAD ENDBACH | F11: 6534003 | G11: l | H11: 534 | J11: 632000 | K11: 632 | M11: LK Hersfeld-Rotenburg | P11: 534003 | Q11: l | R11: 534 | S11: BAD ENDBACH | T11: FALSE | V11: 6534003 | X11: BAD ENDBACH | Y11: Bad Endbach | Z11: Bad Endbach
A12: Bad Hersfeld | B12: LK Hersfeld-Rotenburg | C12: 06632002 | D12: 12 | E12: BAD HERSFELD | F12: 6632002 | G12: l | H12: 632 | J12: 633000 | K12: 633 | M12: LK Kassel | P12: 632002 | Q12: l | R12: 632 | S12: BAD HERSFELD | T12: FALSE | V12: 6632002 | X12: BAD HERSFELD | Y12: Bad Hersfeld | Z12: Bad Hersfeld
A13: Bad Karlshafen | B13: LK Kassel | C13: 06633002 | D13: 13 | E13: BAD KARLSHAFEN | F13: 6633002 | G13: l | H13: 633 | J13: 634000 | K13: 634 | M13: LK Schwalm-Eder | P13: 633002 | Q13: l | R13: 633 | S13: BAD KARLSHAFEN | T13: FALSE | V13: 6633002 | X13: BAD KARLSHAFEN | Y13: Bad Karlshafen | Z13: Bad Karlshafen
A14: Bad Koenig | B14: LK Odenwaldkreis | C14: 06437001 | D14: 14 | E14: BAD KOENIG | F14: 6437001 | G14: l | H14: 437 | J14: 635000 | K14: 635 | M14: LK Waldeck-Frankenberg | P14: 437001 | Q14: l | R14: 437 | S14: BAD KOENIG | T14: FALSE | V14: 6437001 | X14: BAD KOENIG | Y14: Bad Koenig | Z14: Bad Koenig
A15: Bad Nauheim | B15: LK Wetterau | C15: 06440002 | D15: 15 | E15: BAD NAUHEIM | F15: 6440002 | G15: o | H15: 440 | J15: 636000 | K15: 636 | M15: LK Werra-Meißner | P15: 440002 | Q15: o | R15: 440 | S15: BAD NAUHEIM | T15: FALSE | V15: 6440002 | X15: BAD NAUHEIM | Y15: Bad Nauheim | Z15: Bad Nauheim
A16: Bad Orb | B16: LK Main-Kinzig | C16: 06435001 | D16: 16 | E16: BAD ORB | F16: 6435001 | G16: l | H16: 435 | J16: 433000 | K16: 433 | M16: LK Groß-Gerau | P16: 435001 | Q16: l | R16: 435 | S16: BAD ORB | T16: FALSE | V16: 6435001 | X16: BAD ORB | Y16: Bad Orb | Z16: Bad Orb
A17: Bad Schwalbach | B17: LK Rheingau-Taunus | C17: 06439002 | D17: 17 | E17: BAD SCHWALBACH | F17: 6439002 | G17: o | H17: 439 | J17: 434000 | K17: 434 | M17: LK Hochtaunus | P17: 439002 | Q17: o | R17: 439 | S17: BAD SCHWALBACH | T17: FALSE | V17: 6439002 | X17: BAD SCHWALBACH | Y17: Bad Schwalbach | Z17: Bad Schwalbach
A18: Bad Soden-Salmuenster | B18: LK Main-Kinzig | C18: 06435002 | D18: 18 | E18: BAD SODEN-SALMUENSTER | F18: 6435002 | G18: l | H18: 435 | J18: 435000 | K18: 435 | M18: LK Main-Kinzig | P18: 435002 | Q18: l | R18: 435 | S18: BAD SODEN-SALMUENSTER | T18: FALSE | V18: 6435002 | X18: BAD SODEN-SALMUENSTER | Y18: Bad Soden-Salmuenster | Z18: Bad Soden-Salmuenster
A19: Bad Sooden-Allendorf | B19: LK Werra-Meißner | C19: 06636001 | D19: 19 | E19: BAD SOODEN-ALLENDORF | F19: 6636001 | G19: l | H19: 636 | J19: 531000 | K19: 531 | M19: LK Gießen | P19: 636001 | Q19: l | R19: 636 | S19: BAD SOODEN-ALLENDORF | T19: FALSE | V19: 6636001 | X19: BAD SOODEN-ALLENDORF | Y19: Bad Sooden-Allendorf | Z19: Bad Sooden-Allendorf
A20: Bad Wildungen | B20: LK Waldeck-Frankenberg | C20: 06635003 | D20: 20 | E20: BAD WILDUNGEN | F20: 6635003 | G20: l | H20: 635 | J20: 532000 | K20: 532 | M20: LK Lahn-Dill | P20: 635003 | Q20: l | R20: 635 | S20: BAD WILDUNGEN | T20: FALSE | V20: 6635003 | X20: BAD WILDUNGEN | Y20: Bad Wildungen | Z20: Bad Wildungen
A21: Bad Zwesten | B21: LK Schwalm-Eder | C21: 06634027 | D21: 21 | E21: BAD ZWESTEN | F21: 6634027 | G21: l | H21: 634 | J21: 534000 | K21: 534 | M21: LK Marburg-Biedenkopf | P21: 634027 | Q21: l | R21: 634 | S21: BAD ZWESTEN | T21: FALSE | V21: 6634027 | X21: BAD ZWESTEN | Y21: Bad Zwesten | Z21: Bad Zwesten
A22: Bebra | B22: LK Hersfeld-Rotenburg | C22: 06632003 | D22: 22 | E22: BEBRA | F22: 6632003 | G22: l | H22: 632 | J22: 631000 | K22: 631 | M22: LK Fulda | P22: 632003 | Q22: l | R22: 632 | S22: BEBRA | T22: FALSE | V22: 6632003 | X22: BEBRA | Y22: Bebra | Z22: Bebra
A23: Beselich | B23: LK Limburg-Weilburg | C23: 06533001 | D23: 23 | E23: BESELICH | F23: 6533001 | G23: l | H23: 533 | J23: 412000 | K23: 412 | M23: FRANKFURT MAIN | P23: 533001 | Q23: l | R23: 533 | S23: BESELICH | T23: FALSE | V23: 6533001 | X23: BESELICH | Y23: Beselich | Z23: Beselich
A24: Birkenau | B24: LK Bergstraße | C24: 06431004 | D24: 24 | E24: BIRKENAU | F24: 6431004 | G24: ov | H24: 431 | J24: 413000 | K24: 413 | M24: OFFENBACH AM MAIN | P24: 431004 | Q24: ov | R24: 431 | S24: BIRKENAU | T24: FALSE | V24: 6431004 | X24: BIRKENAU | Y24: Birkenau | Z24: Birkenau
A25: Bischofsheim | B25: LK Groß-Gerau | C25: 06433002 | D25: 25 | E25: BISCHOFSHEIM | F25: 6433002 | G25: ov | H25: 433 | J25: 414000 | K25: 414 | M25: WIESBADEN | P25: 433002 | Q25: ov | R25: 433 | S25: BISCHOFSHEIM | T25: FALSE | V25: 6433002 | X25: BISCHOFSHEIM | Y25: Bischofsheim | Z25: Bischofsheim
A26: Borken (Hessen) | B26: LK Schwalm-Eder | C26: 06634001 | D26: 26 | E26: BORKEN (HESSEN) | F26: 6634001 | G26: o | H26: 634 | J26: 611000 | K26: 611 | M26: KASSEL | P26: 634001 | Q26: o | R26: 634 | S26: BORKEN (HESSEN) | T26: FALSE | V26: 6634001 | X26: BORKEN (HESSEN) | Y26: Borken (Hessen) | Z26: Borken (Hessen)
A27: Brachttal | B27: LK Main-Kinzig | C27: 06435005 | D27: 27 | E27: BRACHTTAL | F27: 6435005 | G27: l | H27: 435 | P27: 435005 | Q27: l | R27: 435 | S27: BRACHTTAL | T27: FALSE | V27: 6435005 | X27: BRACHTTAL | Y27: Brachttal | Z27: Brachttal
A28: Braunfels | B28: LK Lahn-Dill | C28: 06532003 | D28: 28 | E28: BRAUNFELS | F28: 6532003 | G28: o | H28: 532 | J28: 0 | K28: 6435005 | L28: =CONCATENATE($J$28,K28) -> 06435005 | M28: 06435005 | P28: 532003 | Q28: o | R28: 532 | S28: BRAUNFELS | T28: FALSE | V28: 6532003 | X28: BRAUNFELS | Y28: Braunfels | Z28: Braunfels
A29: Breitenbach a. Herzberg | B29: LK Hersfeld-Rotenburg | C29: 06632004 | D29: 29 | E29: Breitenbach a. Herzberg | F29: 6632004 | G29: l | H29: 632 | K29: 6532003 | L29: =CONCATENATE($J$28,K29) -> 06532003 | P29: 632004 | Q29: l | R29: 632 | S29: BREITENBACH A.HERZBERG | T29: FALSE | V29: 6632004 | X29: BREITENBACH A.HERZBERG | Y29: Breitenbach A.Herzberg | Z29: Breitenbach a. Herzberg
A30: Breuna | B30: LK Kassel | C30: 06633004 | D30: 30 | E30: BREUNA | F30: 6633004 | G30: o | H30: 633 | K30: 6632004 | L30: 06632004 | P30: 633004 | Q30: o | R30: 633 | S30: BREUNA | T30: FALSE | V30: 6633004 | X30: BREUNA | Y30: Breuna | Z30: Breuna
A31: Brombachtal | B31: LK Odenwaldkreis | C31: 06437005 | D31: 31 | E31: BROMBACHTAL | F31: 6437005 | G31: l | H31: 437 | K31: 6633004 | L31: 06633004 | P31: 437005 | Q31: l | R31: 437 | S31: BROMBACHTAL | T31: FALSE | V31: 6437005 | X31: BROMBACHTAL | Y31: Brombachtal | Z31: Brombachtal
A32: Bromskirchen | B32: LK Waldeck-Frankenberg | C32: 06635005 | D32: 32 | E32: BROMSKIRCHEN | F32: 6635005 | G32: l | H32: 635 | K32: 6437005 | L32: 06437005 | P32: 635005 | Q32: l | R32: 635 | S32: BROMSKIRCHEN | T32: FALSE | V32: 6635005 | X32: BROMSKIRCHEN | Y32: Bromskirchen | Z32: Bromskirchen
A33: Bruchkoebel | B33: LK Main-Kinzig | C33: 06435006 | D33: 33 | E33: BRUCHKOEBEL | F33: 6435006 | G33: ov | H33: 435 | K33: 6635005 | L33: 06635005 | P33: 435006 | Q33: ov | R33: 435 | S33: BRUCHKOEBEL | T33: FALSE | V33: 6435006 | X33: BRUCHKOEBEL | Y33: Bruchkoebel | Z33: Bruchkoebel
A34: Buedingen | B34: LK Wetterau | C34: 06440004 | D34: 34 | E34: BUEDINGEN | F34: 6440004 | G34: l | H34: 440 | K34: 6435006 | L34: 06435006 | P34: 440004 | Q34: l | R34: 440 | S34: BUEDINGEN | T34: FALSE | V34: 6440004 | X34: BUEDINGEN | Y34: Buedingen | Z34: Buedingen
A35: Buerstadt | B35: LK Bergstraße | C35: 06431005 | D35: 35 | E35: BUERSTADT | F35: 6431005 | G35: ov | H35: 431 | K35: 6440004 | L35: 06440004 | P35: 431005 | Q35: ov | R35: 431 | S35: BUERSTADT | T35: FALSE | V35: 6431005 | X35: BUERSTADT | Y35: Buerstadt | Z35: Buerstadt
A36: Butzbach | B36: LK Wetterau | C36: 06440005 | D36: 36 | E36: BUTZBACH | F36: 6440005 | G36: o | H36: 440 | K36: 6431005 | L36: 06431005 | P36: 440005 | Q36: o | R36: 440 | S36: BUTZBACH | T36: FALSE | V36: 6440005 | X36: BUTZBACH | Y36: Butzbach | Z36: Butzbach
A37: Cornberg | B37: LK Hersfeld-Rotenburg | C37: 06632005 | D37: 37 | E37: CORNBERG | F37: 6632005 | G37: l | H37: 632 | K37: 6440005 | L37: 06440005 | P37: 632005 | Q37: l | R37: 632 | S37: CORNBERG | T37: FALSE | V37: 6632005 | X37: CORNBERG | Y37: Cornberg | Z37: Cornberg
A38: Dautphetal | B38: LK Marburg-Biedenkopf | C38: 06534007 | D38: 38 | E38: DAUTPHETAL | F38: 6534007 | G38: l | H38: 534 | K38: 6632005 | L38: 06632005 | P38: 534007 | Q38: l | R38: 534 | S38: DAUTPHETAL | T38: FALSE | V38: 6534007 | X38: DAUTPHETAL | Y38: Dautphetal | Z38: Dautphetal
A39: Diemelsee | B39: LK Waldeck-Frankenberg | C39: 06635007 | D39: 39 | E39: DIEMELSEE | F39: 6635007 | G39: l | H39: 635 | K39: 6534007 | L39: 06534007 | P39: 635007 | Q39: l | R39: 635 | S39: DIEMELSEE | T39: FALSE | V39: 6635007 | X39: DIEMELSEE | Y39: Diemelsee | Z39: Diemelsee
A40: Dietzenbach | B40: LK Offenbach | C40: 06438001 | D40: 40 | E40: DIETZENBACH | F40: 6438001 | G40: ov | H40: 438 | K40: 6635007 | L40: 06635007 | P40: 438001 | Q40: ov | R40: 438 | S40: DIETZENBACH | T40: FALSE | V40: 6438001 | X40: DIETZENBACH | Y40: Dietzenbach | Z40: Dietzenbach
A41: Dillenburg | B41: LK Lahn-Dill | C41: 06532006 | D41: 41 | E41: DILLENBURG | F41: 6532006 | G41: o | H41: 532 | K41: 6438001 | L41: 06438001 | P41: 532006 | Q41: o | R41: 532 | S41: DILLENBURG | T41: FALSE | V41: 6532006 | X41: DILLENBURG | Y41: Dillenburg | Z41: Dillenburg
A42: Dipperz | B42: LK Fulda | C42: 06631003 | D42: 42 | E42: DIPPERZ | F42: 6631003 | G42: l | H42: 631 | K42: 6532006 | L42: 06532006 | P42: 631003 | Q42: l | R42: 631 | S42: DIPPERZ | T42: FALSE | V42: 6631003 | X42: DIPPERZ | Y42: Dipperz | Z42: Dipperz
A43: Dornburg | B43: LK Limburg-Weilburg | C43: 06533004 | D43: 43 | E43: DORNBURG | F43: 6533004 | G43: l | H43: 533 | K43: 6631003 | L43: 06631003 | P43: 533004 | Q43: l | R43: 533 | S43: DORNBURG | T43: FALSE | V43: 6533004 | X43: DORNBURG | Y43: Dornburg | Z43: Dornburg
A44: Ebersburg | B44: LK Fulda | C44: 06631004 | D44: 44 | E44: EBERSBURG | F44: 6631004 | G44: l | H44: 631 | K44: 6533004 | L44: 06533004 | P44: 631004 | Q44: l | R44: 631 | S44: EBERSBURG | T44: FALSE | V44: 6631004 | X44: EBERSBURG | Y44: Ebersburg | Z44: Ebersburg
A45: Ebsdorfergrund | B45: LK Marburg-Biedenkopf | C45: 06534008 | D45: 45 | E45: EBSDORFERGRUND | F45: 6534008 | G45: l | H45: 534 | K45: 6631004 | L45: 06631004 | P45: 534008 | Q45: l | R45: 534 | S45: EBSDORFERGRUND | T45: FALSE | V45: 6534008 | X45: EBSDORFERGRUND | Y45: Ebsdorfergrund | Z45: Ebsdorfergrund
A46: Edermuende | B46: LK Schwalm-Eder | C46: 06634002 | D46: 46 | E46: EDERMUENDE | F46: 6634002 | G46: ov | H46: 634 | K46: 6534008 | L46: 06534008 | P46: 634002 | Q46: ov | R46: 634 | S46: EDERMUENDE | T46: FALSE | V46: 6634002 | X46: EDERMUENDE | Y46: Edermuende | Z46: Edermuende
A47: Edertal | B47: LK Waldeck-Frankenberg | C47: 06635009 | D47: 47 | E47: EDERTAL | F47: 6635009 | G47: l | H47: 635 | K47: 6634002 | L47: 06634002 | P47: 635009 | Q47: l | R47: 635 | S47: EDERTAL | T47: FALSE | V47: 6635009 | X47: EDERTAL | Y47: Edertal | Z47: Edertal
A48: Ehrenberg (Rhön) | B48: LK Fulda | C48: 06631005 | D48: 48 | E48: Ehrenberg (Rhön) | F48: 6631005 | G48: l | H48: 631 | K48: 6635009 | L48: 06635009 | P48: 631005 | Q48: l | R48: 631 | S48: EHRENBERG(RHOEN) | T48: FALSE | V48: 6631005 | X48: EHRENBERG(RHOEN) | Y48: Ehrenberg(Rhoen) | Z48: Ehrenberg (Rhoen)
A49: Elbtal | B49: LK Limburg-Weilburg | C49: 06533005 | D49: 49 | E49: ELBTAL | F49: 6533005 | G49: l | H49: 533 | K49: 6631005 | L49: 06631005 | P49: 533005 | Q49: l | R49: 533 | S49: ELBTAL | T49: FALSE | V49: 6533005 | X49: ELBTAL | Y49: Elbtal | Z49: Elbtal
A50: Erbach | B50: LK Odenwaldkreis | C50: 06437006 | D50: 50 | E50: ERBACH | F50: 6437006 | G50: l | H50: 437 | K50: 6533005 | L50: 06533005 | P50: 437006 | Q50: l | R50: 437 | S50: ERBACH | T50: FALSE | V50: 6437006 | X50: ERBACH | Y50: Erbach | Z50: Erbach
A51: Erlensee | B51: LK Main-Kinzig | C51: 06435007 | D51: 51 | E51: ERLENSEE | F51: 6435007 | G51: ov | H51: 435 | K51: 6437006 | L51: 06437006 | P51: 435007 | Q51: ov | R51: 435 | S51: ERLENSEE | T51: FALSE | V51: 6435007 | X51: ERLENSEE | Y51: Erlensee | Z51: Erlensee
A52: Erzhausen | B52: LK Darmstadt-Dieburg | C52: 06432006 | D52: 52 | E52: ERZHAUSEN | F52: 6432006 | K52: 6435007 | L52: 06435007 | X52: ERZHAUSEN | Y52: Erzhausen | Z52: Erzhausen
A53: Eschwege | B53: LK Werra-Meißner | C53: 06636003 | D53: 53 | E53: ESCHWEGE | F53: 6636003 | G53: l | H53: 636 | K53: 6432006 | L53: 06432006 | P53: 636003 | Q53: l | R53: 636 | S53: ESCHWEGE | T53: =EXACT(A53,S53) -> FALSE | V53: 6636003 | X53: ESCHWEGE | Y53: Eschwege | Z53: Eschwege
A54: Espenau | B54: LK Kassel | C54: 06633007 | D54: 54 | E54: ESPENAU | F54: 6633007 | G54: ov | H54: 633 | K54: 6636003 | L54: 06636003 | P54: 633007 | Q54: ov | R54: 633 | S54: ESPENAU | T54: FALSE | V54: 6633007 | X54: ESPENAU | Y54: Espenau | Z54: Espenau
A55: Feldatal | B55: LK Vogelsberg | C55: 06535003 | D55: 55 | E55: FELDATAL | F55: 6535003 | G55: l | H55: 535 | K55: 6633007 | L55: 06633007 | P55: 535003 | Q55: l | R55: 535 | S55: FELDATAL | T55: FALSE | V55: 6535003 | X55: FELDATAL | Y55: Feldatal | Z55: Feldatal
A56: Felsberg | B56: LK Schwalm-Eder | C56: 06634003 | D56: 56 | E56: FELSBERG | F56: 6634003 | G56: o | H56: 634 | K56: 6535003 | L56: 06535003 | P56: 634003 | Q56: o | R56: 634 | S56: FELSBERG | T56: FALSE | V56: 6634003 | X56: FELSBERG | Y56: Felsberg | Z56: Felsberg
A57: Fischbachtal | B57: LK Darmstadt-Dieburg | C57: 06432007 | D57: 57 | E57: FISCHBACHTAL | F57: 6432007 | G57: o | H57: 432 | K57: 6634003 | L57: 06634003 | P57: 432007 | Q57: o | R57: 432 | S57: FISCHBACHTAL | T57: FALSE | V57: 6432007 | X57: FISCHBACHTAL | Y57: Fischbachtal | Z57: Fischbachtal
A58: Flieden | B58: LK Fulda | C58: 06631008 | D58: 58 | E58: FLIEDEN | F58: 6631008 | G58: l | H58: 631 | K58: 6432007 | L58: 06432007 | P58: 631008 | Q58: l | R58: 631 | S58: FLIEDEN | T58: FALSE | V58: 6631008 | X58: FLIEDEN | Y58: Flieden | Z58: Flieden
A59: Floersbachtal | B59: LK Main-Kinzig | C59: 06435008 | D59: 59 | E59: FLOERSBACHTAL | F59: 6435008 | G59: l | H59: 435 | K59: 6631008 | L59: 06631008 | P59: 435008 | Q59: l | R59: 435 | S59: FLOERSBACHTAL | T59: FALSE | V59: 6435008 | X59: FLOERSBACHTAL | Y59: Floersbachtal | Z59: Floersbachtal
A60: Floersheim am Main | B60: LK Main-Taunus | C60: 06436004 | D60: 60 | E60: FLOERSHEIM AM MAIN | F60: 6436004 | G60: ov | H60: 436 | K60: 6435008 | L60: 06435008 | P60: 436004 | Q60: ov | R60: 436 | S60: FLOERSHEIM AM MAIN | T60: FALSE | V60: 6436004 | X60: FLOERSHEIM AM MAIN | Y60: Floersheim Am Main | Z60: Floersheim am Main
A61: Florstadt | B61: LK Wetterau | C61: 06440007 | D61: 61 | E61: FLORSTADT | F61: 6440007 | G61: o | H61: 440 | K61: 6436004 | L61: 06436004 | P61: 440007 | Q61: o | R61: 440 | S61: FLORSTADT | T61: FALSE | V61: 6440007 | X61: FLORSTADT | Y61: Florstadt | Z61: Florstadt
A62: Frankenau | B62: LK Waldeck-Frankenberg | C62: 06635010 | D62: 62 | E62: FRANKENAU | F62: 6635010 | G62: l | H62: 635 | K62: 6440007 | L62: 06440007 | P62: 635010 | Q62: l | R62: 635 | S62: FRANKENAU | T62: FALSE | V62: 6635010 | X62: FRANKENAU | Y62: Frankenau | Z62: Frankenau
A63: Frankenberg (Eder) | B63: LK Waldeck-Frankenberg | C63: 06635011 | D63: 63 | E63: FRANKENBERG (EDER) | F63: 6635011 | G63: l | H63: 635 | K63: 6635010 | L63: 06635010 | P63: 635011 | Q63: l | R63: 635 | S63: FRANKENBERG (EDER) | T63: FALSE | V63: 6635011 | X63: FRANKENBERG (EDER) | Y63: Frankenberg (Eder) | Z63: Frankenberg (Eder)
A64: Freiensteinau | B64: LK Vogelsberg | C64: 06535004 | D64: 64 | E64: FREIENSTEINAU | F64: 6535004 | G64: l | H64: 535 | K64: 6635011 | L64: 06635011 | P64: 535004 | Q64: l | R64: 535 | S64: FREIENSTEINAU | T64: FALSE | V64: 6535004 | X64: FREIENSTEINAU | Y64: Freiensteinau | Z64: Freiensteinau
A65: Freigericht | B65: LK Main-Kinzig | C65: 06435009 | D65: 65 | E65: FREIGERICHT | F65: 6435009 | G65: o | H65: 435 | K65: 6535004 | L65: 06535004 | P65: 435009 | Q65: o | R65: 435 | S65: FREIGERICHT | T65: FALSE | V65: 6435009 | X65: FREIGERICHT | Y65: Freigericht | Z65: Freigericht
A66: Friedberg (Hessen) | B66: LK Wetterau | C66: 06440008 | D66: 66 | E66: FRIEDBERG (HESSEN) | F66: 6440008 | G66: o | H66: 440 | K66: 6435009 | L66: 06435009 | P66: 440008 | Q66: o | R66: 440 | S66: FRIEDBERG (HESSEN) | T66: FALSE | V66: 6440008 | X66: FRIEDBERG (HESSEN) | Y66: =PROPER(X66) -> Friedberg (Hessen) | Z66: Friedberg (Hessen)
A67: Frielendorf | B67: LK Schwalm-Eder | C67: 06634004 | D67: 67 | E67: FRIELENDORF | F67: 6634004 | G67: l | H67: 634 | K67: 6440008 | L67: 06440008 | P67: 634004 | Q67: l | R67: 634 | S67: FRIELENDORF | T67: FALSE | V67: 6634004 | X67: FRIELENDORF | Y67: Frielendorf | Z67: Frielendorf
A68: Fritzlar | B68: LK Schwalm-Eder | C68: 06634005 | D68: 68 | E68: FRITZLAR | F68: 6634005 | G68: o | H68: 634 | K68: 6634004 | L68: 06634004 | P68: 634005 | Q68: o | R68: 634 | S68: FRITZLAR | T68: FALSE | V68: 6634005 | X68: FRITZLAR | Y68: Fritzlar | Z68: Fritzlar
A69: Fuerth | B69: LK Bergstraße | C69: 06431007 | D69: 69 | E69: FUERTH | F69: 6431007 | G69: o | H69: 431 | K69: 6634005 | L69: 06634005 | P69: 431007 | Q69: o | R69: 431 | S69: FUERTH | T69: FALSE | V69: 6431007 | X69: FUERTH | Y69: Fuerth | Z69: Fuerth
A70: Fulda | B70: LK Fulda | C70: 06631009 | D70: 70 | E70: FULDA | F70: 6631009 | G70: l | H70: 631 | K70: 6431007 | L70: 06431007 | P70: 631009 | Q70: l | R70: 631 | S70: FULDA | T70: FALSE | V70: 6631009 | X70: FULDA | Y70: Fulda | Z70: Fulda
A71: Fuldatal | B71: LK Kassel | C71: 06633009 | D71: 71 | E71: FULDATAL | F71: 6633009 | G71: ov | H71: 633 | K71: 6631009 | L71: 06631009 | P71: 633009 | Q71: ov | R71: 633 | S71: FULDATAL | T71: FALSE | V71: 6633009 | X71: FULDATAL | Y71: Fuldatal | Z71: Fuldatal
A72: Geisenheim | B72: LK Rheingau-Taunus | C72: 06439004 | D72: 72 | E72: GEISENHEIM | F72: 6439004 | G72: o | H72: 439 | K72: 6633009 | L72: 06633009 | P72: 439004 | Q72: o | R72: 439 | S72: GEISENHEIM | T72: FALSE | V72: 6439004 | X72: GEISENHEIM | Y72: Geisenheim | Z72: Geisenheim
A73: Gemuenden (Felda) | B73: LK Vogelsberg | C73: 06535005 | D73: 73 | E73: GEMUENDEN (FELDA) | F73: 6535005 | G73: l | H73: 535 | K73: 6439004 | L73: 06439004 | P73: 535005 | Q73: l | R73: 535 | S73: GEMUENDEN (FELDA) | T73: FALSE | V73: 6535005 | X73: GEMUENDEN (FELDA) | Y73: Gemuenden (Felda) | Z73: Gemuenden (Felda)
A74: Gemuenden (Wohra) | B74: LK Waldeck-Frankenberg | C74: 06635012 | D74: 74 | E74: GEMUENDEN (WOHRA) | F74: 6635012 | G74: l | H74: 635 | K74: 6535005 | L74: 06535005 | P74: 635012 | Q74: l | R74: 635 | S74: GEMUENDEN (WOHRA) | T74: FALSE | V74: 6635012 | X74: GEMUENDEN (WOHRA) | Y74: Gemuenden (Wohra) | Z74: Gemuenden (Wohra)
A75: Gersfeld (Rhoen) | B75: LK Fulda | C75: 06631010 | D75: 75 | E75: GERSFELD (RHOEN) | F75: 6631010 | G75: l | H75: 631 | K75: 6635012 | L75: 06635012 | P75: 631010 | Q75: l | R75: 631 | S75: GERSFELD (RHOEN) | T75: FALSE | V75: 6631010 | X75: GERSFELD (RHOEN) | Y75: Gersfeld (Rhoen) | Z75: Gersfeld (Rhoen)
A76: Giessen | B76: LK Gießen | C76: 06531005 | D76: 76 | E76: GIESSEN | F76: 6531005 | G76: ov | H76: 531 | K76: 6631010 | L76: 06631010 | P76: 531005 | Q76: ov | R76: 531 | S76: GIESSEN | T76: FALSE | V76: 6531005 | X76: GIESSEN | Y76: Giessen | Z76: Giessen
A77: Gilserberg | B77: LK Schwalm-Eder | C77: 06634006 | D77: 77 | E77: GILSERBERG | F77: 6634006 | G77: l | H77: 634 | K77: 6531005 | L77: 06531005 | P77: 634006 | Q77: l | R77: 634 | S77: GILSERBERG | T77: FALSE | V77: 6634006 | X77: GILSERBERG | Y77: Gilserberg | Z77: Gilserberg
A78: Gladenbach | B78: LK Marburg-Biedenkopf | C78: 06534010 | D78: 78 | E78: GLADENBACH | F78: 6534010 | G78: l | H78: 534 | K78: 6634006 | L78: 06634006 | P78: 534010 | Q78: l | R78: 534 | S78: GLADENBACH | T78: FALSE | V78: 6534010 | X78: GLADENBACH | Y78: Gladenbach | Z78: Gladenbach
A79: Glauburg | B79: LK Wetterau | C79: 06440010 | D79: 79 | E79: GLAUBURG | F79: 6440010 | G79: l | H79: 440 | K79: 6534010 | L79: 06534010 | P79: 440010 | Q79: l | R79: 440 | S79: GLAUBURG | T79: FALSE | V79: 6440010 | X79: GLAUBURG | Y79: Glauburg | Z79: Glauburg
A80: Gorxheimertal | B80: LK Bergstraße | C80: 06431008 | D80: 80 | E80: GORXHEIMERTAL | F80: 6431008 | G80: o | H80: 431 | K80: 6440010 | L80: 06440010 | P80: 431008 | Q80: o | R80: 431 | S80: GORXHEIMERTAL | T80: FALSE | V80: 6431008 | X80: GORXHEIMERTAL | Y80: Gorxheimertal | Z80: Gorxheimertal
A81: Grasellenbach | B81: LK Bergstraße | C81: 06431009 | D81: 81 | E81: GRASELLENBACH | F81: 6431009 | G81: o | H81: 431 | K81: 6431008 | L81: 06431008 | P81: 431009 | Q81: o | R81: 431 | S81: GRASELLENBACH | T81: FALSE | V81: 6431009 | X81: GRASELLENBACH | Y81: Grasellenbach | Z81: Grasellenbach
A82: Grebenau | B82: LK Vogelsberg | C82: 06535006 | D82: 82 | E82: GREBENAU | F82: 6535006 | G82: l | H82: 535 | K82: 6431009 | L82: 06431009 | P82: 535006 | Q82: l | R82: 535 | S82: GREBENAU | T82: FALSE | V82: 6535006 | X82: GREBENAU | Y82: Grebenau | Z82: Grebenau
A83: Grebenhain | B83: LK Vogelsberg | C83: 06535007 | D83: 83 | E83: GREBENHAIN | F83: 6535007 | G83: l | H83: 535 | K83: 6535006 | L83: 06535006 | P83: 535007 | Q83: l | R83: 535 | S83: GREBENHAIN | T83: FALSE | V83: 6535007 | X83: GREBENHAIN | Y83: Grebenhain | Z83: Grebenhain
A84: Grebenstein | B84: LK Kassel | C84: 06633010 | D84: 84 | E84: GREBENSTEIN | F84: 6633010 | G84: o | H84: 633 | K84: 6535007 | L84: 06535007 | P84: 633010 | Q84: o | R84: 633 | S84: GREBENSTEIN | T84: FALSE | V84: 6633010 | X84: GREBENSTEIN | Y84: Grebenstein | Z84: Grebenstein
A85: Griesheim | B85: LK Darmstadt-Dieburg | C85: 06432008 | D85: 85 | E85: GRIESHEIM | F85: 6432008 | G85: ov | H85: 432 | K85: 6633010 | L85: 06633010 | P85: 432008 | Q85: ov | R85: 432 | S85: GRIESHEIM | T85: FALSE | V85: 6432008 | X85: GRIESHEIM | Y85: Griesheim | Z85: Griesheim
A86: Grossalmerode, Stadt | B86: LK Werra-Meißner | C86: 06636004 | D86: 86 | E86: GROSSALMERODE, STADT | F86: 6636004 | K86: 6432008 | L86: 06432008 | X86: GROSSALMERODE, STADT | Y86: Grossalmerode, Stadt | Z86: Grossalmerode, Stadt
A87: Grossenlueder | B87: LK Fulda | C87: 06631011 | D87: 87 | E87: GROSSENLUEDER | F87: 6631011 | G87: l | H87: 631 | K87: 6636004 | L87: 06636004 | P87: 631011 | Q87: l | R87: 631 | S87: GROSSENLUEDER | T87: =EXACT(A87,S87) -> FALSE | V87: 6631011 | X87: GROSSENLUEDER | Y87: Grossenlueder | Z87: Grossenlueder
A88: Grosskrotzenburg | B88: LK Main-Kinzig | C88: 06435011 | D88: 88 | E88: GROSSKROTZENBURG | F88: 6435011 | G88: ov | H88: 435 | K88: 6631011 | L88: 06631011 | P88: 435011 | Q88: ov | R88: 435 | S88: GROSSKROTZENBURG | T88: FALSE | V88: 6435011 | X88: GROSSKROTZENBURG | Y88: Grosskrotzenburg | Z88: Grosskrotzenburg
A89: Gross-Umstadt | B89: LK Darmstadt-Dieburg | C89: 06432010 | D89: 89 | E89: GROSS-UMSTADT | F89: 6432010 | G89: o | H89: 432 | K89: 6435011 | L89: 06435011 | P89: 432010 | Q89: o | R89: 432 | S89: GROSS-UMSTADT | T89: FALSE | V89: 6432010 | X89: GROSS-UMSTADT | Y89: Gross-Umstadt | Z89: Gross-Umstadt
A90: Gross-Zimmern | B90: LK Darmstadt-Dieburg | C90: 06432011 | D90: 90 | E90: GROSS-ZIMMERN | F90: 6432011 | G90: o | H90: 432 | K90: 6432010 | L90: 06432010 | P90: 432011 | Q90: o | R90: 432 | S90: GROSS-ZIMMERN | T90: FALSE | V90: 6432011 | X90: GROSS-ZIMMERN | Y90: Gross-Zimmern | Z90: Gross-Zimmern
A91: Gruenberg | B91: LK Gießen | C91: 06531006 | D91: 91 | E91: GRUENBERG | F91: 6531006 | G91: l | H91: 531 | K91: 6432011 | L91: 06432011 | P91: 531006 | Q91: l | R91: 531 | S91: GRUENBERG | T91: FALSE | V91: 6531006 | X91: GRUENBERG | Y91: Gruenberg | Z91: Gruenberg
A92: Gudensberg | B92: LK Schwalm-Eder | C92: 06634007 | D92: 92 | E92: GUDENSBERG | F92: 6634007 | G92: o | H92: 634 | K92: 6531006 | L92: 06531006 | P92: 634007 | Q92: o | R92: 634 | S92: GUDENSBERG | T92: FALSE | V92: 6634007 | X92: GUDENSBERG | Y92: Gudensberg | Z92: Gudensberg
A93: Habichtswald | B93: LK Kassel | C93: 06633011 | D93: 93 | E93: HABICHTSWALD | F93: 6633011 | G93: o | H93: 633 | K93: 6634007 | L93: =CONCATENATE($J$28,K93) -> 06634007 | P93: 633011 | Q93: o | R93: 633 | S93: HABICHTSWALD | T93: FALSE | V93: 6633011 | X93: HABICHTSWALD | Y93: Habichtswald | Z93: Habichtswald
A94: Hadamar | B94: LK Limburg-Weilburg | C94: 06533007 | D94: 94 | E94: HADAMAR | F94: 6533007 | G94: l | H94: 533 | K94: 6633011 | L94: 06633011 | P94: 533007 | Q94: l | R94: 533 | S94: HADAMAR | T94: FALSE | V94: 6533007 | X94: HADAMAR | Y94: Hadamar | Z94: Hadamar
A95: Haina (Kloster) | B95: LK Waldeck-Frankenberg | C95: 06635013 | D95: 95 | E95: HAINA (KLOSTER) | F95: 6635013 | G95: l | H95: 635 | K95: 6533007 | L95: 06533007 | P95: 635013 | Q95: l | R95: 635 | S95: HAINA (KLOSTER) | T95: FALSE | V95: 6635013 | X95: HAINA (KLOSTER) | Y95: Haina (Kloster) | Z95: Haina (Kloster)
A96: Hainburg | B96: LK Offenbach | C96: 06438004 | D96: 96 | E96: HAINBURG | F96: 6438004 | G96: ov | H96: 438 | K96: 6635013 | L96: 06635013 | P96: 438004 | Q96: ov | R96: 438 | S96: HAINBURG | T96: FALSE | V96: 6438004 | X96: HAINBURG | Y96: Hainburg | Z96: Hainburg
A97: Hanau | B97: LK Main-Kinzig | C97: 06435014 | D97: 97 | E97: HANAU | F97: 6435014 | G97: ov | H97: 435 | K97: 6438004 | L97: 06438004 | P97: 435014 | Q97: ov | R97: 435 | S97: HANAU | T97: FALSE | V97: 6435014 | X97: HANAU | Y97: Hanau | Z97: Hanau
A98: Hattersheim Am Main | B98: LK Main-Taunus | C98: 06436005 | D98: 98 | E98: HATTERSHEIM AM MAIN | F98: 6436005 | G98: ov | H98: 436 | K98: 6435014 | L98: 06435014 | P98: 436005 | Q98: ov | R98: 436 | S98: HATTERSHEIM AM MAIN | T98: FALSE | V98: 6436005 | X98: HATTERSHEIM AM MAIN | Y98: Hattersheim Am Main | Z98: Hattersheim Am Main
A99: Hauneck | B99: LK Hersfeld-Rotenburg | C99: 06632007 | D99: 99 | E99: HAUNECK | F99: 6632007 | G99: l | H99: 632 | K99: 6436005 | L99: 06436005 | P99: 632007 | Q99: l | R99: 632 | S99: HAUNECK | T99: FALSE | V99: 6632007 | X99: HAUNECK | Y99: Hauneck | Z99: Hauneck
A100: Haunetal | B100: LK Hersfeld-Rotenburg | C100: 06632008 | D100: 100 | E100: HAUNETAL | F100: 6632008 | G100: l | H100: 632 | K100: 6632007 | L100: 06632007 | P100: 632008 | Q100: l | R100: 632 | S100: HAUNETAL | T100: FALSE | V100: 6632008 | X100: HAUNETAL | Y100: Haunetal | Z100: Haunetal
A101: Heidenrod | B101: LK Rheingau-Taunus | C101: 06439005 | D101: 101 | E101: HEIDENROD | F101: 6439005 | G101: o | H101: 439 | K101: 6632008 | L101: 06632008 | P101: 439005 | Q101: o | R101: 439 | S101: HEIDENROD | T101: FALSE | V101: 6439005 | X101: HEIDENROD | Y101: Heidenrod | Z101: Heidenrod
A102: Helsa | B102: LK Kassel | C102: 06633012 | D102: 102 | E102: HELSA | F102: 6633012 | G102: o | H102: 633 | K102: 6439005 | L102: 06439005 | P102: 633012 | Q102: o | R102: 633 | S102: HELSA | T102: FALSE | V102: 6633012 | X102: HELSA | Y102: Helsa | Z102: Helsa
A103: Herleshausen | B103: LK Werra-Meißner | C103: 06636005 | D103: 103 | E103: HERLESHAUSEN | F103: 6636005 | G103: l | H103: 636 | K103: 6633012 | L103: 06633012 | P103: 636005 | Q103: l | R103: 636 | S103: HERLESHAUSEN | T103: FALSE | V103: 6636005 | X103: HERLESHAUSEN | Y103: Herleshausen | Z103: Herleshausen
A104: Hessisch Lichtenau | B104: LK Werra-Meißner | C104: 06636006 | D104: 104 | E104: HESSISCH LICHTENAU | F104: 6636006 | G104: o | H104: 636 | K104: 6437008 | L104: 06437008 | P104: 636006 | Q104: o | R104: 636 | S104: HESSISCH LICHTENAU | T104: FALSE | V104: 6636006 | X104: HESSISCH LICHTENAU | Y104: Hessisch Lichtenau | Z104: Hessisch Lichtenau
A105: Hilders | B105: LK Fulda | C105: 06631012 | D105: 105 | E105: HILDERS | F105: 6631012 | G105: l | H105: 631 | K105: 6636006 | L105: 06636006 | P105: 631012 | Q105: l | R105: 631 | S105: HILDERS | T105: FALSE | V105: 6631012 | X105: HILDERS | Y105: Hilders | Z105: Hilders
A106: Hirzenhain | B106: LK Wetterau | C106: 06440011 | D106: 106 | E106: HIRZENHAIN | F106: 6440011 | G106: l | H106: 440 | K106: 6631012 | L106: 06631012 | P106: 440011 | Q106: l | R106: 440 | S106: HIRZENHAIN | T106: FALSE | V106: 6440011 | X106: HIRZENHAIN | Y106: Hirzenhain | Z106: Hirzenhain
A107: Hoechst Im Odenwald | B107: LK Odenwaldkreis | C107: 06437009 | D107: 107 | E107: HOECHST IM ODENWALD | F107: 6437009 | G107: l | H107: 437 | K107: 6440011 | L107: 06440011 | P107: 437009 | Q107: l | R107: 437 | S107: HOECHST IM ODENWALD | T107: FALSE | V107: 6437009 | X107: HOECHST IM ODENWALD | Y107: Hoechst Im Odenwald | Z107: Hoechst Im Odenwald
A108: Hofbieber | B108: LK Fulda | C108: 06631013 | D108: 108 | E108: HOFBIEBER | F108: 6631013 | G108: l | H108: 631 | K108: 6437009 | L108: 06437009 | P108: 631013 | Q108: l | R108: 631 | S108: HOFBIEBER | T108: FALSE | V108: 6631013 | X108: HOFBIEBER | Y108: Hofbieber | Z108: Hofbieber
A109: Hofgeismar | B109: LK Kassel | C109: 06633013 | D109: 109 | E109: HOFGEISMAR | F109: 6633013 | G109: o | H109: 633 | K109: 6631013 | L109: 06631013 | P109: 633013 | Q109: o | R109: 633 | S109: HOFGEISMAR | T109: FALSE | V109: 6633013 | X109: HOFGEISMAR | Y109: Hofgeismar | Z109: Hofgeismar
A110: Hohenahr | B110: LK Lahn-Dill | C110: 06532013 | D110: 110 | E110: HOHENAHR | F110: 6532013 | G110: l | H110: 532 | K110: 6633013 | L110: 06633013 | P110: 532013 | Q110: l | R110: 532 | S110: HOHENAHR | T110: FALSE | V110: 6532013 | X110: HOHENAHR | Y110: Hohenahr | Z110: Hohenahr
A111: Hohenroda | B111: LK Hersfeld-Rotenburg | C111: 06632010 | D111: 111 | E111: HOHENRODA | F111: 6632010 | G111: l | H111: 632 | K111: 6532013 | L111: 06532013 | P111: 632010 | Q111: l | R111: 632 | S111: HOHENRODA | T111: FALSE | V111: 6632010 | X111: HOHENRODA | Y111: Hohenroda | Z111: Hohenroda
A112: Homberg (Efze) | B112: LK Schwalm-Eder | C112: 06634009 | D112: 112 | E112: HOMBERG (EFZE) | F112: 6634009 | G112: l | H112: 634 | K112: 6632010 | L112: 06632010 | P112: 634009 | Q112: l | R112: 634 | S112: HOMBERG (EFZE) | T112: FALSE | V112: 6634009 | X112: HOMBERG (EFZE) | Y112: Homberg (Efze) | Z112: Homberg (Efze)
A113: Hosenfeld | B113: LK Fulda | C113: 06631014 | D113: 113 | E113: HOSENFELD | F113: 6631014 | G113: l | H113: 631 | K113: 6634009 | L113: 06634009 | P113: 631014 | Q113: l | R113: 631 | S113: HOSENFELD | T113: FALSE | V113: 6631014 | X113: HOSENFELD | Y113: Hosenfeld | Z113: Hosenfeld
A114: Huenfeld | B114: LK Fulda | C114: 06631015 | D114: 114 | E114: HUENFELD | F114: 6631015 | G114: l | H114: 631 | K114: 6631014 | L114: 06631014 | P114: 631015 | Q114: l | R114: 631 | S114: HUENFELD | T114: FALSE | V114: 6631015 | X114: HUENFELD | Y114: Huenfeld | Z114: Huenfeld
A115: Huenfelden | B115: LK Limburg-Weilburg | C115: 06533008 | D115: 115 | E115: HUENFELDEN | F115: 6533008 | G115: l | H115: 533 | K115: 6631015 | L115: 06631015 | P115: 533008 | Q115: l | R115: 533 | S115: HUENFELDEN | T115: FALSE | V115: 6533008 | X115: HUENFELDEN | Y115: Huenfelden | Z115: Huenfelden
A116: Huenstetten | B116: LK Rheingau-Taunus | C116: 06439007 | D116: 116 | E116: HUENSTETTEN | F116: 6439007 | G116: o | H116: 439 | K116: 6533008 | L116: 06533008 | P116: 439007 | Q116: o | R116: 439 | S116: HUENSTETTEN | T116: FALSE | V116: 6439007 | X116: HUENSTETTEN | Y116: Huenstetten | Z116: Huenstetten
A117: Hungen | B117: LK Gießen | C117: 06531008 | D117: 117 | E117: HUNGEN | F117: 6531008 | G117: l | H117: 531 | K117: 6439007 | L117: 06439007 | P117: 531008 | Q117: l | R117: 531 | S117: HUNGEN | T117: FALSE | V117: 6531008 | X117: HUNGEN | Y117: Hungen | Z117: Hungen
A118: Immenhausen | B118: LK Kassel | C118: 06633014 | D118: 118 | E118: IMMENHAUSEN | F118: 6633014 | G118: o | H118: 633 | K118: 6531008 | L118: 06531008 | P118: 633014 | Q118: o | R118: 633 | S118: IMMENHAUSEN | T118: =EXACT(A118,S118) -> FALSE | V118: 6633014 | X118: IMMENHAUSEN | Y118: Immenhausen | Z118: Immenhausen
A119: Jesberg | B119: LK Schwalm-Eder | C119: 06634010 | D119: 119 | E119: JESBERG | F119: 6634010 | G119: l | H119: 634 | K119: 6633014 | L119: 06633014 | P119: 634010 | Q119: l | R119: 634 | S119: JESBERG | T119: FALSE | V119: 6634010 | X119: JESBERG | Y119: Jesberg | Z119: Jesberg
A120: Jossgrund | B120: LK Main-Kinzig | C120: 06435016 | D120: 120 | E120: JOSSGRUND | F120: 6435016 | G120: l | H120: 435 | K120: 6634010 | L120: 06634010 | P120: 435016 | Q120: l | R120: 435 | S120: JOSSGRUND | T120: FALSE | V120: 6435016 | X120: JOSSGRUND | Y120: Jossgrund | Z120: Jossgrund
A121: Kalbach | B121: LK Fulda | C121: 06631016 | D121: 121 | E121: KALBACH | F121: 6631016 | G121: l | H121: 631 | K121: 6435016 | L121: 06435016 | P121: 631016 | Q121: l | R121: 631 | S121: KALBACH | T121: FALSE | V121: 6631016 | X121: KALBACH | Y121: Kalbach | Z121: Kalbach
A122: Kassel | B122: Kreisfreie Stadt | C122: 06611000 | D122: 122 | E122: KASSEL | F122: 6611000 | H122: 0 | K122: 6631016 | L122: 06631016 | P122: 611000 | S122: KASSEL | T122: FALSE | V122: 6611000 | X122: KASSEL | Y122: Kassel | Z122: Kassel
A123: Kelkheim (Taunus) | B123: LK Main-Taunus | C123: 06436008 | D123: 123 | E123: KELKHEIM (TAUNUS) | F123: 6436008 | G123: ov | H123: 436 | K123: 6611000 | L123: 06611000 | P123: 436008 | Q123: ov | R123: 436 | S123: KELKHEIM (TAUNUS) | T123: FALSE | V123: 6436008 | X123: KELKHEIM (TAUNUS) | Y123: Kelkheim (Taunus) | Z123: Kelkheim (Taunus)
A124: Kirchhain | B124: LK Marburg-Biedenkopf | C124: 06534011 | D124: 124 | E124: KIRCHHAIN | F124: 6534011 | G124: l | H124: 534 | K124: 6436008 | L124: 06436008 | P124: 534011 | Q124: l | R124: 534 | S124: KIRCHHAIN | T124: FALSE | V124: 6534011 | X124: KIRCHHAIN | Y124: Kirchhain | Z124: Kirchhain
A125: Kirtorf | B125: LK Vogelsberg | C125: 06535010 | D125: 125 | E125: KIRTORF | F125: 6535010 | G125: l | H125: 535 | K125: 6534011 | L125: 06534011 | P125: 535010 | Q125: l | R125: 535 | S125: KIRTORF | T125: FALSE | V125: 6535010 | X125: KIRTORF | Y125: Kirtorf | Z125: Kirtorf
A126: Knuellwald | B126: LK Schwalm-Eder | C126: 06634011 | D126: 126 | E126: KNUELLWALD | F126: 6634011 | G126: l | H126: 634 | K126: 6535010 | L126: 06535010 | P126: 634011 | Q126: l | R126: 634 | S126: KNUELLWALD | T126: FALSE | V126: 6634011 | X126: KNUELLWALD | Y126: Knuellwald | Z126: Knuellwald
A127: Korbach | B127: LK Waldeck-Frankenberg | C127: 06635015 | D127: 127 | E127: KORBACH | F127: 6635015 | G127: l | H127: 635 | K127: 6634011 | L127: 06634011 | P127: 635015 | Q127: l | R127: 635 | S127: KORBACH | T127: FALSE | V127: 6635015 | X127: KORBACH | Y127: Korbach | Z127: Korbach
A128: Kreis Fulda | B128: LK Fulda | C128: 06631000 | D128: 128 | E128: Kreis Fulda | F128: 6631000 | H128: 0 | K128: 6635015 | L128: 06635015 | P128: 631000 | S128: Kreis Fulda | T128: TRUE | V128: 6631000 | X128: Kreis Fulda | Y128: Kreis Fulda | Z128: Kreis Fulda
A129: Kreis Gießen | B129: LK Gießen | C129: 06531000 | D129: 129 | E129: Kreis Gießen | F129: 6531000 | H129: 0 | K129: 6631000 | L129: 06631000 | P129: 531000 | S129: Kreis Gießen | T129: TRUE | V129: 6531000 | X129: Kreis Gießen | Y129: =PROPER(X129) -> Kreis Gießen | Z129: Kreis Gießen
A130: Kreis Limburg-Weilburg | B130: LK Limburg-Weilburg | C130: 06533000 | D130: 130 | E130: Kreis Limburg-Weilburg | F130: 6533000 | H130: 0 | K130: 6531000 | L130: 06531000 | P130: 533000 | S130: Kreis Limburg-Weilburg | T130: TRUE | V130: 6533000 | X130: Kreis Limburg-Weilburg | Y130: Kreis Limburg-Weilburg | Z130: Kreis Limburg-Weilburg
A131: Kreis Waldeck-Frankenberg | B131: LK Waldeck-Frankenberg | C131: 06635000 | D131: 131 | E131: Kreis Waldeck-Frankenberg | F131: 6635000 | H131: 0 | K131: 6533000 | L131: 06533000 | P131: 635000 | S131: Kreis Waldeck-Frankenberg | T131: TRUE | V131: 6635000 | X131: Kreis Waldeck-Frankenberg | Y131: Kreis Waldeck-Frankenberg | Z131: Kreis Waldeck-Frankenberg
A132: Kuenzell | B132: LK Fulda | C132: 06631017 | D132: 132 | E132: KUENZELL | F132: 6631017 | G132: l | H132: 631 | K132: 6635000 | L132: 06635000 | P132: 631017 | Q132: l | R132: 631 | S132: KUENZELL | T132: FALSE | V132: 6631017 | X132: KUENZELL | Y132: Kuenzell | Z132: Kuenzell
A133: Lahntal | B133: LK Marburg-Biedenkopf | C133: 06534012 | D133: 133 | E133: LAHNTAL | F133: 6534012 | G133: l | H133: 534 | K133: 6631017 | L133: 06631017 | P133: 534012 | Q133: l | R133: 534 | S133: LAHNTAL | T133: FALSE | V133: 6534012 | X133: LAHNTAL | Y133: Lahntal | Z133: Lahntal
A134: Lampertheim | B134: LK Bergstraße | C134: 06431013 | D134: 134 | E134: LAMPERTHEIM | F134: 6431013 | G134: ov | H134: 431 | K134: 6534012 | L134: 06534012 | P134: 431013 | Q134: ov | R134: 431 | S134: LAMPERTHEIM | T134: FALSE | V134: 6431013 | X134: LAMPERTHEIM | Y134: Lampertheim | Z134: Lampertheim
A135: Langen | B135: LK Offenbach | C135: 06438006 | D135: 135 | E135: LANGEN | F135: 6438006 | G135: ov | H135: 438 | K135: 6431013 | L135: 06431013 | P135: 438006 | Q135: ov | R135: 438 | S135: LANGEN | T135: FALSE | V135: 6438006 | X135: LANGEN | Y135: Langen | Z135: Langen
A136: Laubach | B136: LK Gießen | C136: 06531010 | D136: 136 | E136: LAUBACH | F136: 6531010 | G136: l | H136: 531 | K136: 6438006 | L136: 06438006 | P136: 531010 | Q136: l | R136: 531 | S136: LAUBACH | T136: FALSE | V136: 6531010 | X136: LAUBACH | Y136: Laubach | Z136: Laubach
A137: Lauterbach (Hessen) | B137: LK Vogelsberg | C137: 06535011 | D137: 137 | E137: LAUTERBACH (HESSEN) | F137: 6535011 | G137: l | H137: 535 | K137: 6531010 | L137: 06531010 | P137: 535011 | Q137: l | R137: 535 | S137: LAUTERBACH (HESSEN) | T137: FALSE | V137: 6535011 | X137: LAUTERBACH (HESSEN) | Y137: Lauterbach (Hessen) | Z137: Lauterbach (Hessen)
A138: Lautertal (Vogelsberg) | B138: LK Vogelsberg | C138: 06535012 | D138: 138 | E138: LAUTERTAL (VOGELSBERG) | F138: 6535012 | G138: l | H138: 535 | K138: 6535011 | L138: 06535011 | P138: 535012 | Q138: l | R138: 535 | S138: LAUTERTAL (VOGELSBERG) | T138: FALSE | V138: 6535012 | X138: LAUTERTAL (VOGELSBERG) | Y138: Lautertal (Vogelsberg) | Z138: Lautertal (Vogelsberg)
A139: Leun | B139: LK Lahn-Dill | C139: 06532016 | D139: 139 | E139: LEUN | F139: 6532016 | G139: l | H139: 532 | K139: 6535012 | L139: 06535012 | P139: 532016 | Q139: l | R139: 532 | S139: LEUN | T139: FALSE | V139: 6532016 | X139: LEUN | Y139: Leun | Z139: Leun
A140: Lich | B140: LK Gießen | C140: 06531011 | D140: 140 | E140: LICH | F140: 6531011 | G140: l | H140: 531 | K140: 6532016 | L140: 06532016 | P140: 531011 | Q140: l | R140: 531 | S140: LICH | T140: FALSE | V140: 6531011 | X140: LICH | Y140: Lich | Z140: Lich
A141: Lichtenfels | B141: LK Waldeck-Frankenberg | C141: 06635016 | D141: 141 | E141: LICHTENFELS | F141: 6635016 | G141: l | H141: 635 | K141: 6531011 | L141: 06531011 | P141: 635016 | Q141: l | R141: 635 | S141: LICHTENFELS | T141: FALSE | V141: 6635016 | X141: LICHTENFELS | Y141: Lichtenfels | Z141: Lichtenfels
A142: Liebenau | B142: LK Kassel | C142: 06633016 | D142: 142 | E142: LIEBENAU | F142: 6633016 | G142: l | H142: 633 | K142: 6635016 | L142: 06635016 | P142: 633016 | Q142: l | R142: 633 | S142: LIEBENAU | T142: FALSE | V142: 6633016 | X142: LIEBENAU | Y142: Liebenau | Z142: Liebenau
A143: Lindenfels | B143: LK Bergstraße | C143: 06431015 | D143: 143 | E143: LINDENFELS | F143: 6431015 | G143: o | H143: 431 | K143: 6633016 | L143: 06633016 | P143: 431015 | Q143: o | R143: 431 | S143: LINDENFELS | T143: FALSE | V143: 6431015 | X143: LINDENFELS | Y143: Lindenfels | Z143: Lindenfels
A144: Loehnberg | B144: LK Limburg-Weilburg | C144: 06533010 | D144: 144 | E144: LOEHNBERG | F144: 6533010 | G144: l | H144: 533 | K144: 6431015 | L144: 06431015 | P144: 533010 | Q144: l | R144: 533 | S144: LOEHNBERG | T144: FALSE | V144: 6533010 | X144: LOEHNBERG | Y144: Loehnberg | Z144: Loehnberg
A145: Lollar | B145: LK Gießen | C145: 06531013 | D145: 145 | E145: LOLLAR | F145: 6531013 | G145: ov | H145: 531 | K145: 6533010 | L145: 06533010 | P145: 531013 | Q145: ov | R145: 531 | S145: LOLLAR | T145: FALSE | V145: 6531013 | X145: LOLLAR | Y145: Lollar | Z145: Lollar
A146: Lorch | B146: LK Rheingau-Taunus | C146: 06439010 | D146: 146 | E146: LORCH | F146: 6439010 | G146: o | H146: 439 | K146: 6531013 | L146: 06531013 | P146: 439010 | Q146: o | R146: 439 | S146: LORCH | T146: FALSE | V146: 6439010 | X146: LORCH | Y146: Lorch | Z146: Lorch
A147: Lorsch | B147: LK Bergstraße | C147: 06431016 | D147: 147 | E147: LORSCH | F147: 6431016 | G147: ov | H147: 431 | K147: 6439010 | L147: 06439010 | P147: 431016 | Q147: ov | R147: 431 | S147: LORSCH | T147: FALSE | V147: 6431016 | X147: LORSCH | Y147: Lorsch | Z147: Lorsch
A148: Ludwigsau | B148: LK Hersfeld-Rotenburg | C148: 06632012 | D148: 148 | E148: LUDWIGSAU | F148: 6632012 | G148: l | H148: 632 | K148: 6431016 | L148: 06431016 | P148: 632012 | Q148: l | R148: 632 | S148: LUDWIGSAU | T148: FALSE | V148: 6632012 | X148: LUDWIGSAU | Y148: Ludwigsau | Z148: Ludwigsau
A149: Luetzelbach | B149: LK Odenwaldkreis | C149: 06437010 | D149: 149 | E149: LUETZELBACH | F149: 6437010 | G149: l | H149: 437 | K149: 6632012 | L149: 06632012 | P149: 437010 | Q149: l | R149: 437 | S149: LUETZELBACH | T149: FALSE | V149: 6437010 | X149: LUETZELBACH | Y149: Luetzelbach | Z149: Luetzelbach
A150: Mainhausen | B150: LK Offenbach | C150: 06438007 | D150: 150 | E150: MAINHAUSEN | F150: 6438007 | G150: ov | H150: 438 | K150: 6437010 | L150: 06437010 | P150: 438007 | Q150: ov | R150: 438 | S150: MAINHAUSEN | T150: =EXACT(A150,S150) -> FALSE | V150: 6438007 | X150: MAINHAUSEN | Y150: Mainhausen | Z150: Mainhausen
A151: Maintal | B151: LK Main-Kinzig | C151: 06435019 | D151: 151 | E151: MAINTAL | F151: 6435019 | G151: ov | H151: 435 | K151: 6438007 | L151: 06438007 | P151: 435019 | Q151: ov | R151: 435 | S151: MAINTAL | T151: FALSE | V151: 6435019 | X151: MAINTAL | Y151: Maintal | Z151: Maintal
A152: Meinhard | B152: LK Werra-Meißner | C152: 06636007 | D152: 152 | E152: MEINHARD | F152: 6636007 | G152: l | H152: 636 | K152: 6435019 | L152: 06435019 | P152: 636007 | Q152: l | R152: 636 | S152: MEINHARD | T152: FALSE | V152: 6636007 | X152: MEINHARD | Y152: Meinhard | Z152: Meinhard
A153: Meissner | B153: LK Werra-Meißner | C153: 06636008 | D153: 153 | E153: MEISSNER | F153: 6636008 | G153: l | H153: 636 | K153: 6636007 | L153: 06636007 | P153: 636008 | Q153: l | R153: 636 | S153: MEISSNER | T153: FALSE | V153: 6636008 | X153: MEISSNER | Y153: Meissner | Z153: Meissner
A154: Mengerskirchen | B154: LK Limburg-Weilburg | C154: 06533011 | D154: 154 | E154: MENGERSKIRCHEN | F154: 6533011 | G154: l | H154: 533 | K154: 6636008 | L154: 06636008 | P154: 533011 | Q154: l | R154: 533 | S154: MENGERSKIRCHEN | T154: FALSE | V154: 6533011 | X154: MENGERSKIRCHEN | Y154: Mengerskirchen | Z154: Mengerskirchen
A155: Michelstadt | B155: LK Odenwaldkreis | C155: 06437011 | D155: 155 | E155: MICHELSTADT | F155: 6437011 | G155: l | H155: 437 | K155: 6533011 | L155: 06533011 | P155: 437011 | Q155: l | R155: 437 | S155: MICHELSTADT | T155: FALSE | V155: 6437011 | X155: MICHELSTADT | Y155: Michelstadt | Z155: Michelstadt
A156: Moerlenbach | B156: LK Bergstraße | C156: 06431017 | D156: 156 | E156: MOERLENBACH | F156: 6431017 | G156: o | H156: 431 | K156: 6437011 | L156: =CONCATENATE($J$28,K156) -> 06437011 | P156: 431017 | Q156: o | R156: 431 | S156: MOERLENBACH | T156: FALSE | V156: 6431017 | X156: MOERLENBACH | Y156: Moerlenbach | Z156: Moerlenbach
A157: Morschen | B157: LK Schwalm-Eder | C157: 06634015 | D157: 157 | E157: MORSCHEN | F157: 6634015 | G157: l | H157: 634 | K157: 6431017 | L157: 06431017 | P157: 634015 | Q157: l | R157: 634 | S157: MORSCHEN | T157: FALSE | V157: 6634015 | X157: MORSCHEN | Y157: Morschen | Z157: Morschen
A158: Muecke | B158: LK Vogelsberg | C158: 06535013 | D158: 158 | E158: MUECKE | F158: 6535013 | K158: 6634015 | L158: 06634015 | X158: MUECKE | Y158: Muecke | Z158: Muecke
A159: Muehlheim Am Main | B159: LK Offenbach | C159: 06438008 | D159: 159 | E159: MUEHLHEIM AM MAIN | F159: 6438008 | G159: ov | H159: 438 | K159: 6535013 | L159: 06535013 | P159: 438008 | Q159: ov | R159: 438 | S159: MUEHLHEIM AM MAIN | T159: =EXACT(A159,S159) -> FALSE | V159: 6438008 | X159: MUEHLHEIM AM MAIN | Y159: Muehlheim Am Main | Z159: Muehlheim Am Main
A160: Muenchhausen | B160: LK Marburg-Biedenkopf | C160: 06534015 | D160: 160 | E160: MUENCHHAUSEN | F160: 6534015 | G160: l | H160: 534 | K160: 6438008 | L160: 06438008 | P160: 534015 | Q160: l | R160: 534 | S160: MUENCHHAUSEN | T160: FALSE | V160: 6534015 | X160: MUENCHHAUSEN | Y160: Muenchhausen | Z160: Muenchhausen
A161: Muenster | B161: LK Darmstadt-Dieburg | C161: 06432015 | D161: 161 | E161: MUENSTER | F161: 6432015 | G161: o | H161: 432 | K161: 6534015 | L161: 06534015 | P161: 432015 | Q161: o | R161: 432 | S161: MUENSTER | T161: FALSE | V161: 6432015 | X161: MUENSTER | Y161: Muenster | Z161: Muenster
A162: Naumburg | B162: LK Kassel | C162: 06633018 | D162: 162 | E162: NAUMBURG | F162: 6633018 | G162: o | H162: 633 | K162: 6432015 | L162: 06432015 | P162: 633018 | Q162: o | R162: 633 | S162: NAUMBURG | T162: FALSE | V162: 6633018 | X162: NAUMBURG | Y162: Naumburg | Z162: Naumburg
A163: Nentershausen | B163: LK Hersfeld-Rotenburg | C163: 06632013 | D163: 163 | E163: NENTERSHAUSEN | F163: 6632013 | G163: l | H163: 632 | K163: 6633018 | L163: 06633018 | P163: 632013 | Q163: l | R163: 632 | S163: NENTERSHAUSEN | T163: FALSE | V163: 6632013 | X163: NENTERSHAUSEN | Y163: Nentershausen | Z163: Nentershausen
A164: Neu-Eichenberg | B164: LK Werra-Meißner | C164: 06636009 | D164: 164 | E164: NEU-EICHENBERG | F164: 6636009 | G164: l | H164: 636 | K164: 6632013 | L164: 06632013 | P164: 636009 | Q164: l | R164: 636 | S164: NEU-EICHENBERG | T164: FALSE | V164: 6636009 | X164: NEU-EICHENBERG | Y164: Neu-Eichenberg | Z164: Neu-Eichenberg
A165: Neuental | B165: LK Schwalm-Eder | C165: 06634016 | D165: 165 | E165: NEUENTAL | F165: 6634016 | G165: l | H165: 634 | K165: 6636009 | L165: 06636009 | P165: 634016 | Q165: l | R165: 634 | S165: NEUENTAL | T165: FALSE | V165: 6634016 | X165: NEUENTAL | Y165: Neuental | Z165: Neuental
A166: Neukirchen | B166: LK Schwalm-Eder | C166: 06634017 | D166: 166 | E166: NEUKIRCHEN | F166: 6634017 | G166: l | H166: 634 | K166: 6634016 | L166: 06634016 | P166: 634017 | Q166: l | R166: 634 | S166: NEUKIRCHEN | T166: FALSE | V166: 6634017 | X166: NEUKIRCHEN | Y166: Neukirchen | Z166: Neukirchen
A167: Neustadt (Hessen) | B167: LK Marburg-Biedenkopf | C167: 06534016 | D167: 167 | E167: NEUSTADT (HESSEN) | F167: 6534016 | G167: l | H167: 534 | K167: 6634017 | L167: 06634017 | P167: 534016 | Q167: l | R167: 534 | S167: NEUSTADT (HESSEN) | T167: FALSE | V167: 6534016 | X167: NEUSTADT (HESSEN) | Y167: Neustadt (Hessen) | Z167: Neustadt (Hessen)
A168: Nidda | B168: LK Wetterau | C168: 06440016 | D168: 168 | E168: NIDDA | F168: 6440016 | G168: l | H168: 440 | K168: 6534016 | L168: 06534016 | P168: 440016 | Q168: l | R168: 440 | S168: NIDDA | T168: FALSE | V168: 6440016 | X168: NIDDA | Y168: Nidda | Z168: Nidda
A169: Niddatal | B169: LK Wetterau | C169: 06440017 | D169: 169 | E169: NIDDATAL | F169: 6440017 | G169: o | H169: 440 | K169: 6440016 | L169: 06440016 | P169: 440017 | Q169: o | R169: 440 | S169: NIDDATAL | T169: FALSE | V169: 6440017 | X169: NIDDATAL | Y169: Niddatal | Z169: Niddatal
A170: Niedenstein | B170: LK Schwalm-Eder | C170: 06634018 | D170: 170 | E170: NIEDENSTEIN | F170: 6634018 | G170: o | H170: 634 | K170: 6440017 | L170: 06440017 | P170: 634018 | Q170: o | R170: 634 | S170: NIEDENSTEIN | T170: FALSE | V170: 6634018 | X170: NIEDENSTEIN | Y170: Niedenstein | Z170: Niedenstein
A171: Nieste | B171: LK Kassel | C171: 06633019 | D171: 171 | E171: NIESTE | F171: 6633019 | G171: o | H171: 633 | K171: 6634018 | L171: 06634018 | P171: 633019 | Q171: o | R171: 633 | S171: NIESTE | T171: FALSE | V171: 6633019 | X171: NIESTE | Y171: Nieste | Z171: Nieste
A172: Nuesttal | B172: LK Fulda | C172: 06631019 | D172: 172 | E172: NUESTTAL | F172: 6631019 | G172: l | H172: 631 | K172: 6633019 | L172: 06633019 | P172: 631019 | Q172: l | R172: 631 | S172: NUESTTAL | T172: FALSE | V172: 6631019 | X172: NUESTTAL | Y172: Nuesttal | Z172: Nuesttal
A173: Oberaula | B173: LK Schwalm-Eder | C173: 06634019 | D173: 173 | E173: OBERAULA | F173: 6634019 | G173: l | H173: 634 | K173: 6631019 | L173: 06631019 | P173: 634019 | Q173: l | R173: 634 | S173: OBERAULA | T173: FALSE | V173: 6634019 | X173: OBERAULA | Y173: Oberaula | Z173: Oberaula
A174: Obertshausen | B174: LK Offenbach | C174: 06438010 | D174: 174 | E174: OBERTSHAUSEN | F174: 6438010 | G174: ov | H174: 438 | K174: 6634019 | L174: 06634019 | P174: 438010 | Q174: ov | R174: 438 | S174: OBERTSHAUSEN | T174: FALSE | V174: 6438010 | X174: OBERTSHAUSEN | Y174: Obertshausen | Z174: Obertshausen
A175: Oberzent | B175: LK Odenwaldkreis | C175: 6437016 | D175: 175 | E175: OBERZENT | F175: 6437016
A176: Odenwaldkreis | B176: LK Odenwaldkreis | C176: 06437000 | D176: 176 | E176: Odenwaldkreis | F176: 6437000 | H176: 0 | K176: 6633021 | L176: 06633021 | P176: 437000 | S176: Odenwaldkreis | T176: TRUE | V176: 6437000 | X176: Odenwaldkreis | Y176: Odenwaldkreis | Z176: Odenwaldkreis
A177: Oestrich-Winkel, Stadt | B177: LK Rheingau-Taunus | C177: 06439012 | D177: 177 | E177: OESTRICH-WINKEL, STADT | F177: 6439012 | K177: 6437000 | L177: 06437000 | X177: OESTRICH-WINKEL, STADT | Y177: Oestrich-Winkel, Stadt | Z177: Oestrich-Winkel, Stadt
A178: Offenbach Am Main | B178: Kreisfreie Stadt | C178: 06413000 | D178: 178 | E178: OFFENBACH AM MAIN | F178: 6413000 | H178: 0 | K178: 6439012 | L178: 06439012 | P178: 413000 | S178: OFFENBACH AM MAIN | T178: =EXACT(A178,S178) -> FALSE | V178: 6413000 | X178: OFFENBACH AM MAIN | Y178: Offenbach Am Main | Z178: Offenbach Am Main
A179: Ortenberg | B179: LK Wetterau | C179: 06440019 | D179: 179 | E179: ORTENBERG | F179: 6440019 | G179: l | H179: 440 | K179: 6413000 | L179: 06413000 | P179: 440019 | Q179: l | R179: 440 | S179: ORTENBERG | T179: FALSE | V179: 6440019 | X179: ORTENBERG | Y179: Ortenberg | Z179: Ortenberg
A180: Ottrau | B180: LK Schwalm-Eder | C180: 06634020 | D180: 180 | E180: OTTRAU | F180: 6634020 | G180: l | H180: 634 | K180: 6440019 | L180: 06440019 | P180: 634020 | Q180: l | R180: 634 | S180: OTTRAU | T180: FALSE | V180: 6634020 | X180: OTTRAU | Y180: Ottrau | Z180: Ottrau
A181: Pfungstadt | B181: LK Darmstadt-Dieburg | C181: 06432018 | D181: 181 | E181: PFUNGSTADT | F181: 6432018 | G181: ov | H181: 432 | K181: 6634020 | L181: 06634020 | P181: 432018 | Q181: ov | R181: 432 | S181: PFUNGSTADT | T181: FALSE | V181: 6432018 | X181: PFUNGSTADT | Y181: Pfungstadt | Z181: Pfungstadt
A182: Pohlheim | B182: LK Gießen | C182: 06531014 | D182: 182 | E182: POHLHEIM | F182: 6531014 | G182: o | H182: 531 | K182: 6432018 | L182: 06432018 | P182: 531014 | Q182: o | R182: 531 | S182: POHLHEIM | T182: FALSE | V182: 6531014 | X182: POHLHEIM | Y182: Pohlheim | Z182: Pohlheim
A183: Poppenhausen (Wasserkuppe) | B183: LK Fulda | C183: 06631021 | D183: 183 | E183: POPPENHAUSEN (WASSERKUPPE) | F183: 6631021 | G183: l | H183: 631 | K183: 6531014 | L183: 06531014 | P183: 631021 | Q183: l | R183: 631 | S183: POPPENHAUSEN (WASSERKUPPE) | T183: FALSE | V183: 6631021 | X183: POPPENHAUSEN (WASSERKUPPE) | Y183: Poppenhausen (Wasserkuppe) | Z183: Poppenhausen (Wasserkuppe)
A184: Rabenau | B184: LK Gießen | C184: 06531015 | D184: 184 | E184: RABENAU | F184: 6531015 | G184: l | H184: 531 | K184: 6631021 | L184: 06631021 | P184: 531015 | Q184: l | R184: 531 | S184: RABENAU | T184: FALSE | V184: 6531015 | X184: RABENAU | Y184: Rabenau | Z184: Rabenau
A185: Rauschenberg | B185: LK Marburg-Biedenkopf | C185: 06534017 | D185: 185 | E185: RAUSCHENBERG | F185: 6534017 | G185: l | H185: 534 | K185: 6531015 | L185: 06531015 | P185: 534017 | Q185: l | R185: 534 | S185: RAUSCHENBERG | T185: FALSE | V185: 6534017 | X185: RAUSCHENBERG | Y185: Rauschenberg | Z185: Rauschenberg
A186: Reichelsheim (Odenwald) | B186: LK Odenwaldkreis | C186: 06437013 | D186: 186 | E186: REICHELSHEIM (ODENWALD) | F186: 6437013 | G186: l | H186: 437 | K186: 6534017 | L186: 06534017 | P186: 437013 | Q186: l | R186: 437 | S186: REICHELSHEIM (ODENWALD) | T186: FALSE | V186: 6437013 | X186: REICHELSHEIM (ODENWALD) | Y186: Reichelsheim (Odenwald) | Z186: Reichelsheim (Odenwald)
A187: Reinhardshagen | B187: LK Kassel | C187: 06633022 | D187: 187 | E187: REINHARDSHAGEN | F187: 6633022 | G187: o | H187: 633 | K187: 6437013 | L187: 06437013 | P187: 633022 | Q187: o | R187: 633 | S187: REINHARDSHAGEN | T187: FALSE | V187: 6633022 | X187: REINHARDSHAGEN | Y187: Reinhardshagen | Z187: Reinhardshagen
A188: Riedstadt | B188: LK Groß-Gerau | C188: 06433011 | D188: 188 | E188: RIEDSTADT | F188: 6433011 | G188: o | H188: 433 | K188: 6633022 | L188: 06633022 | P188: 433011 | Q188: o | R188: 433 | S188: RIEDSTADT | T188: FALSE | V188: 6433011 | X188: RIEDSTADT | Y188: Riedstadt | Z188: Riedstadt
A189: Ringgau | B189: LK Werra-Meißner | C189: 06636010 | D189: 189 | E189: RINGGAU | F189: 6636010 | G189: l | H189: 636 | K189: 6433011 | L189: 06433011 | P189: 636010 | Q189: l | R189: 636 | S189: RINGGAU | T189: FALSE | V189: 6636010 | X189: RINGGAU | Y189: Ringgau | Z189: Ringgau
A190: Rodgau | B190: LK Offenbach | C190: 06438011 | D190: 190 | E190: RODGAU | F190: 6438011 | G190: ov | H190: 438 | K190: 6636010 | L190: 06636010 | P190: 438011 | Q190: ov | R190: 438 | S190: RODGAU | T190: FALSE | V190: 6438011 | X190: RODGAU | Y190: Rodgau | Z190: Rodgau
A191: Roedermark | B191: LK Offenbach | C191: 06438012 | D191: 191 | E191: ROEDERMARK | F191: 6438012 | G191: ov | H191: 438 | K191: 6438011 | L191: 06438011 | P191: 438012 | Q191: ov | R191: 438 | S191: ROEDERMARK | T191: FALSE | V191: 6438012 | X191: ROEDERMARK | Y191: Roedermark | Z191: Roedermark
A192: Romrod | B192: LK Vogelsberg | C192: 06535014 | D192: 192 | E192: ROMROD | F192: 6535014 | G192: l | H192: 535 | K192: 6438012 | L192: 06438012 | P192: 535014 | Q192: l | R192: 535 | S192: ROMROD | T192: FALSE | V192: 6535014 | X192: ROMROD | Y192: Romrod | Z192: Romrod
A193: Ronshausen | B193: LK Hersfeld-Rotenburg | C193: 06632017 | D193: 193 | E193: RONSHAUSEN | F193: 6632017 | G193: l | H193: 632 | K193: 6535014 | L193: 06535014 | P193: 632017 | Q193: l | R193: 632 | S193: RONSHAUSEN | T193: FALSE | V193: 6632017 | X193: RONSHAUSEN | Y193: =PROPER(X193) -> Ronshausen | Z193: Ronshausen
A194: Rosenthal | B194: LK Waldeck-Frankenberg | C194: 06635017 | D194: 194 | E194: ROSENTHAL | F194: 6635017 | G194: l | H194: 635 | K194: 6632017 | L194: 06632017 | P194: 635017 | Q194: l | R194: 635 | S194: ROSENTHAL | T194: FALSE | V194: 6635017 | X194: ROSENTHAL | Y194: Rosenthal | Z194: Rosenthal
A195: Rotenburg A.D.Fulda | B195: LK Hersfeld-Rotenburg | C195: 06632018 | D195: 195 | E195: ROTENBURG A.D.FULDA | F195: 6632018 | G195: l | H195: 632 | K195: 6635017 | L195: 06635017 | P195: 632018 | Q195: l | R195: 632 | S195: ROTENBURG A.D.FULDA | T195: FALSE | V195: 6632018 | X195: ROTENBURG A.D.FULDA | Y195: Rotenburg A.D.Fulda | Z195: Rotenburg A.D.Fulda
A196: Ruedesheim Am Rhein | B196: LK Rheingau-Taunus | C196: 06439013 | D196: 196 | E196: RUEDESHEIM AM RHEIN | F196: 6439013 | G196: o | H196: 439 | K196: 6437014 | L196: 06437014 | P196: 439013 | Q196: o | R196: 439 | S196: RUEDESHEIM AM RHEIN | T196: FALSE | V196: 6439013 | X196: RUEDESHEIM AM RHEIN | Y196: Ruedesheim Am Rhein | Z196: Ruedesheim Am Rhein
A197: Ruesselsheim | B197: LK Groß-Gerau | C197: 06433012 | D197: 197 | E197: RUESSELSHEIM | F197: 6433012 | G197: ov | H197: 433 | K197: 6439013 | L197: 06439013 | P197: 433012 | Q197: ov | R197: 433 | S197: RUESSELSHEIM | T197: FALSE | V197: 6433012 | X197: RUESSELSHEIM | Y197: Ruesselsheim | Z197: Ruesselsheim
A198: Schaafheim | B198: LK Darmstadt-Dieburg | C198: 06432021 | D198: 198 | E198: SCHAAFHEIM | F198: 6432021 | G198: o | H198: 432 | K198: 6433012 | L198: 06433012 | P198: 432021 | Q198: o | R198: 432 | S198: SCHAAFHEIM | T198: FALSE | V198: 6432021 | X198: SCHAAFHEIM | Y198: Schaafheim | Z198: Schaafheim
A199: Schauenburg | B199: LK Kassel | C199: 06633023 | D199: 199 | E199: SCHAUENBURG | F199: 6633023 | G199: ov | H199: 633 | K199: 6432021 | L199: 06432021 | P199: 633023 | Q199: ov | R199: 633 | S199: SCHAUENBURG | T199: FALSE | V199: 6633023 | X199: SCHAUENBURG | Y199: Schauenburg | Z199: Schauenburg
A200: Schenklengsfeld | B200: LK Hersfeld-Rotenburg | C200: 06632019 | D200: 200 | E200: SCHENKLENGSFELD | F200: 6632019 | G200: l | H200: 632 | K200: 6633023 | L200: 06633023 | P200: 632019 | Q200: l | R200: 632 | S200: SCHENKLENGSFELD | T200: FALSE | V200: 6632019 | X200: SCHENKLENGSFELD | Y200: Schenklengsfeld | Z200: Schenklengsfeld
... 74 more rows

Sheet Adressen (hidden)
A1: GKZ | B1: Kommunen | F1: 431000 | G1: Landkreis Bergstraße | H1: An den | I1: Landrat | J1: des Landkreises Bergstraße | K1: Gräffstraße 5 | L1: 64646 | M1: Heppenheim | O1: 1
A2: 6633001 | B2: AHNATAL | C2: =VLOOKUP(A2,'antragsberechtigt B'!$C$2:$F$400,3,FALSE) ->  | F2: 432000 | G2: Landkreis Darmstadt-Dieburg | H2: An den | I2: Landrat | J2: des Landkreises Darmstadt-Dieburg | K2: Jägertorstr. 207 | L2: 64289 | M2: Darmstadt
A3: 6632001 | B3: ALHEIM | C3: =VLOOKUP(A3,'antragsberechtigt B'!$C$2:$F$400,3,FALSE) ->  | F3: 433000 | G3: Landkreis Groß-Gerau | H3: An den | I3: Landrat | J3: des Landkreises Groß-Gerau | K3: Wilhelm-Seipp-Straße 4 | L3: 64521 | M3: Groß-Gerau
A4: 6531001 | B4: ALLENDORF (LUMDA), STADT | C4: =VLOOKUP(A4,'antragsberechtigt B'!$C$2:$F$400,3,FALSE) ->  | F4: 434000 | G4: Hochtaunuskreis | H4: An den | I4: Landrat | J4: des Hochtaunuskreises | K4: Ludwig-Erhard-Anlage 1-4 | L4: 61348 | M4: Bad Homburg
A5: 6535001 | B5: ALSFELD, STADT | C5: =VLOOKUP(A5,'antragsberechtigt B'!$C$2:$F$400,3,FALSE) ->  | F5: 435000 | G5: Main-Kinzig-Kreis | H5: An den | I5: Landrat | J5: des Main-Kinzig-Kreises | K5: Barbarossastraße 16-24 | L5: 63569 | M5: Gelnhausen
A6: 6534001 | B6: AMOENEBURG, STADT | C6: =VLOOKUP(A6,'antragsberechtigt B'!$C$2:$F$400,3,FALSE) ->  | F6: 436000 | G6: Main-Taunus-Kreis | H6: An den | I6: Landrat | J6: des Main-Taunus-Kreises | K6: Am Kreishaus 1-5 | L6: 65719 | M6: Hofheim a. T.
A7: 6534002 | B7: ANGELBURG | C7: =VLOOKUP(A7,'antragsberechtigt B'!$C$2:$F$400,3,FALSE) ->  | F7: 437000 | G7: Odenwaldkreis | H7: An den | I7: Landrat | J7: des Odenwaldkreises | K7: Michelstädter Straße 12 | L7: 64711 | M7: Erbach
A8: 6535002 | B8: ANTRIFTTAL | C8: =VLOOKUP(A8,'antragsberechtigt B'!$C$2:$F$400,3,FALSE) ->  | F8: 438000 | G8: Landkreis Offenbach | H8: An den | I8: Landrat | J8: des Landkreises Offenbach | K8: Werner-Hilpert-Straße 1 | L8: 63128 | M8: Dietzenbach
A9: 6635002 | B9: BAD AROLSEN, STADT | C9: =VLOOKUP(A9,'antragsberechtigt B'!$C$2:$F$400,3,FALSE) ->  | F9: 439000 | G9: Rheingau-Taunus-Kreis | H9: An den | I9: Landrat | J9: des Rheingau-Taunus-Kreises | K9: Heimbacher Straße 7 | L9: 65307 | M9: Bad Schwalbach
A10: 6633006 | B10: BAD EMSTAL | C10: =VLOOKUP(A10,'antragsberechtigt B'!$C$2:$F$400,3,FALSE) ->  | F10: 440000 | G10: Wetteraukreis | H10: An den | I10: Landrat | J10: des Wetteraukreises | K10: Europaplatz | L10: 61169 | M10: Friedberg (Hessen)
A11: 6534003 | B11: BAD ENDBACH | C11: =VLOOKUP(A11,'antragsberechtigt B'!$C$2:$F$400,3,FALSE) ->  | F11: 531000 | G11: Landkreis Gießen | H11: An die | I11: Landrätin | J11: des Landkreises Gießen | K11: Riversplatz 1 - 9 | L11: 35394 | M11: Gießen
A12: 6632002 | B12: BAD HERSFELD, KREISSTADT | C12: =VLOOKUP(A12,'antragsberechtigt B'!$C$2:$F$400,3,FALSE) ->  | F12: 532000 | G12: Lahn-Dill-Kreis | H12: An den | I12: Landrat | J12: des Lahn-Dill-Kreises | K12: Karl-Kellner-Ring 51 | L12: 35576 | M12: Wetzlar
A13: 6633002 | B13: BAD KARLSHAFEN, STADT | C13: =VLOOKUP(A13,'antragsberechtigt B'!$C$2:$F$400,3,FALSE) ->  | F13: 533000 | G13: Landkreis Limburg-Weilburg | H13: An den | I13: Landrat | J13: des Landkeises Limburg-Weilburg | K13: Schiede 43 | L13: 65549 | M13: Limburg a.d.Lahn
A14: 6437001 | B14: BAD KOENIG, STADT | C14: =VLOOKUP(A14,'antragsberechtigt B'!$C$2:$F$400,3,FALSE) ->  | F14: 534000 | G14: Landkreis Marburg-Biedenkopf | H14: An die | I14: Landrätin | J14: des Landkreises Marburg-Biedenkopf | K14: Im Lichtenholz 60 | L14: 35043 | M14: Marburg
A15: 6440002 | B15: BAD NAUHEIM, STADT | C15: =VLOOKUP(A15,'antragsberechtigt B'!$C$2:$F$400,3,FALSE) ->  | F15: 535000 | G15: Vogelsbergkreis | H15: An den | I15: Landrat | J15: des Vogelsbergkreises | K15: Goldhelg 20 | L15: 36341 | M15: Lauterbach
A16: 6435001 | B16: BAD ORB, STADT | C16: =VLOOKUP(A16,'antragsberechtigt B'!$C$2:$F$400,3,FALSE) ->  | F16: 631000 | G16: Landkreis Fulda | H16: An den | I16: Landrat | J16: des Landkreises Fulda | K16: Wörthstraße 15 | L16: 36037 | M16: Fulda
A17: 6439002 | B17: BAD SCHWALBACH, KREISSTADT | C17: =VLOOKUP(A17,'antragsberechtigt B'!$C$2:$F$400,3,FALSE) ->  | F17: 632000 | G17: Landkreis Hersfeld-Rotenburg | H17: An den | I17: Landrat | J17: des Landkreises Hersfeld-Rotenburg | K17: Friedloser Straße 12 | L17: 36251 | M17: Bad Hersfeld
A18: 6435002 | B18: BAD SODEN-SALMUENSTER, STADT | C18: =VLOOKUP(A18,'antragsberechtigt B'!$C$2:$F$400,3,FALSE) ->  | F18: 633000 | G18: Landkreis Kassel | H18: An den | I18: Landrat | J18: des Landkreises Kassel | K18: Wilhelmshöher Allee 19-21 | L18: 34117 | M18: Kassel
A19: 6636001 | B19: BAD SOODEN-ALLENDORF, STADT | C19: =VLOOKUP(A19,'antragsberechtigt B'!$C$2:$F$400,3,FALSE) ->  | F19: 634000 | G19: Schwalm-Eder-Kreis | H19: An den | I19: Landrat | J19: des Schwalm-Eder-Kreises | K19: Parkstraße 6 | L19: 34576 | M19: Homberg (Efze)
A20: 6635003 | B20: BAD WILDUNGEN, STADT | C20: =VLOOKUP(A20,'antragsberechtigt B'!$C$2:$F$400,3,FALSE) ->  | F20: 635000 | G20: Landkreis Waldeck-Frankenberg | H20: An den | I20: Landrat | J20: des Landkreises Waldeck-Frankenberg | K20: Südring 2 | L20: 34497 | M20: Korbach
A21: 6634027 | B21: BAD ZWESTEN | C21: =VLOOKUP(A21,'antragsberechtigt B'!$C$2:$F$400,3,FALSE) ->  | F21: 636000 | G21: Werra-Meißner-Kreis | H21: An den | I21: Landrat | J21: des Werra-Meißner-Kreises | K21: Schlossplatz 1 | L21: 37269 | M21: Eschwege
A22: 6632003 | B22: BEBRA, STADT | C22: =VLOOKUP(A22,'antragsberechtigt B'!$C$2:$F$400,3,FALSE) ->  | F22: 411000 | G22: Darmstadt, Wissenschaftsstadt | H22: An den | I22: Magistrat | J22: der Wissenschaftsstadt Darmstadt | K22: Luisenplatz 5 | L22: 64283 | M22: Darmstadt
A23: 6437002 | B23: BEERFELDEN, STADT | C23: =VLOOKUP(A23,'antragsberechtigt B'!$C$2:$F$400,3,FALSE) ->  | F23: 412000 | G23: Frankfurt am Main, St. | H23: An den | I23: Magistrat | J23: der Stadt Frankfurt | K23: Römerberg 23 | L23: 60311 | M23: Frankfurt am Main
A24: 6533001 | B24: BESELICH | C24: =VLOOKUP(A24,'antragsberechtigt B'!$C$2:$F$400,3,FALSE) ->  | F24: 413000 | G24: Offenbach am Main, St. | H24: An den | I24: Magistrat | J24: der Stadt Offenbach | K24: Berliner Straße 100 | L24: 63065 | M24: Offenbach
A25: 6431004 | B25: BIRKENAU | C25: =VLOOKUP(A25,'antragsberechtigt B'!$C$2:$F$400,3,FALSE) ->  | F25: 414000 | G25: Wiesbaden, Landeshauptstadt | H25: An den | I25: Magistrat | J25: der Landeshauptstadt Wiesbaden | K25: Schlossplatz 6 | L25: 65183 | M25: Wiesbaden
A26: 6433002 | B26: BISCHOFSHEIM | C26: =VLOOKUP(A26,'antragsberechtigt B'!$C$2:$F$400,3,FALSE) ->  | F26: 611000 | G26: Kassel, documenta-Stadt | H26: An den | I26: Magistrat | J26: der documenta-Stadt Kassel | K26: Obere Königsstraße 8 | L26: 34117 | M26: Kassel
A27: 6634001 | B27: BORKEN (HESSEN), STADT | C27: =VLOOKUP(A27,'antragsberechtigt B'!$C$2:$F$400,3,FALSE) ->  | F27: 431001 | G27: Abtsteinach | H27: An den | I27: Gemeindevorstand | J27: der Gemeinde Abtsteinach | K27: Kirchstraße 2 | L27: 69518 | M27: Abtsteinach
A28: 6435005 | B28: BRACHTTAL | C28: =VLOOKUP(A28,'antragsberechtigt B'!$C$2:$F$400,3,FALSE) ->  | F28: 431002 | G28: Bensheim, St. | H28: An den | I28: Magistrat | J28: der Stadt Bensheim | K28: Kirchbergstraße 18 | L28: 64625 | M28: Bensheim
A29: 6532003 | B29: BRAUNFELS, STADT | C29: =VLOOKUP(A29,'antragsberechtigt B'!$C$2:$F$400,3,FALSE) ->  | F29: 431003 | G29: Biblis | H29: An den | I29: Gemeindevorstand | J29: der Gemeinde Biblis | K29: Darmstädter Straße 25 | L29: 68647 | M29: Biblis
A30: 6632004 | B30: BREITENBACH AM HERZBERG | C30: =VLOOKUP(A30,'antragsberechtigt B'!$C$2:$F$400,3,FALSE) ->  | F30: 431004 | G30: Birkenau | H30: An den | I30: Gemeindevorstand | J30: der Gemeinde Birkenau | K30: Hauptstraße 119 | L30: 69488 | M30: Birkenau
A31: 6633004 | B31: BREUNA | C31: =VLOOKUP(A31,'antragsberechtigt B'!$C$2:$F$400,3,FALSE) ->  | F31: 431005 | G31: Bürstadt, St. | H31: An den | I31: Magistrat | J31: der Stadt Bürstadt | K31: Rathausstraße 2 | L31: 68642 | M31: Bürstadt
A32: 6437005 | B32: BROMBACHTAL | C32: =VLOOKUP(A32,'antragsberechtigt B'!$C$2:$F$400,3,FALSE) ->  | F32: 431006 | G32: Einhausen | H32: An den | I32: Gemeindevorstand | J32: der Gemeinde Einhausen | K32: Marktplatz 5 | L32: 64683 | M32: Einhausen
A33: 6635005 | B33: BROMSKIRCHEN | C33: =VLOOKUP(A33,'antragsberechtigt B'!$C$2:$F$400,3,FALSE) ->  | F33: 431007 | G33: Fürth | H33: An den | I33: Gemeindevorstand | J33: der Gemeinde Fürth | K33: Hauptstraße 19 | L33: 64658 | M33: Fürth
A34: 6435006 | B34: BRUCHKOEBEL, STADT | C34: =VLOOKUP(A34,'antragsberechtigt B'!$C$2:$F$400,3,FALSE) ->  | F34: 431008 | G34: Gorxheimertal | H34: An den | I34: Gemeindevorstand | J34: der Gemeinde Gorxheimertal | K34: Siedlungsstraße 35 | L34: 69517 | M34: Gorxheimertal
A35: 6440004 | B35: BUEDINGEN, STADT | C35: =VLOOKUP(A35,'antragsberechtigt B'!$C$2:$F$400,3,FALSE) ->  | F35: 431009 | G35: Grasellenbach | H35: An den | I35: Gemeindevorstand | J35: der Gemeinde Grasellenbach | K35: Schulstraße 1 | L35: 64689 | M35: Grasellenbach
A36: 6431005 | B36: BUERSTADT, STADT | C36: =VLOOKUP(A36,'antragsberechtigt B'!$C$2:$F$400,3,FALSE) ->  | F36: 431010 | G36: Groß-Rohrheim | H36: An den | I36: Gemeindevorstand | J36: der Gemeinde Groß-Rohrheim | K36: Rheinstraße 14 | L36: 68649 | M36: Groß-Rohrheim
A37: 6440005 | B37: BUTZBACH, FRIEDRICH-LUDWIG-WEIDIG-STADT | C37: =VLOOKUP(A37,'antragsberechtigt B'!$C$2:$F$400,3,FALSE) ->  | F37: 431011 | G37: Heppenheim (Bergstraße), Krst. | H37: An den | I37: Magistrat | J37: der Kreisstadt Heppenheim | K37: Großer Markt 1 | L37: 64646 | M37: Heppenheim (Bergstraße)
A38: 6632005 | B38: CORNBERG | C38: =VLOOKUP(A38,'antragsberechtigt B'!$C$2:$F$400,3,FALSE) ->  | F38: 431012 | G38: Hirschhorn (Neckar), St. | H38: An den | I38: Magistrat | J38: der Stadt Hirschhorn | K38: Hauptstraße 17 | L38: 69434 | M38: Hirschhorn (Neckar)
A39: 6534007 | B39: DAUTPHETAL | C39: =VLOOKUP(A39,'antragsberechtigt B'!$C$2:$F$400,3,FALSE) ->  | F39: 431013 | G39: Lampertheim, St. | H39: An den | I39: Magistrat | J39: der Stadt Lampertheim | K39: Römerstraße 102 | L39: 68623 | M39: Lampertheim
A40: 6635007 | B40: DIEMELSEE | C40: =VLOOKUP(A40,'antragsberechtigt B'!$C$2:$F$400,3,FALSE) ->  | F40: 431014 | G40: Lautertal (Odenwald) | H40: An den | I40: Gemeindevorstand | J40: der Gemeinde Lautertal | K40: Nibelungenstraße 280 | L40: 64686 | M40: Lautertal (Odenwald)
A41: 6438001 | B41: DIETZENBACH, KREISSTADT | C41: =VLOOKUP(A41,'antragsberechtigt B'!$C$2:$F$400,3,FALSE) ->  | F41: 431015 | G41: Lindenfels, St. | H41: An den | I41: Magistrat | J41: der Stadt Lindenfels | K41: Burgstraße 39 | L41: 64678 | M41: Lindenfels
A42: 6532006 | B42: DILLENBURG, STADT | C42: =VLOOKUP(A42,'antragsberechtigt B'!$C$2:$F$400,3,FALSE) ->  | F42: 431016 | G42: Lorsch, Karolingerstadt | H42: An den | I42: Magistrat | J42: der Karolingerstadt Lorsch | K42: Kaiser-Wilhelm-Platz 1 | L42: 64653 | M42: Lorsch
A43: 6631003 | B43: DIPPERZ | C43: =VLOOKUP(A43,'antragsberechtigt B'!$C$2:$F$400,3,FALSE) ->  | F43: 431017 | G43: Mörlenbach | H43: An den | I43: Gemeindevorstand | J43: der Gemeinde Mörlenbach | K43: Rathausplatz 1 | L43: 69509 | M43: Mörlenbach
A44: 6533004 | B44: DORNBURG | C44: =VLOOKUP(A44,'antragsberechtigt B'!$C$2:$F$400,3,FALSE) ->  | F44: 431018 | G44: Neckarsteinach, St. | H44: An den | I44: Magistrat | J44: der Stadt Neckarsteinach | K44: Hauptstraße 7 | L44: 69239 | M44: Neckarsteinach
A45: 6631004 | B45: EBERSBURG | C45: =VLOOKUP(A45,'antragsberechtigt B'!$C$2:$F$400,3,FALSE) ->  | F45: 431019 | G45: Rimbach | H45: An den | I45: Gemeindevorstand | J45: der Gemeinde Rimbach | K45: Rathausstraße 1 | L45: 64668 | M45: Rimbach
A46: 6534008 | B46: EBSDORFERGRUND | C46: =VLOOKUP(A46,'antragsberechtigt B'!$C$2:$F$400,3,FALSE) ->  | F46: 431020 | G46: Viernheim, St. | H46: An den | I46: Magistrat | J46: der Stadt Viernheim | K46: Kettelerstraße 3 | L46: 68519 | M46: Viernheim
A47: 6634002 | B47: EDERMUENDE | C47: =VLOOKUP(A47,'antragsberechtigt B'!$C$2:$F$400,3,FALSE) ->  | F47: 431021 | G47: Wald-Michelbach | H47: An den | I47: Gemeindevorstand | J47: der Gemeinde Wald-Michelbach | K47: In der Gass 17 | L47: 69483 | M47: Wald-Michelbach
A48: 6635009 | B48: EDERTAL | C48: =VLOOKUP(A48,'antragsberechtigt B'!$C$2:$F$400,3,FALSE) ->  | F48: 431022 | G48: Zwingenberg, St. | H48: An den | I48: Magistrat | J48: der Stadt Zwingenberg | K48: Untergasse 16 | L48: 64673 | M48: Zwingenberg
A49: 6631005 | B49: EHRENBERG (RHOEN) | C49: =VLOOKUP(A49,'antragsberechtigt B'!$C$2:$F$400,3,FALSE) ->  | F49: 432001 | G49: Alsbach-Hähnlein | H49: An den | I49: Gemeindevorstand | J49: der Gemeinde Alsbach-Hähnlein | K49: Bickenbacher Straße 6 | L49: 64665 | M49: Alsbach-Hähnlein
A50: 6533005 | B50: ELBTAL | C50: =VLOOKUP(A50,'antragsberechtigt B'!$C$2:$F$400,3,FALSE) ->  | F50: 432002 | G50: Babenhausen, St. | H50: An den | I50: Magistrat | J50: der Stadt Babenhausen | K50: Marktplatz 2 | L50: 64832 | M50: Babenhausen
A51: 6437006 | B51: ERBACH, KREISSTADT | C51: =VLOOKUP(A51,'antragsberechtigt B'!$C$2:$F$400,3,FALSE) ->  | F51: 432003 | G51: Bickenbach | H51: An den | I51: Gemeindevorstand | J51: der Gemeinde Bickenbach | K51: Darmstädter Straße 7 | L51: 64404 | M51: Bickenbach
A52: 6435007 | B52: ERLENSEE | C52: =VLOOKUP(A52,'antragsberechtigt B'!$C$2:$F$400,3,FALSE) ->  | F52: 432004 | G52: Dieburg, St. | H52: An den | I52: Magistrat | J52: der Stadt Dieburg | K52: Markt 4 | L52: 64807 | M52: Dieburg
A53: 6432006 | B53: ERZHAUSEN | C53: =VLOOKUP(A53,'antragsberechtigt B'!$C$2:$F$400,3,FALSE) ->  | F53: 432005 | G53: Eppertshausen | H53: An den | I53: Gemeindevorstand | J53: der Gemeinde Eppertshausen | K53: Franz-Gruber-Platz 14 | L53: 64859 | M53: Eppertshausen
A54: 6636003 | B54: ESCHWEGE, KREISSTADT | C54: =VLOOKUP(A54,'antragsberechtigt B'!$C$2:$F$400,3,FALSE) ->  | F54: 432006 | G54: Erzhausen | H54: An den | I54: Gemeindevorstand | J54: der Gemeinde Erzhausen | K54: Rodenseestraße 3 | L54: 64390 | M54: Erzhausen
A55: 6633007 | B55: ESPENAU | C55: =VLOOKUP(A55,'antragsberechtigt B'!$C$2:$F$400,3,FALSE) ->  | F55: 432007 | G55: Fischbachtal | H55: An den | I55: Gemeindevorstand | J55: der Gemeinde Fischbachtal | K55: Darmstädter Straße 8 | L55: 64405 | M55: Fischbachtal
A56: 6535003 | B56: FELDATAL | C56: =VLOOKUP(A56,'antragsberechtigt B'!$C$2:$F$400,3,FALSE) ->  | F56: 432008 | G56: Griesheim, St. | H56: An den | I56: Magistrat | J56: der Stadt Griesheim | K56: Wilhelm-Leuschner-Straße 75 | L56: 64347 | M56: Griesheim
A57: 6634003 | B57: FELSBERG, STADT | C57: =VLOOKUP(A57,'antragsberechtigt B'!$C$2:$F$400,3,FALSE) ->  | F57: 432009 | G57: Groß-Bieberau, St. | H57: An den | I57: Magistrat | J57: der Stadt Groß-Bieberau | K57: Marktstraße 28-30 | L57: 64401 | M57: Groß-Bieberau
A58: 6432007 | B58: FISCHBACHTAL | C58: =VLOOKUP(A58,'antragsberechtigt B'!$C$2:$F$400,3,FALSE) ->  | F58: 432010 | G58: Groß-Umstadt, St. | H58: An den | I58: Magistrat | J58: der Stadt Groß-Umstadt | K58: Markt 1 | L58: 64823 | M58: Groß-Umstadt
A59: 6631008 | B59: FLIEDEN | C59: =VLOOKUP(A59,'antragsberechtigt B'!$C$2:$F$400,3,FALSE) ->  | F59: 432011 | G59: Groß-Zimmern | H59: An den | I59: Gemeindevorstand | J59: der Gemeinde Groß-Zimmern | K59: Rathausplatz 1 | L59: 64846 | M59: Groß-Zimmern
A60: 6435008 | B60: FLOERSBACHTAL | C60: =VLOOKUP(A60,'antragsberechtigt B'!$C$2:$F$400,3,FALSE) ->  | F60: 432012 | G60: Messel | H60: An den | I60: Gemeindevorstand | J60: der Gemeinde Messel | K60: Kohlweg 15 | L60: 64409 | M60: Messel
A61: 6436004 | B61: FLOERSHEIM AM MAIN, STADT | C61: =VLOOKUP(A61,'antragsberechtigt B'!$C$2:$F$400,3,FALSE) ->  | F61: 432013 | G61: Modautal | H61: An den | I61: Gemeindevorstand | J61: der Gemeinde Modautal | K61: Odenwaldstraße 34 | L61: 64397 | M61: Modautal
A62: 6440007 | B62: FLORSTADT, STADT | C62: =VLOOKUP(A62,'antragsberechtigt B'!$C$2:$F$400,3,FALSE) ->  | F62: 432014 | G62: Mühltal | H62: An den | I62: Gemeindevorstand | J62: der Gemeinde Mühltal | K62: Ober-Ramstädter Straße 2-4 | L62: 64367 | M62: Mühltal
A63: 6635010 | B63: FRANKENAU, STADT | C63: =VLOOKUP(A63,'antragsberechtigt B'!$C$2:$F$400,3,FALSE) ->  | F63: 432015 | G63: Münster | H63: An den | I63: Gemeindevorstand | J63: der Gemeinde Münster | K63: Mozartstraße 8 | L63: 64839 | M63: Münster
A64: 6635011 | B64: FRANKENBERG (EDER), STADT | C64: =VLOOKUP(A64,'antragsberechtigt B'!$C$2:$F$400,3,FALSE) ->  | F64: 432016 | G64: Ober-Ramstadt, St. | H64: An den | I64: Magistrat | J64: der Stadt Ober-Ramstadt | K64: Darmstädter Straße 29 | L64: 64372 | M64: Ober-Ramstadt
A65: 6535004 | B65: FREIENSTEINAU | C65: =VLOOKUP(A65,'antragsberechtigt B'!$C$2:$F$400,3,FALSE) ->  | F65: 432017 | G65: Otzberg | H65: An den | I65: Gemeindevorstand | J65: der Gemeinde Otzberg | K65: Otzbergstraße 13 | L65: 64853 | M65: Otzberg
A66: 6435009 | B66: FREIGERICHT | C66: =VLOOKUP(A66,'antragsberechtigt B'!$C$2:$F$400,3,FALSE) ->  | F66: 432018 | G66: Pfungstadt, St. | H66: An den | I66: Magistrat | J66: der Stadt Pfungstadt | K66: Kirchstraße 12-14 | L66: 64319 | M66: Pfungstadt
A67: 6440008 | B67: FRIEDBERG (HESSEN), KREISSTADT | C67: =VLOOKUP(A67,'antragsberechtigt B'!$C$2:$F$400,3,FALSE) ->  | F67: 432019 | G67: Reinheim, St. | H67: An den | I67: Magistrat | J67: der Stadt Reinheim | K67: Cestas-Platz 1 | L67: 64354 | M67: Reinheim
A68: 6634004 | B68: FRIELENDORF | C68: =VLOOKUP(A68,'antragsberechtigt B'!$C$2:$F$400,3,FALSE) ->  | F68: 432020 | G68: Roßdorf | H68: An den | I68: Gemeindevorstand | J68: der Gemeinde Roßdorf | K68: Erbacher Straße 1 | L68: 64380 | M68: Roßdorf
A69: 6634005 | B69: FRITZLAR, DOM- UND KAISERSTADT | C69: =VLOOKUP(A69,'antragsberechtigt B'!$C$2:$F$400,3,FALSE) ->  | F69: 432021 | G69: Schaafheim | H69: An den | I69: Gemeindevorstand | J69: der Gemeinde Schaafheim | K69: Wilhelm-Leuschner-Straße 3 | L69: 64850 | M69: Schaafheim
A70: 6431007 | B70: FUERTH | C70: =VLOOKUP(A70,'antragsberechtigt B'!$C$2:$F$400,3,FALSE) ->  | F70: 432022 | G70: Seeheim-Jugenheim | H70: An den | I70: Gemeindevorstand | J70: der Gemeinde Seeheim-Jugenheim | K70: Schulstraße 12 | L70: 64342 | M70: Seeheim-Jugenheim
A71: 6631009 | B71: FULDA, STADT | C71: =VLOOKUP(A71,'antragsberechtigt B'!$C$2:$F$400,3,FALSE) ->  | F71: 432023 | G71: Weiterstadt, St. | H71: An den | I71: Magistrat | J71: der Stadt Weiterstadt | K71: Riedbahnstr. 6 | L71: 64331 | M71: Weiterstadt
A72: 6633009 | B72: FULDATAL | C72: =VLOOKUP(A72,'antragsberechtigt B'!$C$2:$F$400,3,FALSE) ->  | F72: 433001 | G72: Biebesheim am Rhein | H72: An den | I72: Gemeindevorstand | J72: der Gemeinde Biebesheim/Rhein | K72: Rathausplatz 1 | L72: 64584 | M72: Biebesheim am Rhein
A73: 6439004 | B73: GEISENHEIM, STADT | C73: =VLOOKUP(A73,'antragsberechtigt B'!$C$2:$F$400,3,FALSE) ->  | F73: 433002 | G73: Bischofsheim | H73: An den | I73: Gemeindevorstand | J73: der Gemeinde Bischofsheim | K73: Schulstraße 13-15 | L73: 65474 | M73: Bischofsheim
A74: 6535005 | B74: GEMUENDEN (FELDA) | C74: =VLOOKUP(A74,'antragsberechtigt B'!$C$2:$F$400,3,FALSE) ->  | F74: 433003 | G74: Büttelborn | H74: An den | I74: Gemeindevorstand | J74: der Gemeinde Büttelborn | K74: Mainzer Straße 13 | L74: 64572 | M74: Büttelborn
A75: 6635012 | B75: GEMUENDEN (WOHRA), STADT | C75: =VLOOKUP(A75,'antragsberechtigt B'!$C$2:$F$400,3,FALSE) ->  | F75: 433004 | G75: Gernsheim, Schöfferstadt | H75: An den | I75: Magistrat | J75: der Schöfferstadt Gernsheim | K75: Stadthausplatz 1 | L75: 64579 | M75: Gernsheim
A76: 6631010 | B76: GERSFELD (RHOEN), STADT | C76: =VLOOKUP(A76,'antragsberechtigt B'!$C$2:$F$400,3,FALSE) ->  | F76: 433005 | G76: Ginsheim-Gustavsburg, St. | H76: An den | I76: Magistrat | J76: der Stadt Ginsh.-Gustavsburg | K76: Dr. -Herrmann-Straße 32 | L76: 65462 | M76: Ginsheim-Gustavsburg
A77: 6531005 | B77: GIESSEN, UNIVERSITAETSSTADT | C77: =VLOOKUP(A77,'antragsberechtigt B'!$C$2:$F$400,3,FALSE) ->  | F77: 433006 | G77: Groß-Gerau, St. | H77: An den | I77: Magistrat | J77: der Stadt Groß-Gerau | K77: Am Marktplatz 1 | L77: 64521 | M77: Groß-Gerau
A78: 6634006 | B78: GILSERBERG | C78: =VLOOKUP(A78,'antragsberechtigt B'!$C$2:$F$400,3,FALSE) ->  | F78: 433007 | G78: Kelsterbach, St. | H78: An den | I78: Magistrat | J78: der Stadt Kelsterbach | K78: Mörfelder Straße 33 | L78: 65451 | M78: Kelsterbach
A79: 6534010 | B79: GLADENBACH, STADT | C79: =VLOOKUP(A79,'antragsberechtigt B'!$C$2:$F$400,3,FALSE) ->  | F79: 433008 | G79: Mörfelden-Walldorf, St. | H79: An den | I79: Magistrat | J79: der Stadt Mörfelden-Walldorf | K79: Flughafenstraße 37 | L79: 64546 | M79: Mörfelden-Walldorf
A80: 6440010 | B80: GLAUBURG | C80: =VLOOKUP(A80,'antragsberechtigt B'!$C$2:$F$400,3,FALSE) ->  | F80: 433009 | G80: Nauheim | H80: An den | I80: Gemeindevorstand | J80: der Gemeinde Nauheim | K80: Weingartenstraße 46-50 | L80: 64569 | M80: Nauheim
A81: 6431008 | B81: GORXHEIMERTAL | C81: =VLOOKUP(A81,'antragsberechtigt B'!$C$2:$F$400,3,FALSE) ->  | F81: 433010 | G81: Raunheim, St. | H81: An den | I81: Magistrat | J81: der Stadt Raunheim | K81: Am Stadtzentrum 1 | L81: 65479 | M81: Raunheim
A82: 6431009 | B82: GRASELLENBACH | C82: =VLOOKUP(A82,'antragsberechtigt B'!$C$2:$F$400,3,FALSE) ->  | F82: 433011 | G82: Riedstadt, St. | H82: An den | I82: Magistrat | J82: der Stadt Riedstadt | K82: Rathausplatz 1 | L82: 64560 | M82: Riedstadt
A83: 6535006 | B83: GREBENAU, STADT | C83: =VLOOKUP(A83,'antragsberechtigt B'!$C$2:$F$400,3,FALSE) ->  | F83: 433012 | G83: Rüsselsheim, St. | H83: An den | I83: Magistrat | J83: der Stadt Rüsselsheim | K83: Marktplatz 4 | L83: 65428 | M83: Rüsselsheim
A84: 6535007 | B84: GREBENHAIN | C84: =VLOOKUP(A84,'antragsberechtigt B'!$C$2:$F$400,3,FALSE) ->  | F84: 433013 | G84: Stockstadt am Rhein | H84: An den | I84: Gemeindevorstand | J84: der Gemeinde Stockstadt | K84: Rheinstraße 34-36 | L84: 64589 | M84: Stockstadt am Rhein
A85: 6633010 | B85: GREBENSTEIN, STADT | C85: =VLOOKUP(A85,'antragsberechtigt B'!$C$2:$F$400,3,FALSE) ->  | F85: 433014 | G85: Trebur | H85: An den | I85: Gemeindevorstand | J85: der Gemeinde Trebur | K85: Herrngasse 3 | L85: 65468 | M85: Trebur
A86: 6432008 | B86: GRIESHEIM, STADT | C86: =VLOOKUP(A86,'antragsberechtigt B'!$C$2:$F$400,3,FALSE) ->  | F86: 434001 | G86: Bad Homburg v. d. Höhe, St. | H86: An den | I86: Magistrat | J86: der Stadt Bad Homburg v.d.Höhe | K86: Rathausplatz 1 | L86: 61348 | M86: Bad Homburg v.d. Höhe
A87: 6636004 | B87: GROSSALMERODE, STADT | C87: =VLOOKUP(A87,'antragsberechtigt B'!$C$2:$F$400,3,FALSE) ->  | F87: 434002 | G87: Friedrichsdorf, St. | H87: An den | I87: Magistrat | J87: der Stadt Friedrichsdorf | K87: Hugenottenstraße 55 | L87: 61381 | M87: Friedrichsdorf
A88: 6631011 | B88: GROSSENLUEDER | C88: =VLOOKUP(A88,'antragsberechtigt B'!$C$2:$F$400,3,FALSE) ->  | F88: 434003 | G88: Glashütten | H88: An den | I88: Gemeindevorstand | J88: der Gemeinde Glashütten | K88: Schlossborner Weg 2 | L88: 61479 | M88: Glashütten
A89: 6435011 | B89: GROSSKROTZENBURG | C89: =VLOOKUP(A89,'antragsberechtigt B'!$C$2:$F$400,3,FALSE) ->  | F89: 434004 | G89: Grävenwiesbach | H89: An den | I89: Gemeindevorstand | J89: der Gemeinde Grävenwiesbach | K89: Bahnhofsweg 2a | L89: 61279 | M89: Grävenwiesbach
A90: 6432010 | B90: GROSS-UMSTADT, STADT | C90: =VLOOKUP(A90,'antragsberechtigt B'!$C$2:$F$400,3,FALSE) ->  | F90: 434005 | G90: Königstein im Taunus, St. | H90: An den | I90: Magistrat | J90: der Stadt Königstein | K90: Burgweg 5 | L90: 61462 | M90: Königstein im Taunus
A91: 6432011 | B91: GROSS-ZIMMERN | C91: =VLOOKUP(A91,'antragsberechtigt B'!$C$2:$F$400,3,FALSE) ->  | F91: 434006 | G91: Kronberg im Taunus, St. | H91: An den | I91: Magistrat | J91: der Stadt Kronberg | K91: Katharinenstraße 7 | L91: 61476 | M91: Kronberg im Taunus
A92: 6531006 | B92: GRUENBERG, STADT | C92: =VLOOKUP(A92,'antragsberechtigt B'!$C$2:$F$400,3,FALSE) ->  | F92: 434007 | G92: Neu-Anspach, St. | H92: An den | I92: Magistrat | J92: der Stadt Neu-Anspach | K92: Bahnhofstraße 26-28 | L92: 61267 | M92: Neu-Anspach
A93: 6634007 | B93: GUDENSBERG, STADT | C93: =VLOOKUP(A93,'antragsberechtigt B'!$C$2:$F$400,3,FALSE) ->  | F93: 434008 | G93: Oberursel (Taunus), St. | H93: An den | I93: Magistrat | J93: der Stadt Oberursel | K93: Rathausplatz 1 | L93: 61440 | M93: Oberursel (Taunus)
A94: 6633011 | B94: HABICHTSWALD | C94: =VLOOKUP(A94,'antragsberechtigt B'!$C$2:$F$400,3,FALSE) ->  | F94: 434009 | G94: Schmitten | H94: An den | I94: Gemeindevorstand | J94: der Gemeinde Schmitten | K94: Parkstraße 2 | L94: 61389 | M94: Schmitten
A95: 6533007 | B95: HADAMAR, STADT | C95: =VLOOKUP(A95,'antragsberechtigt B'!$C$2:$F$400,3,FALSE) ->  | F95: 434010 | G95: Steinbach (Taunus), St. | H95: An den | I95: Magistrat | J95: der Stadt Steinbach | K95: Gartenstraße 20 | L95: 61449 | M95: Steinbach (Taunus)
A96: 6635013 | B96: HAINA (KLOSTER) | C96: =VLOOKUP(A96,'antragsberechtigt B'!$C$2:$F$400,3,FALSE) ->  | F96: 434011 | G96: Usingen, St. | H96: An den | I96: Magistrat | J96: der Stadt Usingen | K96: Wilhelmj-Str. 1 | L96: 61250 | M96: Usingen
A97: 6438004 | B97: HAINBURG | C97: =VLOOKUP(A97,'antragsberechtigt B'!$C$2:$F$400,3,FALSE) ->  | F97: 434012 | G97: Wehrheim | H97: An den | I97: Gemeindevorstand | J97: der Gemeinde Wehrheim | K97: Dorfborngasse 1 | L97: 61273 | M97: Wehrheim
A98: 6435014 | B98: HANAU, BRUEDER-GRIMM-STADT | C98: =VLOOKUP(A98,'antragsberechtigt B'!$C$2:$F$400,3,FALSE) ->  | F98: 434013 | G98: Weilrod | H98: An den | I98: Gemeindevorstand | J98: der Gemeinde Weilrod | K98: Am Senner 1 | L98: 61276 | M98: Weilrod
A99: 6436005 | B99: HATTERSHEIM AM MAIN, STADT | C99: =VLOOKUP(A99,'antragsberechtigt B'!$C$2:$F$400,3,FALSE) ->  | F99: 435001 | G99: Bad Orb, St. | H99: An den | I99: Magistrat | J99: der Stadt Bad Orb | K99: Frankfurter Str. 2 | L99: 63619 | M99: Bad Orb
A100: 6632007 | B100: HAUNECK | C100: =VLOOKUP(A100,'antragsberechtigt B'!$C$2:$F$400,3,FALSE) ->  | F100: 435002 | G100: Bad Soden-Salmünster, St. | H100: An den | I100: Magistrat | J100: der Stadt Bad Soden-Salmünster | K100: Rathausstraße 1 | L100: 63628 | M100: Bad Soden-Salmünster
A101: 6632008 | B101: HAUNETAL | C101: =VLOOKUP(A101,'antragsberechtigt B'!$C$2:$F$400,3,FALSE) ->  | F101: 435003 | G101: Biebergemünd | H101: An den | I101: Gemeindevorstand | J101: der Gemeinde Biebergemünd | K101: Rathaus am Gemeindezentrum | L101: 63599 | M101: Biebergemünd
A102: 6439005 | B102: HEIDENROD | C102: =VLOOKUP(A102,'antragsberechtigt B'!$C$2:$F$400,3,FALSE) ->  | F102: 435004 | G102: Birstein | H102: An den | I102: Gemeindevorstand | J102: der Gemeinde Birstein | K102: Carl-Lomb-Straße 1 | L102: 63633 | M102: Birstein
A103: 6633012 | B103: HELSA | C103: =VLOOKUP(A103,'antragsberechtigt B'!$C$2:$F$400,3,FALSE) ->  | F103: 435005 | G103: Brachttal | H103: An den | I103: Gemeindevorstand | J103: der Gemeinde Brachttal | K103: Wächtersbacher Straße 48 | L103: 63636 | M103: Brachttal
A104: 6636005 | B104: HERLESHAUSEN | C104: =VLOOKUP(A104,'antragsberechtigt B'!$C$2:$F$400,3,FALSE) ->  | F104: 435006 | G104: Bruchköbel, St. | H104: An den | I104: Magistrat | J104: der Stadt Bruchköbel | K104: Hauptstraße 32 | L104: 63486 | M104: Bruchköbel
A105: 6437008 | B105: HESSENECK | C105: =VLOOKUP(A105,'antragsberechtigt B'!$C$2:$F$400,3,FALSE) ->  | F105: 435007 | G105: Erlensee, St. | H105: An den | I105: Magistrat | J105: der Stadt Erlensee | K105: Am Rathaus 3 | L105: 63526 | M105: Erlensee
A106: 6636006 | B106: HESSISCH LICHTENAU, STADT | C106: =VLOOKUP(A106,'antragsberechtigt B'!$C$2:$F$400,3,FALSE) ->  | F106: 435008 | G106: Flörsbachtal | H106: An den | I106: Gemeindevorstand | J106: der Gemeinde Flörsbachtal | K106: Hauptstraße 14 | L106: 63639 | M106: Flörsbachtal
A107: 6631012 | B107: HILDERS | C107: =VLOOKUP(A107,'antragsberechtigt B'!$C$2:$F$400,3,FALSE) ->  | F107: 435009 | G107: Freigericht | H107: An den | I107: Gemeindevorstand | J107: der Gemeinde Freigericht | K107: Rathausstraße 13 | L107: 63579 | M107: Freigericht
A108: 6440011 | B108: HIRZENHAIN | C108: =VLOOKUP(A108,'antragsberechtigt B'!$C$2:$F$400,3,FALSE) ->  | F108: 435010 | G108: Gelnhausen, Barbarossastadt, Krst. | H108: An den | I108: Magistrat | J108: der Kreis- und Barbarossastadt Gelnhausen | K108: Obermarkt 7 | L108: 63571 | M108: Gelnhausen
A109: 6437009 | B109: HOECHST IM ODENWALD | C109: =VLOOKUP(A109,'antragsberechtigt B'!$C$2:$F$400,3,FALSE) ->  | F109: 435011 | G109: Großkrotzenburg | H109: An den | I109: Gemeindevorstand | J109: der Gemeinde Großkrotzenburg | K109: Bahnhofstraße 4 | L109: 63538 | M109: Großkrotzenburg
A110: 6631013 | B110: HOFBIEBER | C110: =VLOOKUP(A110,'antragsberechtigt B'!$C$2:$F$400,3,FALSE) ->  | F110: 435012 | G110: Gründau | H110: An den | I110: Gemeindevorstand | J110: der Gemeinde Gründau | K110: Am Bürgerzentrum 1 | L110: 63584 | M110: Gründau
A111: 6633013 | B111: HOFGEISMAR, STADT | C111: =VLOOKUP(A111,'antragsberechtigt B'!$C$2:$F$400,3,FALSE) ->  | F111: 435013 | G111: Hammersbach | H111: An den | I111: Gemeindevorstand | J111: der Gemeinde Hammersbach | K111: Köbler Weg 44 | L111: 63546 | M111: Hammersbach
A112: 6532013 | B112: HOHENAHR | C112: =VLOOKUP(A112,'antragsberechtigt B'!$C$2:$F$400,3,FALSE) ->  | F112: 435014 | G112: Hanau, St. | H112: An den | I112: Magistrat | J112: der Brüder-Grimm-Stadt Hanau | K112: Am Markt 14-18 | L112: 63450 | M112: Hanau
A113: 6632010 | B113: HOHENRODA | C113: =VLOOKUP(A113,'antragsberechtigt B'!$C$2:$F$400,3,FALSE) ->  | F113: 435015 | G113: Hasselroth | H113: An den | I113: Gemeindevorstand | J113: der Gemeinde Hasselroth | K113: Bodo-Käppel-Platz 1 | L113: 63594 | M113: Hasselroth
A114: 6634009 | B114: HOMBERG (EFZE), KREISSTADT | C114: =VLOOKUP(A114,'antragsberechtigt B'!$C$2:$F$400,3,FALSE) ->  | F114: 435016 | G114: Jossgrund | H114: An den | I114: Gemeindevorstand | J114: der Gemeinde Jossgrund | K114: Martinusstraße 2 | L114: 63637 | M114: Jossgrund
A115: 6631014 | B115: HOSENFELD | C115: =VLOOKUP(A115,'antragsberechtigt B'!$C$2:$F$400,3,FALSE) ->  | F115: 435017 | G115: Langenselbold, St. | H115: An den | I115: Magistrat | J115: der Stadt Langenselbold | K115: Schlosspark 2 | L115: 63505 | M115: Langenselbold
A116: 6631015 | B116: HUENFELD, KONRAD-ZUSE-STADT | C116: =VLOOKUP(A116,'antragsberechtigt B'!$C$2:$F$400,3,FALSE) ->  | F116: 435018 | G116: Linsengericht | H116: An den | I116: Gemeindevorstand | J116: der Gemeinde Linsengericht | K116: Amtshofstraße 1 | L116: 63589 | M116: Linsengericht
A117: 6533008 | B117: HUENFELDEN | C117: =VLOOKUP(A117,'antragsberechtigt B'!$C$2:$F$400,3,FALSE) ->  | F117: 435019 | G117: Maintal, St. | H117: An den | I117: Magistrat | J117: der Stadt Maintal | K117: Klosterhofstraße 4-6 | L117: 63477 | M117: Maintal
A118: 6439007 | B118: HUENSTETTEN | C118: =VLOOKUP(A118,'antragsberechtigt B'!$C$2:$F$400,3,FALSE) ->  | F118: 435020 | G118: Neuberg | H118: An den | I118: Gemeindevorstand | J118: der Gemeinde Neuberg | K118: In den Gräben 15 | L118: 63543 | M118: Neuberg
A119: 6531008 | B119: HUNGEN, STADT | C119: =VLOOKUP(A119,'antragsberechtigt B'!$C$2:$F$400,3,FALSE) ->  | F119: 435021 | G119: Nidderau, St. | H119: An den | I119: Magistrat | J119: der Stadt Nidderau | K119: Am Steinweg 1 | L119: 61130 | M119: Nidderau
A120: 6633014 | B120: IMMENHAUSEN, STADT | C120: =VLOOKUP(A120,'antragsberechtigt B'!$C$2:$F$400,3,FALSE) ->  | F120: 435022 | G120: Niederdorfelden | H120: An den | I120: Gemeindevorstand | J120: der Gemeinde Niederdorfelden | K120: Burgstraße 5 | L120: 61138 | M120: Niederdorfelden
A121: 6634010 | B121: JESBERG | C121: =VLOOKUP(A121,'antragsberechtigt B'!$C$2:$F$400,3,FALSE) ->  | F121: 435023 | G121: Rodenbach | H121: An den | I121: Gemeindevorstand | J121: der Gemeinde Rodenbach | K121: Buchbergstraße 2 | L121: 63517 | M121: Rodenbach
A122: 6435016 | B122: JOSSGRUND | C122: =VLOOKUP(A122,'antragsberechtigt B'!$C$2:$F$400,3,FALSE) ->  | F122: 435024 | G122: Ronneburg | H122: An den | I122: Gemeindevorstand | J122: der Gemeinde Ronneburg | K122: Schulstraße 9 | L122: 63549 | M122: Ronneburg
A123: 6631016 | B123: KALBACH | C123: =VLOOKUP(A123,'antragsberechtigt B'!$C$2:$F$400,3,FALSE) ->  | F123: 435025 | G123: Schlüchtern, St. | H123: An den | I123: Magistrat | J123: der Stadt Schlüchtern | K123: Krämerstraße 2 | L123: 36381 | M123: Schlüchtern
A124: 6611000 | B124: KASSEL, DOCUMENTA-STADT | C124: =VLOOKUP(A124,'antragsberechtigt B'!$C$2:$F$400,3,FALSE) ->  | F124: 435026 | G124: Schöneck | H124: An den | I124: Gemeindevorstand | J124: der Gemeinde Schöneck | K124: Herrnhofstraße 8 | L124: 61137 | M124: Schöneck
A125: 6436008 | B125: KELKHEIM (TAUNUS), STADT | C125: =VLOOKUP(A125,'antragsberechtigt B'!$C$2:$F$400,3,FALSE) ->  | F125: 435027 | G125: Sinntal | H125: An den | I125: Gemeindevorstand | J125: der Gemeinde Sinntal | K125: Am Rathaus 11 | L125: 36391 | M125: Sinntal-Sterbfritz
A126: 6534011 | B126: KIRCHHAIN, STADT | C126: =VLOOKUP(A126,'antragsberechtigt B'!$C$2:$F$400,3,FALSE) ->  | F126: 435028 | G126: Steinau a. d. Straße, St. | H126: An den | I126: Magistrat | J126: der Brüder-Grimm-Stadt Steinau | K126: Brüder-Grimm-Straße 47 | L126: 36396 | M126: Steinau an der Straße
A127: 6535010 | B127: KIRTORF, STADT | C127: =VLOOKUP(A127,'antragsberechtigt B'!$C$2:$F$400,3,FALSE) ->  | F127: 435029 | G127: Wächtersbach, St. | H127: An den | I127: Magistrat | J127: der Stadt Wächtersbach | K127: Main-Kinzig-Straße 31 | L127: 63607 | M127: Wächtersbach
A128: 6634011 | B128: KNUELLWALD | C128: =VLOOKUP(A128,'antragsberechtigt B'!$C$2:$F$400,3,FALSE) ->  | F128: 436001 | G128: Bad Soden am Taunus, St. | H128: An den | I128: Magistrat | J128: der Stadt Bad Soden | K128: Königsteiner Straße 73 | L128: 65812 | M128: Bad Soden am Taunus
A129: 6635015 | B129: KORBACH, KREISSTADT | C129: =VLOOKUP(A129,'antragsberechtigt B'!$C$2:$F$400,3,FALSE) ->  | F129: 436002 | G129: Eppstein, St. | H129: An den | I129: Magistrat | J129: der Stadt Eppstein | K129: Hauptstraße 99 | L129: 65817 | M129: Eppstein
A130: 6631017 | B130: KUENZELL | C130: =VLOOKUP(A130,'antragsberechtigt B'!$C$2:$F$400,3,FALSE) ->  | F130: 436003 | G130: Eschborn, St. | H130: An den | I130: Magistrat | J130: der Stadt Eschborn | K130: Rathausplatz 36 | L130: 65760 | M130: Eschborn
A131: 6534012 | B131: LAHNTAL | C131: =VLOOKUP(A131,'antragsberechtigt B'!$C$2:$F$400,3,FALSE) ->  | F131: 436004 | G131: Flörsheim am Main, St. | H131: An den | I131: Magistrat | J131: der Stadt Flörsheim | K131: Bahnhofstraße 12 | L131: 65439 | M131: Flörsheim am Main
A132: 6431013 | B132: LAMPERTHEIM, STADT | C132: =VLOOKUP(A132,'antragsberechtigt B'!$C$2:$F$400,3,FALSE) ->  | F132: 436005 | G132: Hattersheim am Main, St. | H132: An den | I132: Magistrat | J132: der Stadt Hattersheim | K132: Rathausstraße 10 | L132: 65795 | M132: Hattersheim am Main
A133: 6631000 | B133: LANDKREIS FULDA | C133: =VLOOKUP(A133,'antragsberechtigt B'!$C$2:$F$400,3,FALSE) ->  | F133: 436006 | G133: Hochheim am Main, St. | H133: An den | I133: Magistrat | J133: der Stadt Hochheim | K133: Burgeffstraße 30 | L133: 65239 | M133: Hochheim am Main
A134: 6531000 | B134: LANDKREIS GIESSEN | C134: =VLOOKUP(A134,'antragsberechtigt B'!$C$2:$F$400,3,FALSE) ->  | F134: 436007 | G134: Hofheim am Taunus, Kreisstadt | H134: An den | I134: Magistrat | J134: der Kreisstadt Hofheim am Taunus | K134: Chinonplatz 2 | L134: 65719 | M134: Hofheim am Taunus
A135: 6533000 | B135: LANDKREIS LIMBURG-WEILBURG | C135: =VLOOKUP(A135,'antragsberechtigt B'!$C$2:$F$400,3,FALSE) ->  | F135: 436008 | G135: Kelkheim (Taunus), St. | H135: An den | I135: Magistrat | J135: der Stadt Kelkheim | K135: Gagernring 6 | L135: 65779 | M135: Kelkheim (Taunus)
A136: 6635000 | B136: LANDKREIS WALDECK-FRANKENBERG | C136: =VLOOKUP(A136,'antragsberechtigt B'!$C$2:$F$400,3,FALSE) ->  | F136: 436009 | G136: Kriftel | H136: An den | I136: Gemeindevorstand | J136: der Gemeinde Kriftel | K136: Frankfurter Straße 33-37 | L136: 65830 | M136: Kriftel
A137: 6438006 | B137: LANGEN (HESSEN), STADT | C137: =VLOOKUP(A137,'antragsberechtigt B'!$C$2:$F$400,3,FALSE) ->  | F137: 436010 | G137: Liederbach am Taunus | H137: An den | I137: Gemeindevorstand | J137: der Gemeinde Liederbach | K137: Villebon-Platz 9-11 | L137: 65835 | M137: Liederbach am Taunus
A138: 6531010 | B138: LAUBACH, STADT | C138: =VLOOKUP(A138,'antragsberechtigt B'!$C$2:$F$400,3,FALSE) ->  | F138: 436011 | G138: Schwalbach am Taunus, St. | H138: An den | I138: Magistrat | J138: der Stadt Schwalbach | K138: Marktplatz 1-2 | L138: 65824 | M138: Schwalbach am Taunus
A139: 6535011 | B139: LAUTERBACH (HESSEN), KREISSTADT | C139: =VLOOKUP(A139,'antragsberechtigt B'!$C$2:$F$400,3,FALSE) ->  | F139: 436012 | G139: Sulzbach (Taunus) | H139: An den | I139: Gemeindevorstand | J139: der Gemeinde Sulzbach | K139: Hauptstraße 11 | L139: 65843 | M139: Sulzbach (Taunus)
A140: 6535012 | B140: LAUTERTAL (VOGELSBERG) | C140: =VLOOKUP(A140,'antragsberechtigt B'!$C$2:$F$400,3,FALSE) ->  | F140: 437001 | G140: Bad König, St. | H140: An den | I140: Magistrat | J140: der Stadt Bad König | K140: Schlossplatz 3 | L140: 64732 | M140: Bad König
A141: 6532016 | B141: LEUN, STADT | C141: =VLOOKUP(A141,'antragsberechtigt B'!$C$2:$F$400,3,FALSE) ->  | F141: 437002 | G141: Beerfelden, St. | H141: An den | I141: Magistrat | J141: der Stadt Beerfelden | K141: Metzkeil 1 | L141: 64743 | M141: Beerfelden
A142: 6531011 | B142: LICH, STADT | C142: =VLOOKUP(A142,'antragsberechtigt B'!$C$2:$F$400,3,FALSE) ->  | F142: 437003 | G142: Brensbach | H142: An den | I142: Gemeindevorstand | J142: der Gemeinde Brensbach | K142: Ezyer Straße 5 | L142: 64395 | M142: Brensbach
A143: 6635016 | B143: LICHTENFELS, STADT | C143: =VLOOKUP(A143,'antragsberechtigt B'!$C$2:$F$400,3,FALSE) ->  | F143: 437004 | G143: Breuberg, St. | H143: An den | I143: Magistrat | J143: der Stadt Breuberg | K143: Ernst-Ludwig-Straße 2-4 | L143: 64747 | M143: Breuberg
A144: 6633016 | B144: LIEBENAU, STADT | C144: =VLOOKUP(A144,'antragsberechtigt B'!$C$2:$F$400,3,FALSE) ->  | F144: 437005 | G144: Brombachtal | H144: An den | I144: Gemeindevorstand | J144: der Gemeinde Brombachtal | K144: Hauptstraße 59 | L144: 64753 | M144: Brombachtal
A145: 6431015 | B145: LINDENFELS, STADT | C145: =VLOOKUP(A145,'antragsberechtigt B'!$C$2:$F$400,3,FALSE) ->  | F145: 437006 | G145: Erbach, Kreisstadt | H145: An den | I145: Magistrat | J145: der Kreisstadt Erbach | K145: Neckarstraße 3 | L145: 64711 | M145: Erbach
A146: 6533010 | B146: LOEHNBERG | C146: =VLOOKUP(A146,'antragsberechtigt B'!$C$2:$F$400,3,FALSE) ->  | F146: 437007 | G146: Fränkisch-Crumbach | H146: An den | I146: Gemeindevorstand | J146: der Gemeinde Fränkisch-Crumbach | K146: Rodensteiner Straße 8 | L146: 64407 | M146: Fränkisch-Crumbach
A147: 6531013 | B147: LOLLAR, STADT | C147: =VLOOKUP(A147,'antragsberechtigt B'!$C$2:$F$400,3,FALSE) ->  | F147: 437008 | G147: Hesseneck | H147: An den | I147: Gemeindevorstand | J147: der Gemeinde Hesseneck | K147: Untere Siegfriedstraße 6 | L147: 64754 | M147: Hesseneck
A148: 6439010 | B148: LORCH, STADT | C148: =VLOOKUP(A148,'antragsberechtigt B'!$C$2:$F$400,3,FALSE) ->  | F148: 437009 | G148: Höchst i. Odw. | H148: An den | I148: Gemeindevorstand | J148: der Gemeinde Höchst | K148: Montmelianer Platz 4 | L148: 64739 | M148: Höchst i.Odw.
A149: 6431016 | B149: LORSCH, KAROLINGERSTADT | C149: =VLOOKUP(A149,'antragsberechtigt B'!$C$2:$F$400,3,FALSE) ->  | F149: 437010 | G149: Lützelbach | H149: An den | I149: Gemeindevorstand | J149: der Gemeinde Lützelbach | K149: Mainstraße 1 | L149: 64750 | M149: Lützelbach
A150: 6632012 | B150: LUDWIGSAU | C150: =VLOOKUP(A150,'antragsberechtigt B'!$C$2:$F$400,3,FALSE) ->  | F150: 437011 | G150: Michelstadt, St. | H150: An den | I150: Magistrat | J150: der Stadt Michelstadt | K150: Frankfurter Straße 3 | L150: 64720 | M150: Michelstadt
A151: 6437010 | B151: LUETZELBACH | C151: =VLOOKUP(A151,'antragsberechtigt B'!$C$2:$F$400,3,FALSE) ->  | F151: 437012 | G151: Mossautal | H151: An den | I151: Gemeindevorstand | J151: der Gemeinde Mossautal | K151: Ortsstraße 124 | L151: 64756 | M151: Mossautal
A152: 6438007 | B152: MAINHAUSEN | C152: =VLOOKUP(A152,'antragsberechtigt B'!$C$2:$F$400,3,FALSE) ->  | F152: 437013 | G152: Reichelsheim (Odenwald) | H152: An den | I152: Gemeindevorstand | J152: der Gemeinde Reichelsheim | K152: Bismarckstraße 43 | L152: 64385 | M152: Reichelsheim (Odenwald)
A153: 6435019 | B153: MAINTAL, STADT | C153: =VLOOKUP(A153,'antragsberechtigt B'!$C$2:$F$400,3,FALSE) ->  | F153: 437014 | G153: Rothenberg | H153: An den | I153: Gemeindevorstand | J153: der Gemeinde Rothenberg | K153: Hauptstraße 23 | L153: 64757 | M153: Rothenberg
A154: 6636007 | B154: MEINHARD | C154: =VLOOKUP(A154,'antragsberechtigt B'!$C$2:$F$400,3,FALSE) ->  | F154: 437015 | G154: Sensbachtal | H154: An den | I154: Gemeindevorstand | J154: der Gemeinde Sensbachtal | K154: Hauptstraße 32 | L154: 64759 | M154: Sensbachtal
A155: 6636008 | B155: MEISSNER | C155: =VLOOKUP(A155,'antragsberechtigt B'!$C$2:$F$400,3,FALSE) ->  | F155: 438001 | G155: Dietzenbach, Kreisstadt | H155: An den | I155: Magistrat | J155: der Kreisstadt Dietzenbach | K155: Europaplatz 1 | L155: 63128 | M155: Dietzenbach
A156: 6533011 | B156: MENGERSKIRCHEN, MARKTFLECKEN | C156: =VLOOKUP(A156,'antragsberechtigt B'!$C$2:$F$400,3,FALSE) ->  | F156: 438002 | G156: Dreieich, St. | H156: An den | I156: Magistrat | J156: der Stadt Dreieich | K156: Hauptstraße 45 | L156: 63303 | M156: Dreieich
A157: 6437011 | B157: MICHELSTADT, STADT | C157: =VLOOKUP(A157,'antragsberechtigt B'!$C$2:$F$400,3,FALSE) ->  | F157: 438003 | G157: Egelsbach | H157: An den | I157: Gemeindevorstand | J157: der Gemeinde Egelsbach | K157: Freiherr-vom-Stein-Straße 13 | L157: 63329 | M157: Egelsbach
A158: 6431017 | B158: MOERLENBACH | C158: =VLOOKUP(A158,'antragsberechtigt B'!$C$2:$F$400,3,FALSE) ->  | F158: 438004 | G158: Hainburg | H158: An den | I158: Gemeindevorstand | J158: der Gemeinde Hainburg | K158: Hauptstraße 44 | L158: 63512 | M158: Hainburg
A159: 6634015 | B159: MORSCHEN | C159: =VLOOKUP(A159,'antragsberechtigt B'!$C$2:$F$400,3,FALSE) ->  | F159: 438005 | G159: Heusenstamm, St. | H159: An den | I159: Magistrat | J159: der Stadt Heusenstamm | K159: Im Herrngarten 1 | L159: 63150 | M159: Heusenstamm
A160: 6535013 | B160: MUECKE | C160: =VLOOKUP(A160,'antragsberechtigt B'!$C$2:$F$400,3,FALSE) ->  | F160: 438006 | G160: Langen (Hessen), St. | H160: An den | I160: Magistrat | J160: der Stadt Langen | K160: Südliche Ringstraße 80 | L160: 63225 | M160: Langen (Hessen)
A161: 6438008 | B161: MUEHLHEIM AM MAIN, STADT | C161: =VLOOKUP(A161,'antragsberechtigt B'!$C$2:$F$400,3,FALSE) ->  | F161: 438007 | G161: Mainhausen | H161: An den | I161: Gemeindevorstand | J161: der Gemeinde Mainhausen | K161: Rheinstraße 3 | L161: 63533 | M161: Mainhausen
A162: 6534015 | B162: MUENCHHAUSEN | C162: =VLOOKUP(A162,'antragsberechtigt B'!$C$2:$F$400,3,FALSE) ->  | F162: 438008 | G162: Mühlheim am Main, St. | H162: An den | I162: Magistrat | J162: der Stadt Mühlheim | K162: Friedensstraße 20 | L162: 63165 | M162: Mühlheim am Main
A163: 6432015 | B163: MUENSTER | C163: =VLOOKUP(A163,'antragsberechtigt B'!$C$2:$F$400,3,FALSE) ->  | F163: 438009 | G163: Neu-Isenburg, St. | H163: An den | I163: Magistrat | J163: der Stadt Neu-Isenburg | K163: Hugenottenallee 53 | L163: 63263 | M163: Neu-Isenburg
A164: 6633018 | B164: NAUMBURG, STADT | C164: =VLOOKUP(A164,'antragsberechtigt B'!$C$2:$F$400,3,FALSE) ->  | F164: 438010 | G164: Obertshausen, St. | H164: An den | I164: Magistrat | J164: der Stadt Obertshausen | K164: Schubertstraße 11 | L164: 63179 | M164: Obertshausen
A165: 6632013 | B165: NENTERSHAUSEN | C165: =VLOOKUP(A165,'antragsberechtigt B'!$C$2:$F$400,3,FALSE) ->  | F165: 438011 | G165: Rodgau, St. | H165: An den | I165: Magistrat | J165: der Stadt Rodgau | K165: Hintergasse 15 | L165: 63110 | M165: Rodgau
A166: 6636009 | B166: NEU-EICHENBERG | C166: =VLOOKUP(A166,'antragsberechtigt B'!$C$2:$F$400,3,FALSE) ->  | F166: 438012 | G166: Rödermark, St. | H166: An den | I166: Magistrat | J166: der Stadt Rödermark | K166: Dieburger Straße 13-17 | L166: 63322 | M166: Rödermark
A167: 6634016 | B167: NEUENTAL | C167: =VLOOKUP(A167,'antragsberechtigt B'!$C$2:$F$400,3,FALSE) ->  | F167: 438013 | G167: Seligenstadt, St. | H167: An den | I167: Magistrat | J167: der Stadt Seligenstadt | K167: Marktplatz 1 | L167: 63500 | M167: Seligenstadt
A168: 6634017 | B168: NEUKIRCHEN (KNUELL), STADT | C168: =VLOOKUP(A168,'antragsberechtigt B'!$C$2:$F$400,3,FALSE) ->  | F168: 439001 | G168: Aarbergen | H168: An den | I168: Gemeindevorstand | J168: der Gemeinde Aarbergen | K168: Rathausstraße 1 | L168: 65326 | M168: Aarbergen
A169: 6534016 | B169: NEUSTADT (HESSEN), STADT | C169: =VLOOKUP(A169,'antragsberechtigt B'!$C$2:$F$400,3,FALSE) ->  | F169: 439002 | G169: Bad Schwalbach, Kreisstadt | H169: An den | I169: Magistrat | J169: der Kreisstadt Bad Schwalbach | K169: Adolfstraße 38 | L169: 65307 | M169: Bad Schwalbach
A170: 6440016 | B170: NIDDA, STADT | C170: =VLOOKUP(A170,'antragsberechtigt B'!$C$2:$F$400,3,FALSE) ->  | F170: 439003 | G170: Eltville am Rhein, St. | H170: An den | I170: Magistrat | J170: der Stadt Eltville | K170: Gutenbergstsraße 13 | L170: 65343 | M170: Eltville am Rhein
A171: 6440017 | B171: NIDDATAL, STADT | C171: =VLOOKUP(A171,'antragsberechtigt B'!$C$2:$F$400,3,FALSE) ->  | F171: 439004 | G171: Geisenheim, St. | H171: An den | I171: Magistrat | J171: der Stadt Geisenheim | K171: Rüdesheimer Straße 48 | L171: 65366 | M171: Geisenheim
A172: 6634018 | B172: NIEDENSTEIN, STADT | C172: =VLOOKUP(A172,'antragsberechtigt B'!$C$2:$F$400,3,FALSE) ->  | F172: 439005 | G172: Heidenrod | H172: An den | I172: Gemeindevorstand | J172: der Gemeinde Heidenrod | K172: Rathausstraße 9 | L172: 65321 | M172: Heidenrod
A173: 6633019 | B173: NIESTE | C173: =VLOOKUP(A173,'antragsberechtigt B'!$C$2:$F$400,3,FALSE) ->  | F173: 439006 | G173: Hohenstein | H173: An den | I173: Gemeindevorstand | J173: der Gemeinde Hohenstein | K173: Schwalbacher Straße 1 | L173: 65329 | M173: Hohenstein
A174: 6631019 | B174: NUESTTAL | C174: =VLOOKUP(A174,'antragsberechtigt B'!$C$2:$F$400,3,FALSE) ->  | F174: 439007 | G174: Hünstetten | H174: An den | I174: Gemeindevorstand | J174: der Gemeinde Hünstetten | K174: Im Lagersboden 5 | L174: 65510 | M174: Hünstetten
A175: 6634019 | B175: OBERAULA | C175: =VLOOKUP(A175,'antragsberechtigt B'!$C$2:$F$400,3,FALSE) ->  | F175: 439008 | G175: Idstein, St. | H175: An den | I175: Magistrat | J175: der Stadt Idstein | K175: König-Adolf-Platz 2 | L175: 65510 | M175: Idstein
A176: 6438010 | B176: OBERTSHAUSEN, STADT | C176: =VLOOKUP(A176,'antragsberechtigt B'!$C$2:$F$400,3,FALSE) ->  | F176: 439009 | G176: Kiedrich | H176: An den | I176: Gemeindevorstand | J176: der Gemeinde Kiedrich | K176: Marktstraße 27 | L176: 65399 | M176: Kiedrich
A177: 6633021 | B177: OBERWESER | C177: =VLOOKUP(A177,'antragsberechtigt B'!$C$2:$F$400,3,FALSE) ->  | F177: 439010 | G177: Lorch, St. | H177: An den | I177: Magistrat | J177: der Stadt Lorch | K177: Markt 5 | L177: 65391 | M177: Lorch
A178: 6437000 | B178: ODENWALDKREIS | C178: =VLOOKUP(A178,'antragsberechtigt B'!$C$2:$F$400,3,FALSE) ->  | F178: 439011 | G178: Niedernhausen | H178: An den | I178: Gemeindevorstand | J178: der Gemeinde Niedernhausen | K178: Wilrijkplatz | L178: 65527 | M178: Niedernhausen
A179: 6439012 | B179: OESTRICH-WINKEL, STADT | C179: =VLOOKUP(A179,'antragsberechtigt B'!$C$2:$F$400,3,FALSE) ->  | F179: 439012 | G179: Oestrich-Winkel, St. | H179: An den | I179: Magistrat | J179: der Stadt Oestrich-Winkel | K179: Paul-Gerhardt-Weg 1 | L179: 65375 | M179: Oestrich-Winkel
A180: 6413000 | B180: OFFENBACH AM MAIN, STADT | C180: =VLOOKUP(A180,'antragsberechtigt B'!$C$2:$F$400,3,FALSE) ->  | F180: 439013 | G180: Rüdesheim am Rhein, St. | H180: An den | I180: Magistrat | J180: der Stadt Rüdesheim | K180: Markt 16 | L180: 65385 | M180: Rüdesheim am Rhein
A181: 6440019 | B181: ORTENBERG, STADT | C181: =VLOOKUP(A181,'antragsberechtigt B'!$C$2:$F$400,3,FALSE) ->  | F181: 439014 | G181: Schlangenbad | H181: An den | I181: Gemeindevorstand | J181: der Gemeinde Schlangenbad | K181: Rheingauer Straße 23 | L181: 65388 | M181: Schlangenbad
A182: 6634020 | B182: OTTRAU | C182: =VLOOKUP(A182,'antragsberechtigt B'!$C$2:$F$400,3,FALSE) ->  | F182: 439015 | G182: Taunusstein, St. | H182: An den | I182: Magistrat | J182: der Stadt Taunusstein | K182: Aarstraße 150 | L182: 65232 | M182: Taunusstein
A183: 6432018 | B183: PFUNGSTADT, STADT | C183: =VLOOKUP(A183,'antragsberechtigt B'!$C$2:$F$400,3,FALSE) ->  | F183: 439016 | G183: Waldems | H183: An den | I183: Gemeindevorstand | J183: der Gemeinde Waldems | K183: Schulgasse 2 | L183: 65529 | M183: Waldems
A184: 6531014 | B184: POHLHEIM, STADT | C184: =VLOOKUP(A184,'antragsberechtigt B'!$C$2:$F$400,3,FALSE) ->  | F184: 439017 | G184: Walluf | H184: An den | I184: Gemeindevorstand | J184: der Gemeinde Walluf | K184: Mühlstraße 40 | L184: 65396 | M184: Walluf
A185: 6631021 | B185: POPPENHAUSEN (WASSERKUPPE) | C185: =VLOOKUP(A185,'antragsberechtigt B'!$C$2:$F$400,3,FALSE) ->  | F185: 440001 | G185: Altenstadt | H185: An den | I185: Gemeindevorstand | J185: der Gemeinde Altenstadt | K185: Frankfurter Straße 11 | L185: 63674 | M185: Altenstadt
A186: 6531015 | B186: RABENAU | C186: =VLOOKUP(A186,'antragsberechtigt B'!$C$2:$F$400,3,FALSE) ->  | F186: 440002 | G186: Bad Nauheim, St. | H186: An den | I186: Magistrat | J186: der Stadt Bad Nauheim | K186: Parkstraße 36-38 | L186: 61231 | M186: Bad Nauheim
A187: 6534017 | B187: RAUSCHENBERG, STADT | C187: =VLOOKUP(A187,'antragsberechtigt B'!$C$2:$F$400,3,FALSE) ->  | F187: 440003 | G187: Bad Vilbel, St. | H187: An den | I187: Magistrat | J187: der Stadt Bad Vilbel | K187: Parkstraße 15 | L187: 61118 | M187: Bad Vilbel
A188: 6437013 | B188: REICHELSHEIM (ODENWALD) | C188: =VLOOKUP(A188,'antragsberechtigt B'!$C$2:$F$400,3,FALSE) ->  | F188: 440004 | G188: Büdingen, St. | H188: An den | I188: Magistrat | J188: der Stadt Büdingen | K188: Eberhard-Bauner-Allee 16 | L188: 63654 | M188: Büdingen
A189: 6633022 | B189: REINHARDSHAGEN | C189: =VLOOKUP(A189,'antragsberechtigt B'!$C$2:$F$400,3,FALSE) ->  | F189: 440005 | G189: Butzbach, St. | H189: An den | I189: Magistrat | J189: der Stadt Butzbach | K189: Schlossplatz 1 | L189: 35510 | M189: Butzbach
A190: 6433011 | B190: RIEDSTADT, STADT | C190: =VLOOKUP(A190,'antragsberechtigt B'!$C$2:$F$400,3,FALSE) ->  | F190: 440006 | G190: Echzell | H190: An den | I190: Gemeindevorstand | J190: der Gemeinde Echzell | K190: Lindenstraße 9 | L190: 61209 | M190: Echzell
A191: 6636010 | B191: RINGGAU | C191: =VLOOKUP(A191,'antragsberechtigt B'!$C$2:$F$400,3,FALSE) ->  | F191: 440007 | G191: Florstadt, St. | H191: An den | I191: Magistrat | J191: der Stadt Florstadt | K191: Freiherr-vom-Stein-Straße 1 | L191: 61197 | M191: Florstadt
A192: 6438011 | B192: RODGAU, STADT | C192: =VLOOKUP(A192,'antragsberechtigt B'!$C$2:$F$400,3,FALSE) ->  | F192: 440008 | G192: Friedberg (Hessen), Kreisstadt | H192: An den | I192: Magistrat | J192: der Kreisstadt Friedberg | K192: Mainzer-Tor-Anlage 6 | L192: 61169 | M192: Friedberg (Hessen)
A193: 6438012 | B193: ROEDERMARK, STADT | C193: =VLOOKUP(A193,'antragsberechtigt B'!$C$2:$F$400,3,FALSE) ->  | F193: 440009 | G193: Gedern, St. | H193: An den | I193: Magistrat | J193: der Stadt Gedern | K193: Schlossberg 7 | L193: 63688 | M193: Gedern
A194: 6535014 | B194: ROMROD, STADT | C194: =VLOOKUP(A194,'antragsberechtigt B'!$C$2:$F$400,3,FALSE) ->  | F194: 440010 | G194: Glauburg | H194: An den | I194: Gemeindevorstand | J194: der Gemeinde Glauburg | K194: Bahnhofstraße 34 | L194: 63695 | M194: Glauburg
A195: 6632017 | B195: RONSHAUSEN | C195: =VLOOKUP(A195,'antragsberechtigt B'!$C$2:$F$400,3,FALSE) ->  | F195: 440011 | G195: Hirzenhain | H195: An den | I195: Gemeindevorstand | J195: der Gemeinde Hirzenhain | K195: Karl-Birx-Straße 6 | L195: 63697 | M195: Hirzenhain
A196: 6635017 | B196: ROSENTHAL, STADT | C196: =VLOOKUP(A196,'antragsberechtigt B'!$C$2:$F$400,3,FALSE) ->  | F196: 440012 | G196: Karben, St. | H196: An den | I196: Magistrat | J196: der Stadt Karben | K196: Rathausplatz 1 | L196: 61184 | M196: Karben
A197: 6632018 | B197: ROTENBURG AN DER FULDA, STADT | C197: =VLOOKUP(A197,'antragsberechtigt B'!$C$2:$F$400,3,FALSE) ->  | F197: 440013 | G197: Kefenrod | H197: An den | I197: Gemeindevorstand | J197: der Gemeinde Kefenrod | K197: Hitzkirchener Straße 19 | L197: 63699 | M197: Kefenrod
A198: 6437014 | B198: ROTHENBERG | C198: =VLOOKUP(A198,'antragsberechtigt B'!$C$2:$F$400,3,FALSE) ->  | F198: 440014 | G198: Limeshain | H198: An den | I198: Gemeindevorstand | J198: der Gemeinde Limeshain | K198: Am Zentrum 2 | L198: 63694 | M198: Limeshain
A199: 6439013 | B199: RUEDESHEIM AM RHEIN, STADT | C199: =VLOOKUP(A199,'antragsberechtigt B'!$C$2:$F$400,3,FALSE) ->  | F199: 440015 | G199: Münzenberg, St. | H199: An den | I199: Magistrat | J199: der Stadt Münzenberg | K199: Hauptstraße 22 | L199: 35516 | M199: Münzenberg
A200: 6433012 | B200: RUESSELSHEIM, STADT | C200: =VLOOKUP(A200,'antragsberechtigt B'!$C$2:$F$400,3,FALSE) ->  | F200: 440016 | G200: Nidda, St. | H200: An den | I200: Magistrat | J200: der Stadt Nidda | K200: Wilhelm-Eckhardt-Platz | L200: 63667 | M200: Nidda
... 247 more rows

Sheet Einstellungen
A2: Arbeitshilfe Formular
A4: Hohe Sicherheitseinstellungen können dazu führen, dass Dateien mit Makros nicht geöffnet oder bearbeitet werden können.
A5: Sofern dies zu Problemen mit den Anmeldeformularen führt, kann die Speicherung der jeweiligen Datei als „xlsx-Datei“ erfolgen.
A44: Alternativ ist auch das Abspeichern des Formulars auf einem anderen Datenträger (z. Bsp. CD oder USB-Stick) und dessen Versand auf dem Postweg möglich.

Sheet Tabelle1 (hidden)
A1: 'Kommentare formatieren
A2: Sub KommentareAnpassen()
A3: Dim Kom As Comment
A4: For Each Com In ActiveSheet.Comments
A5: Kom.Shape.TextFrame.AutoSize = True
A6: Next Kom
A7: End Sub
A9: 'Kommentare an Textgröße anpassen
A10: Sub KommentareFormatieren()
A11: Dim Kom As Comment
A12: For Each Com In ActiveSheet.Comments
A13: With Kom.Shape.TextFrame.Characters.Font
A14: .Name = "Arial"
A15: .Size = 10
A16: End With
A17: Next Kom
A18: End Sub

Sheet LK mit Kommunen (hidden)
C1: 1 | D1: GKZ | L1: 06437000 | M1: 06531000
A2: 6437000 | B2: Odenwaldkreis | C2: 2 | D2: 06437000 | E2: LK Odenwald | G2: 6412000 | H2: LANDKREIS FULDA
A3: 6531000 | B3: Kreis Gießen | C3: 3 | D3: 06437001 | E3: Bad König | G3: 6413000 | H3: LANDKREIS WALDECK-FRANKENBERG
A4: 6533000 | B4: Kreis Limburg-Weilburg | C4: 4 | D4: 06437002 | E4: Beerfelden | G4: 6431000 | H4: LANDKREIS LIMBURG-WEILBURG | L4: LK Odenwald
A5: 6535000 | B5: Vogelsbergkreis | C5: 5 | D5: 06437003 | E5: Brensbach | G5: 6431001 | H5: LANDKREIS GIESSEN | L5: LK Gießen
A6: 6631000 | B6: Kreis Fulda | C6: 6 | D6: 06437004 | E6: Breuberg | G6: 6431003 | H6: SCHWALM-EDER-KREIS | L6: Gesamtergebnis
A7: 6634000 | B7: Schwalm-Eder-Kreis | C7: 7 | D7: 06437005 | E7: Brombachtal | G7: 6431004 | H7: ODENWALDKREIS
A8: 6635000 | B8: Kreis Waldeck-Frankenberg | C8: 8 | D8: 06437006 | E8: Erbach | G8: 6431010 | H8: WERRA-MEISSNER-KREIS
A9: 6636000 | B9: Werra-Meißner-Kreis | C9: 9 | D9: 06437007 | E9: Fränkisch-Crumbach | G9: 6636009 | H9: VOGELSBERGKREIS
C10: 10 | D10: 06437008 | E10: Hesseneck
C11: 11 | D11: 06437009 | E11: Höchst i.Odw.
C12: 12 | D12: 06437010 | E12: Lützelbach
C13: 13 | D13: 06437011 | E13: Michelstadt
C14: 14 | D14: 06437012 | E14: Mossautal
C15: 15 | D15: 06437013 | E15: Reichelsheim (Odenwald) | L15: Summe von 1 | M15: GKZ
C16: 16 | D16: 06437014 | E16: Rothenberg | L16: Kommune | M16: 06437000 | N16: 06437001 | O16: 06437002 | P16: 06437003 | Q16: 06437004 | R16: 06437005 | S16: 06437006 | T16: 06437007 | U16: 06437008 | V16: 06437009 | W16: 06437010 | X16: 06437011 | Y16: 06437012 | Z16: 06437013 | AA16: 06437014 | AB16: 06437015 | AC16: 06531000 | AD16: 06531001 | AE16: 06531002 | AF16: 06531003 | AG16: 06531004 | AH16: 06531005 | AI16: 06531006 | AJ16: 06531007 | AK16: 06531008 | AL16: 06531009 | AM16: 06531010 | AN16: 06531011 | AO16: 06531012 | AP16: 06531013 | AQ16: 06531014 | AR16: 06531015 | AS16: 06531016 | AT16: 06531017 | AU16: 06531018 | AV16: 06533000 | AW16: 06533001 | AX16: 06533002 | AY16: 06533003 | AZ16: 06533004 | BA16: 06533005 | BB16: 06533006 | BC16: 06533007 | BD16: 06533008 | BE16: 06533009 | BF16: 06533010 | BG16: 06533011 | BH16: 06533012 | BI16: 06533013 | BJ16: 06533014 | BK16: 06533015 | BL16: 06533016 | BM16: 06533017 | BN16: 06533018 | BO16: 06533019 | BP16: 06535000 | BQ16: 06535001 | BR16: 06535002 | BS16: 06535003 | BT16: 06535004 | BU16: 06535005 | BV16: 06535006 | BW16: 06535007 | BX16: 06535008 | BY16: 06535009 | BZ16: 06535010 | CA16: 06535011 | CB16: 06535012 | CC16: 06535013 | CD16: 06535014 | CE16: 06535015 | CF16: 06535016 | CG16: 06535017 | CH16: 06535018 | CI16: 06535019 | CJ16: 06631000 | CK16: 06631001 | CL16: 06631002 | CM16: 06631003 | CN16: 06631004 | CO16: 06631005 | CP16: 06631006 | CQ16: 06631007 | CR16: 06631008 | CS16: 06631009 | CT16: 06631010 | CU16: 06631011 | CV16: 06631012 | CW16: 06631013 | CX16: 06631014 | CY16: 06631015 | CZ16: 06631016 | DA16: 06631017 | DB16: 06631018 | DC16: 06631019 | DD16: 06631020 | DE16: 06631021 | DF16: 06631022 | DG16: 06631023 | DH16: 06634000 | DI16: 06634001 | DJ16: 06634002 | DK16: 06634003 | DL16: 06634004 | DM16: 06634005 | DN16: 06634006 | DO16: 06634007 | DP16: 06634008 | DQ16: 06634009 | DR16: 06634010 | DS16: 06634011 | DT16: 06634012 | DU16: 06634013 | DV16: 06634014 | DW16: 06634015 | DX16: 06634016 | DY16: 06634017 | DZ16: 06634018 | EA16: 06634019 | EB16: 06634020 | EC16: 06634021 | ED16: 06634022 | EE16: 06634023 | EF16: 06634024 | EG16: 06634025 | EH16: 06634026 | EI16: 06634027 | EJ16: 06635000 | EK16: 06635001 | EL16: 06635002 | EM16: 06635003 | EN16: 06635004 | EO16: 06635005 | EP16: 06635006 | EQ16: 06635007 | ER16: 06635008 | ES16: 06635009 | ET16: 06635010 | EU16: 06635011 | EV16: 06635012 | EW16: 06635013 | EX16: 06635014 | EY16: 06635015 | EZ16: 06635016 | FA16: 06635017 | FB16: 06635018 | FC16: 06635019 | FD16: 06635020 | FE16: 06635021 | FF16: 06635022 | FG16: 06636000 | FH16: 06636001 | FI16: 06636002 | FJ16: 06636003 | FK16: 06636004 | FL16: 06636005 | FM16: 06636006 | FN16: 06636007 | FO16: 06636008 | FP16: 06636009 | FQ16: 06636010 | FR16: 06636011 | FS16: 06636012 | FT16: 06636013 | FU16: 06636014 | FV16: 06636015 | FW16: 06636016 | FX16: Gesamtergebnis
C17: 17 | D17: 06437015 | E17: Sensbachtal | L17: Allendorf (Eder) | EK17: 130 | FX17: 130
C18: 18 | D18: 06531000 | E18: LK Gießen | L18: Allendorf (Lumda) | AD18: 19 | FX18: 19
C19: 19 | D19: 06531001 | E19: Allendorf (Lumda) | L19: Alsfeld | BQ19: 58 | FX19: 58
C20: 20 | D20: 06531002 | E20: Biebertal | L20: Antrifttal | BR20: 59 | FX20: 59
C21: 21 | D21: 06531003 | E21: Buseck | L21: Bad Arolsen | EL21: 131 | FX21: 131
C22: 22 | D22: 06531004 | E22: Fernwald | L22: Bad Camberg | AY22: 40 | FX22: 40
C23: 23 | D23: 06531005 | E23: Gießen | L23: Bad König | N23: 3 | FX23: 3
C24: 24 | D24: 06531006 | E24: Grünberg | L24: Bad Salzschlirf | CK24: 78 | FX24: 78
C25: 25 | D25: 06531007 | E25: Heuchelheim | L25: Bad Sooden-Allendorf | FH25: 153 | FX25: 153
C26: 26 | D26: 06531008 | E26: Hungen | L26: Bad Wildungen | EM26: 132 | FX26: 132
C27: 27 | D27: 06531009 | E27: Langgöns | L27: Bad Zwesten | EI27: 128 | FX27: 128
C28: 28 | D28: 06531010 | E28: Laubach | L28: Battenberg (Eder) | EN28: 133 | FX28: 133
C29: 29 | D29: 06531011 | E29: Lich | L29: Beerfelden | O29: 4 | FX29: 4
C30: 30 | D30: 06531012 | E30: Linden | L30: Berkatal | FI30: 154 | FX30: 154
C31: 31 | D31: 06531013 | E31: Lollar | L31: Beselich | AW31: 38 | FX31: 38
C32: 32 | D32: 06531014 | E32: Pohlheim | L32: Biebertal | AE32: 20 | FX32: 20
C33: 33 | D33: 06531015 | E33: Rabenau | L33: Borken (Hessen) | DI33: 102 | FX33: 102
C34: 34 | D34: 06531016 | E34: Reiskirchen | L34: Brechen | AX34: 39 | FX34: 39
C35: 35 | D35: 06531017 | E35: Staufenberg | L35: Brensbach | P35: 5 | FX35: 5
C36: 36 | D36: 06531018 | E36: Wettenberg | L36: Breuberg | Q36: 6 | FX36: 6
C37: 37 | D37: 06533000 | E37: LK Limburg-Weilburg | L37: Brombachtal | R37: 7 | FX37: 7
C38: 38 | D38: 06533001 | E38: Beselich | L38: Bromskirchen | EO38: 134 | FX38: 134
C39: 39 | D39: 06533002 | E39: Brechen | L39: Burghaun | CL39: 79 | FX39: 79
C40: 40 | D40: 06533003 | E40: Bad Camberg | L40: Burgwald | EP40: 135 | FX40: 135
C41: 41 | D41: 06533004 | E41: Dornburg | L41: Buseck | AF41: 21 | FX41: 21
C42: 42 | D42: 06533005 | E42: Elbtal | L42: Diemelsee | EQ42: 136 | FX42: 136
C43: 43 | D43: 06533006 | E43: Elz | L43: Diemelstadt | ER43: 137 | FX43: 137
C44: 44 | D44: 06533007 | E44: Hadamar | L44: Dipperz | CM44: 80 | FX44: 80
C45: 45 | D45: 06533008 | E45: Hünfelden | L45: Dornburg | AZ45: 41 | FX45: 41
C46: 46 | D46: 06533009 | E46: Limburg an der Lahn | L46: Ebersburg | CN46: 81 | FX46: 81
C47: 47 | D47: 06533010 | E47: Löhnberg | L47: Edermünde | DJ47: 103 | FX47: 103
C48: 48 | D48: 06533011 | E48: Mengerskirchen | L48: Edertal | ES48: 138 | FX48: 138
C49: 49 | D49: 06533012 | E49: Merenberg | L49: Ehrenberg (Rhön) | CO49: 82 | FX49: 82
C50: 50 | D50: 06533013 | E50: Runkel | L50: Eichenzell | CP50: 83 | FX50: 83
C51: 51 | D51: 06533014 | E51: Selters (Taunus) | L51: Eiterfeld | CQ51: 84 | FX51: 84
C52: 52 | D52: 06533015 | E52: Villmar | L52: Elbtal | BA52: 42 | FX52: 42
C53: 53 | D53: 06533016 | E53: Waldbrunn (Westerwald) | L53: Elz | BB53: 43 | FX53: 43
C54: 54 | D54: 06533017 | E54: Weilburg | L54: Erbach | S54: 8 | FX54: 8
C55: 55 | D55: 06533018 | E55: Weilmünster | L55: Eschwege | FJ55: 155 | FX55: 155
C56: 56 | D56: 06533019 | E56: Weinbach | L56: Feldatal | BS56: 60 | FX56: 60
C57: 57 | D57: 06535000 | E57: LK Vogelsberg | L57: Felsberg | DK57: 104 | FX57: 104
C58: 58 | D58: 06535001 | E58: Alsfeld | L58: Fernwald | AG58: 22 | FX58: 22
C59: 59 | D59: 06535002 | E59: Antrifttal | L59: Flieden | CR59: 85 | FX59: 85
C60: 60 | D60: 06535003 | E60: Feldatal | L60: Frankenau | ET60: 139 | FX60: 139
C61: 61 | D61: 06535004 | E61: Freiensteinau | L61: Frankenberg (Eder) | EU61: 140 | FX61: 140
C62: 62 | D62: 06535005 | E62: Gemünden (Felda) | L62: Fränkisch-Crumbach | T62: 9 | FX62: 9
C63: 63 | D63: 06535006 | E63: Grebenau | L63: Freiensteinau | BT63: 61 | FX63: 61
C64: 64 | D64: 06535007 | E64: Grebenhain | L64: Frielendorf | DL64: 105 | FX64: 105
C65: 65 | D65: 06535008 | E65: Herbstein | L65: Fritzlar | DM65: 106 | FX65: 106
C66: 66 | D66: 06535009 | E66: Homberg (Ohm) | L66: Fulda | CS66: 86 | FX66: 86
C67: 67 | D67: 06535010 | E67: Kirtorf | L67: Gemünden (Felda) | BU67: 62 | FX67: 62
C68: 68 | D68: 06535011 | E68: Lauterbach (Hessen) | L68: Gemünden (Wohra) | EV68: 141 | FX68: 141
C69: 69 | D69: 06535012 | E69: Lautertal (Vogelsberg) | L69: Gersfeld (Rhön) | CT69: 87 | FX69: 87
C70: 70 | D70: 06535013 | E70: Mücke | L70: Gießen | AH70: 23 | FX70: 23
C71: 71 | D71: 06535014 | E71: Romrod | L71: Gilserberg | DN71: 107 | FX71: 107
C72: 72 | D72: 06535015 | E72: Schlitz | L72: Grebenau | BV72: 63 | FX72: 63
C73: 73 | D73: 06535016 | E73: Schotten | L73: Grebenhain | BW73: 64 | FX73: 64
C74: 74 | D74: 06535017 | E74: Schwalmtal | L74: Großalmerode | FK74: 156 | FX74: 156
C75: 75 | D75: 06535018 | E75: Ulrichstein | L75: Großenlüder | CU75: 88 | FX75: 88
C76: 76 | D76: 06535019 | E76: Wartenberg | L76: Grünberg | AI76: 24 | FX76: 24
C77: 77 | D77: 06631000 | E77: LK Fulda | L77: Gudensberg | DO77: 108 | FX77: 108
C78: 78 | D78: 06631001 | E78: Bad Salzschlirf | L78: Guxhagen | DP78: 109 | FX78: 109
C79: 79 | D79: 06631002 | E79: Burghaun | L79: Hadamar | BC79: 44 | FX79: 44
C80: 80 | D80: 06631003 | E80: Dipperz | L80: Haina (Kloster) | EW80: 142 | FX80: 142
C81: 81 | D81: 06631004 | E81: Ebersburg | L81: Hatzfeld (Eder) | EX81: 143 | FX81: 143
C82: 82 | D82: 06631005 | E82: Ehrenberg (Rhön) | L82: Herbstein | BX82: 65 | FX82: 65
C83: 83 | D83: 06631006 | E83: Eichenzell | L83: Herleshausen | FL83: 157 | FX83: 157
C84: 84 | D84: 06631007 | E84: Eiterfeld | L84: Hesseneck | U84: 10 | FX84: 10
C85: 85 | D85: 06631008 | E85: Flieden | L85: Hessisch Lichtenau | FM85: 158 | FX85: 158
C86: 86 | D86: 06631009 | E86: Fulda | L86: Heuchelheim | AJ86: 25 | FX86: 25
C87: 87 | D87: 06631010 | E87: Gersfeld (Rhön) | L87: Hilders | CV87: 89 | FX87: 89
C88: 88 | D88: 06631011 | E88: Großenlüder | L88: Höchst i.Odw. | V88: 11 | FX88: 11
C89: 89 | D89: 06631012 | E89: Hilders | L89: Hofbieber | CW89: 90 | FX89: 90
C90: 90 | D90: 06631013 | E90: Hofbieber | L90: Homberg (Efze) | DQ90: 110 | FX90: 110
C91: 91 | D91: 06631014 | E91: Hosenfeld | L91: Homberg (Ohm) | BY91: 66 | FX91: 66
C92: 92 | D92: 06631015 | E92: Hünfeld | L92: Hosenfeld | CX92: 91 | FX92: 91
C93: 93 | D93: 06631016 | E93: Kalbach | L93: Hünfeld | CY93: 92 | FX93: 92
C94: 94 | D94: 06631017 | E94: Künzell | L94: Hünfelden | BD94: 45 | FX94: 45
C95: 95 | D95: 06631018 | E95: Neuhof | L95: Hungen | AK95: 26 | FX95: 26
C96: 96 | D96: 06631019 | E96: Nüsttal | L96: Jesberg | DR96: 111 | FX96: 111
C97: 97 | D97: 06631020 | E97: Petersberg | L97: Kalbach | CZ97: 93 | FX97: 93
C98: 98 | D98: 06631021 | E98: Poppenhausen (Wasserkuppe) | L98: Kirtorf | BZ98: 67 | FX98: 67
C99: 99 | D99: 06631022 | E99: Rasdorf | L99: Knüllwald | DS99: 112 | FX99: 112
C100: 100 | D100: 06631023 | E100: Tann (Rhön) | L100: Korbach | EY100: 144 | FX100: 144
C101: 101 | D101: 06634000 | E101: LK Schwalm-Eder | L101: Körle | DT101: 113 | FX101: 113
C102: 102 | D102: 06634001 | E102: Borken (Hessen) | L102: Künzell | DA102: 94 | FX102: 94
C103: 103 | D103: 06634002 | E103: Edermünde | L103: Langgöns | AL103: 27 | FX103: 27
C104: 104 | D104: 06634003 | E104: Felsberg | L104: Laubach | AM104: 28 | FX104: 28
C105: 105 | D105: 06634004 | E105: Frielendorf | L105: Lauterbach (Hessen) | CA105: 68 | FX105: 68
C106: 106 | D106: 06634005 | E106: Fritzlar | L106: Lautertal (Vogelsberg) | CB106: 69 | FX106: 69
C107: 107 | D107: 06634006 | E107: Gilserberg | L107: Lich | AN107: 29 | FX107: 29
C108: 108 | D108: 06634007 | E108: Gudensberg | L108: Lichtenfels | EZ108: 145 | FX108: 145
C109: 109 | D109: 06634008 | E109: Guxhagen | L109: Limburg an der Lahn | BE109: 46 | FX109: 46
C110: 110 | D110: 06634009 | E110: Homberg (Efze) | L110: Linden | AO110: 30 | FX110: 30
C111: 111 | D111: 06634010 | E111: Jesberg | L111: LK Fulda | CJ111: 77 | FX111: 77
C112: 112 | D112: 06634011 | E112: Knüllwald | L112: LK Gießen | AC112: 18 | FX112: 18
C113: 113 | D113: 06634012 | E113: Körle | L113: LK Limburg-Weilburg | AV113: 37 | FX113: 37
C114: 114 | D114: 06634013 | E114: Malsfeld | L114: LK Odenwald | M114: 2 | FX114: 2
C115: 115 | D115: 06634014 | E115: Melsungen | L115: LK Schwalm-Eder | DH115: 101 | FX115: 101
C116: 116 | D116: 06634015 | E116: Morschen | L116: LK Vogelsberg | BP116: 57 | FX116: 57
C117: 117 | D117: 06634016 | E117: Neuental | L117: LK Waldeck-Frankenberg | EJ117: 129 | FX117: 129
C118: 118 | D118: 06634017 | E118: Neukirchen | L118: LK Werra-Meißner | FG118: 152 | FX118: 152
C119: 119 | D119: 06634018 | E119: Niedenstein | L119: Löhnberg | BF119: 47 | FX119: 47
C120: 120 | D120: 06634019 | E120: Oberaula | L120: Lollar | AP120: 31 | FX120: 31
C121: 121 | D121: 06634020 | E121: Ottrau | L121: Lützelbach | W121: 12 | FX121: 12
C122: 122 | D122: 06634021 | E122: Schrecksbach | L122: Malsfeld | DU122: 114 | FX122: 114
C123: 123 | D123: 06634022 | E123: Schwalmstadt | L123: Meinhard | FN123: 159 | FX123: 159
C124: 124 | D124: 06634023 | E124: Schwarzenborn | L124: Meißner | FO124: 160 | FX124: 160
C125: 125 | D125: 06634024 | E125: Spangenberg | L125: Melsungen | DV125: 115 | FX125: 115
C126: 126 | D126: 06634025 | E126: Wabern | L126: Mengerskirchen | BG126: 48 | FX126: 48
C127: 127 | D127: 06634026 | E127: Willingshausen | L127: Merenberg | BH127: 49 | FX127: 49
C128: 128 | D128: 06634027 | E128: Bad Zwesten | L128: Michelstadt | X128: 13 | FX128: 13
C129: 129 | D129: 06635000 | E129: LK Waldeck-Frankenberg | L129: Morschen | DW129: 116 | FX129: 116
C130: 130 | D130: 06635001 | E130: Allendorf (Eder) | L130: Mossautal | Y130: 14 | FX130: 14
C131: 131 | D131: 06635002 | E131: Bad Arolsen | L131: Mücke | CC131: 70 | FX131: 70
C132: 132 | D132: 06635003 | E132: Bad Wildungen | L132: Neu-Eichenberg | FP132: 161 | FX132: 161
C133: 133 | D133: 06635004 | E133: Battenberg (Eder) | L133: Neuental | DX133: 117 | FX133: 117
C134: 134 | D134: 06635005 | E134: Bromskirchen | L134: Neuhof | DB134: 95 | FX134: 95
C135: 135 | D135: 06635006 | E135: Burgwald | L135: Neukirchen | DY135: 118 | FX135: 118
C136: 136 | D136: 06635007 | E136: Diemelsee | L136: Niedenstein | DZ136: 119 | FX136: 119
C137: 137 | D137: 06635008 | E137: Diemelstadt | L137: Nüsttal | DC137: 96 | FX137: 96
C138: 138 | D138: 06635009 | E138: Edertal | L138: Oberaula | EA138: 120 | FX138: 120
C139: 139 | D139: 06635010 | E139: Frankenau | L139: Ottrau | EB139: 121 | FX139: 121
C140: 140 | D140: 06635011 | E140: Frankenberg (Eder) | L140: Petersberg | DD140: 97 | FX140: 97
C141: 141 | D141: 06635012 | E141: Gemünden (Wohra) | L141: Pohlheim | AQ141: 32 | FX141: 32
C142: 142 | D142: 06635013 | E142: Haina (Kloster) | L142: Poppenhausen (Wasserkuppe) | DE142: 98 | FX142: 98
C143: 143 | D143: 06635014 | E143: Hatzfeld (Eder) | L143: Rabenau | AR143: 33 | FX143: 33
C144: 144 | D144: 06635015 | E144: Korbach | L144: Rasdorf | DF144: 99 | FX144: 99
C145: 145 | D145: 06635016 | E145: Lichtenfels | L145: Reichelsheim (Odenwald) | Z145: 15 | FX145: 15
C146: 146 | D146: 06635017 | E146: Rosenthal | L146: Reiskirchen | AS146: 34 | FX146: 34
C147: 147 | D147: 06635018 | E147: Twistetal | L147: Ringgau | FQ147: 162 | FX147: 162
C148: 148 | D148: 06635019 | E148: Vöhl | L148: Romrod | CD148: 71 | FX148: 71
C149: 149 | D149: 06635020 | E149: Volkmarsen | L149: Rosenthal | FA149: 146 | FX149: 146
C150: 150 | D150: 06635021 | E150: Waldeck | L150: Rothenberg | AA150: 16 | FX150: 16
C151: 151 | D151: 06635022 | E151: Willingen (Upland) | L151: Runkel | BI151: 50 | FX151: 50
C152: 152 | D152: 06636000 | E152: LK Werra-Meißner | L152: Schlitz | CE152: 72 | FX152: 72
C153: 153 | D153: 06636001 | E153: Bad Sooden-Allendorf | L153: Schotten | CF153: 73 | FX153: 73
C154: 154 | D154: 06636002 | E154: Berkatal | L154: Schrecksbach | EC154: 122 | FX154: 122
C155: 155 | D155: 06636003 | E155: Eschwege | L155: Schwalmstadt | ED155: 123 | FX155: 123
C156: 156 | D156: 06636004 | E156: Großalmerode | L156: Schwalmtal | CG156: 74 | FX156: 74
C157: 157 | D157: 06636005 | E157: Herleshausen | L157: Schwarzenborn | EE157: 124 | FX157: 124
C158: 158 | D158: 06636006 | E158: Hessisch Lichtenau | L158: Selters (Taunus) | BJ158: 51 | FX158: 51
C159: 159 | D159: 06636007 | E159: Meinhard | L159: Sensbachtal | AB159: 17 | FX159: 17
C160: 160 | D160: 06636008 | E160: Meißner | L160: Sontra | FR160: 163 | FX160: 163
C161: 161 | D161: 06636009 | E161: Neu-Eichenberg | L161: Spangenberg | EF161: 125 | FX161: 125
C162: 162 | D162: 06636010 | E162: Ringgau | L162: Staufenberg | AT162: 35 | FX162: 35
C163: 163 | D163: 06636011 | E163: Sontra | L163: Tann (Rhön) | DG163: 100 | FX163: 100
C164: 164 | D164: 06636012 | E164: Waldkappel | L164: Twistetal | FB164: 147 | FX164: 147
C165: 165 | D165: 06636013 | E165: Wanfried | L165: Ulrichstein | CH165: 75 | FX165: 75
C166: 166 | D166: 06636014 | E166: Wehretal | L166: Villmar | BK166: 52 | FX166: 52
C167: 167 | D167: 06636015 | E167: Weißenborn | L167: Vöhl | FC167: 148 | FX167: 148
C168: 168 | D168: 06636016 | E168: Witzenhausen | L168: Volkmarsen | FD168: 149 | FX168: 149
L169: Wabern | EG169: 126 | FX169: 126
L170: Waldbrunn (Westerwald) | BL170: 53 | FX170: 53
L171: Waldeck | FE171: 150 | FX171: 150
L172: Waldkappel | FS172: 164 | FX172: 164
L173: Wanfried | FT173: 165 | FX173: 165
L174: Wartenberg | CI174: 76 | FX174: 76
L175: Wehretal | FU175: 166 | FX175: 166
L176: Weilburg | BM176: 54 | FX176: 54
L177: Weilmünster | BN177: 55 | FX177: 55
L178: Weinbach | BO178: 56 | FX178: 56
L179: Weißenborn | FV179: 167 | FX179: 167
L180: Wettenberg | AU180: 36 | FX180: 36
L181: Willingen (Upland) | FF181: 151 | FX181: 151
L182: Willingshausen | EH182: 127 | FX182: 127
L183: Witzenhausen | FW183: 168 | FX183: 168
L184: Gesamtergebnis | M184: 2 | N184: 3 | O184: 4 | P184: 5 | Q184: 6 | R184: 7 | S184: 8 | T184: 9 | U184: 10 | V184: 11 | W184: 12 | X184: 13 | Y184: 14 | Z184: 15 | AA184: 16 | AB184: 17 | AC184: 18 | AD184: 19 | AE184: 20 | AF184: 21 | AG184: 22 | AH184: 23 | AI184: 24 | AJ184: 25 | AK184: 26 | AL184: 27 | AM184: 28 | AN184: 29 | AO184: 30 | AP184: 31 | AQ184: 32 | AR184: 33 | AS184: 34 | AT184: 35 | AU184: 36 | AV184: 37 | AW184: 38 | AX184: 39 | AY184: 40 | AZ184: 41 | BA184: 42 | BB184: 43 | BC184: 44 | BD184: 45 | BE184: 46 | BF184: 47 | BG184: 48 | BH184: 49 | BI184: 50 | BJ184: 51 | BK184: 52 | BL184: 53 | BM184: 54 | BN184: 55 | BO184: 56 | BP184: 57 | BQ184: 58 | BR184: 59 | BS184: 60 | BT184: 61 | BU184: 62 | BV184: 63 | BW184: 64 | BX184: 65 | BY184: 66 | BZ184: 67 | CA184: 68 | CB184: 69 | CC184: 70 | CD184: 71 | CE184: 72 | CF184: 73 | CG184: 74 | CH184: 75 | CI184: 76 | CJ184: 77 | CK184: 78 | CL184: 79 | CM184: 80 | CN184: 81 | CO184: 82 | CP184: 83 | CQ184: 84 | CR184: 85 | CS184: 86 | CT184: 87 | CU184: 88 | CV184: 89 | CW184: 90 | CX184: 91 | CY184: 92 | CZ184: 93 | DA184: 94 | DB184: 95 | DC184: 96 | DD184: 97 | DE184: 98 | DF184: 99 | DG184: 100 | DH184: 101 | DI184: 102 | DJ184: 103 | DK184: 104 | DL184: 105 | DM184: 106 | DN184: 107 | DO184: 108 | DP184: 109 | DQ184: 110 | DR184: 111 | DS184: 112 | DT184: 113 | DU184: 114 | DV184: 115 | DW184: 116 | DX184: 117 | DY184: 118 | DZ184: 119 | EA184: 120 | EB184: 121 | EC184: 122 | ED184: 123 | EE184: 124 | EF184: 125 | EG184: 126 | EH184: 127 | EI184: 128 | EJ184: 129 | EK184: 130 | EL184: 131 | EM184: 132 | EN184: 133 | EO184: 134 | EP184: 135 | EQ184: 136 | ER184: 137 | ES184: 138 | ET184: 139 | EU184: 140 | EV184: 141 | EW184: 142 | EX184: 143 | EY184: 144 | EZ184: 145 | FA184: 146 | FB184: 147 | FC184: 148 | FD184: 149 | FE184: 150 | FF184: 151 | FG184: 152 | FH184: 153 | FI184: 154 | FJ184: 155 | FK184: 156 | FL184: 157 | FM184: 158 | FN184: 159 | FO184: 160 | FP184: 161 | FQ184: 162 | FR184: 163 | FS184: 164 | FT184: 165 | FU184: 166 | FV184: 167 | FW184: 168 | FX184: 14195

Sheet Tabelle2 (hidden)
J17: 1
J18: 2
